Workbook

Sheet Consignes (hidden)
A1: Présentation du générateur de codes d'éco-participation
A6: Créer les codes pour l'application de l'éco-participation sur les Produits et Matériaux de Construction et du Bâtiment (PMCB) ainsi que les Articles de Bricolage et de Jardin (ABJ)
A7: Version 1.10 - 10 février 2023
A9: A qui s’adresse cet outil ?
A10: Cet outil s'adresse aux metteurs sur le marché de Produits et Matériaux de Construction et du Bâtiment (PMCB) ainsi que les Articles de Bricolage et de Jardin (ABJ)
A12: A quoi sert-il ?
A13: Ce fichier permet de générer les codes produits qui servent à déclarer les mises en marché. Ces codes produits permettent d'appliquer le tarif de l'éco-participation aux Produits et Matériaux de Construction et du Bâtiment (PMCB) ainsi qu'aux Articles de Bricolage et de Jardin (ABJ) en fonction de leurs caractéristiques.
A14: Pour comprendre comment est constitué ce code produit à 11 chiffres, cliquez sur l’onglet « Comprendre la codification »
A16: Comment générer un code produit ?
A17: Pour générer un code produit cliquez sur l’onglet « Générateur code produit »
A18: Attention : Pour être certain de renseigner les bons codes lors de votre déclaration, utilisez l'onglet « ABJ-PMCB - Code produit » et la fonction « copier-coller » en sélectionnant « collage spécial valeur absolue ».
A20: Déclarer l’éco-participation
A22: A quel moment faire votre déclaration ?
A23: La première déclaration à partir des codes produits sera à réaliser en avril 2023 pour les mises en marché du 1er trimestre 2023.
A24: Remarque importante pour les ABJ : une déclaration simplifiée devra être réalisée en janvier 2023 sur la base du CA HT des mises en marché de décembre 2022. Toutes les informations sont à retrouver dans le guide adhérent.
A25: Pour les déclarations trimestrielles, celles-ci doivent être faites le mois suivant chaque trimestre calendaire (avril pour le T1, juillet pour le T2, octobre pour le T3 et janvier pour le T4).
A27: Comment faire votre déclaration (avec les codes produits) ?
A28: La déclaration des mises en marché avec les codes produits se fait par saisie ou chargement d'un fichier* format .csv sur l'Extranet : https://espace-services.eco-mobilier.fr/ *Vous pouvez télécharger le fichier type dans la rubrique Déclarations.
A31: > Pour savoir comment effectuer votre déclaration, consultez le mode opératoire complet : https://espace-services.eco-mobilier.fr/mode-operatoire-declarer

Sheet Périmètre (hidden)
B1: =MID(CELL("filename",A1),FIND("]",CELL("filename",A1))+1,256) -> 
B4: ARTICLES D'AMEUBLEMENT - DEA (+DT) | F4: POUR INFORMATION - AGREMENT EN COURS (fin 2023)
B6: Eléments d'ameublement d'intérieur
D8: Meubles de salon, séjour et salle à manger
D10: Rayon | E10: Catégorie | F10: Exemples de produits (non-exhaustif)
D11: =$B$6 -> Eléments d'ameublement d'intérieur | E11: =$D$8 -> Meubles de salon, séjour et salle à manger | F11: Table basse bois
D12: Eléments d'ameublement d'intérieur | E12: Meubles de salon, séjour et salle à manger | F12: Table basse gigogne
D13: Eléments d'ameublement d'intérieur | E13: Meubles de salon, séjour et salle à manger | F13: Table basse relevable
D14: Eléments d'ameublement d'intérieur | E14: Meubles de salon, séjour et salle à manger | F14: Bibliothèque
D15: Eléments d'ameublement d'intérieur | E15: Meubles de salon, séjour et salle à manger | F15: Etagère
D16: Eléments d'ameublement d'intérieur | E16: Meubles de salon, séjour et salle à manger | F16: Meuble TV avec portes
D17: Eléments d'ameublement d'intérieur | E17: Meubles de salon, séjour et salle à manger | F17: Meuble TV avec tiroirs
D18: Eléments d'ameublement d'intérieur | E18: Meubles de salon, séjour et salle à manger | F18: Meuble TV sans portes et sans tiroirs
D19: Eléments d'ameublement d'intérieur | E19: Meubles de salon, séjour et salle à manger | F19: Pouf velours
D20: Eléments d'ameublement d'intérieur | E20: Meubles de salon, séjour et salle à manger | F20: Pouf coffre
D21: Eléments d'ameublement d'intérieur | E21: Meubles de salon, séjour et salle à manger | F21: Table basse ronde
D22: Eléments d'ameublement d'intérieur | E22: Meubles de salon, séjour et salle à manger | F22: Table basse rectangulaire
D23: Eléments d'ameublement d'intérieur | E23: Meubles de salon, séjour et salle à manger | F23: Table basse carrée
D24: Eléments d'ameublement d'intérieur | E24: Meubles de salon, séjour et salle à manger | F24: Autres formes de table basse
D25: Eléments d'ameublement d'intérieur | E25: Meubles de salon, séjour et salle à manger | F25: Range-chaussures à poser
D26: Eléments d'ameublement d'intérieur | E26: Meubles de salon, séjour et salle à manger | F26: Range-chaussures à fixer
D27: Eléments d'ameublement d'intérieur | E27: Meubles de salon, séjour et salle à manger | F27: Range-chaussures à suspendre
D28: Eléments d'ameublement d'intérieur | E28: Meubles de salon, séjour et salle à manger | F28: Meuble blanc
D29: Eléments d'ameublement d'intérieur | E29: Meubles de salon, séjour et salle à manger | F29: Meuble gris
D30: Eléments d'ameublement d'intérieur | E30: Meubles de salon, séjour et salle à manger | F30: Meuble noir
D31: Eléments d'ameublement d'intérieur | E31: Meubles de salon, séjour et salle à manger | F31: Meuble effet bois
D32: Eléments d'ameublement d'intérieur | E32: Meubles de salon, séjour et salle à manger | F32: Console design industriel
D33: Eléments d'ameublement d'intérieur | E33: Meubles de salon, séjour et salle à manger | F33: Console design scandinave
D34: Eléments d'ameublement d'intérieur | E34: Meubles de salon, séjour et salle à manger | F34: Console design chic
D35: Eléments d'ameublement d'intérieur | E35: Meubles de salon, séjour et salle à manger | F35: Portant simple
D36: Eléments d'ameublement d'intérieur | E36: Meubles de salon, séjour et salle à manger | F36: Portant mural
D37: Eléments d'ameublement d'intérieur | E37: Meubles de salon, séjour et salle à manger | F37: Portant extensible
D38: Eléments d'ameublement d'intérieur | E38: Meubles de salon, séjour et salle à manger | F38: Portant avec housse
D39: Eléments d'ameublement d'intérieur | E39: Meubles de salon, séjour et salle à manger | F39: Étagère en kit prêt à monter
D40: Eléments d'ameublement d'intérieur | E40: Meubles de salon, séjour et salle à manger | F40: Étagère HUB System à personnaliser
D41: Eléments d'ameublement d'intérieur | E41: Meubles de salon, séjour et salle à manger | F41: Étagère Versatile à personnaliser
D42: Eléments d'ameublement d'intérieur | E42: Meubles de salon, séjour et salle à manger | F42: Bout de canapé
D43: Eléments d'ameublement d'intérieur | E43: Meubles de salon, séjour et salle à manger | F43: Table gigogne
D44: Eléments d'ameublement d'intérieur | E44: Meubles de salon, séjour et salle à manger | F44: Canapé 2 places
D45: Eléments d'ameublement d'intérieur | E45: Meubles de salon, séjour et salle à manger | F45: Canapé 3 places
D46: Eléments d'ameublement d'intérieur | E46: Meubles de salon, séjour et salle à manger | F46: Canapé convertible
D47: Eléments d'ameublement d'intérieur | E47: Meubles de salon, séjour et salle à manger | F47: Canapé d'angle
D48: Eléments d'ameublement d'intérieur | E48: Meubles de salon, séjour et salle à manger | F48: Fauteuil Lounge
D49: Eléments d'ameublement d'intérieur | E49: Meubles de salon, séjour et salle à manger | F49: Fauteuil scandinave
D50: Eléments d'ameublement d'intérieur | E50: Meubles de salon, séjour et salle à manger | F50: Pouf poire
D51: Eléments d'ameublement d'intérieur | E51: Meubles de salon, séjour et salle à manger | F51: Meuble TV sans portes ni tiroirs
D52: Eléments d'ameublement d'intérieur | E52: Meubles de salon, séjour et salle à manger | F52: Etagère utilitaire
D53: Eléments d'ameublement d'intérieur | E53: Meubles de salon, séjour et salle à manger | F53: Cube de rangement
D54: Eléments d'ameublement d'intérieur | E54: Meubles de salon, séjour et salle à manger | F54: Vaisselier
D55: Eléments d'ameublement d'intérieur | E55: Meubles de salon, séjour et salle à manger | F55: Buffet
D56: Eléments d'ameublement d'intérieur | E56: Meubles de salon, séjour et salle à manger | F56: Table extensible
D57: Eléments d'ameublement d'intérieur | E57: Meubles de salon, séjour et salle à manger | F57: Table ronde
D58: Eléments d'ameublement d'intérieur | E58: Meubles de salon, séjour et salle à manger | F58: Table de bar
D60: Meubles de bureau
D62: Rayon | E62: Catégorie | F62: Exemples de produits (non-exhaustif)
D63: =$B$6 -> Eléments d'ameublement d'intérieur | E63: =$D$60 -> Meubles de bureau | F63: Ensemble Space Kit
D64: Eléments d'ameublement d'intérieur | E64: Meubles de bureau | F64: Tour de rangement plastique
D65: Eléments d'ameublement d'intérieur | E65: Meubles de bureau | F65: Tour de rangement métal
D66: Eléments d'ameublement d'intérieur | E66: Meubles de bureau | F66: Bloc tiroir
D67: Eléments d'ameublement d'intérieur | E67: Meubles de bureau | F67: Plateau de table Pin
D68: Eléments d'ameublement d'intérieur | E68: Meubles de bureau | F68: Plateau de table Chêne
D69: Eléments d'ameublement d'intérieur | E69: Meubles de bureau | F69: Plateau de table Aggloméré
D70: Eléments d'ameublement d'intérieur | E70: Meubles de bureau | F70: Plateau de table MDF
D71: Eléments d'ameublement d'intérieur | E71: Meubles de bureau | F71: Bureau design
D72: Eléments d'ameublement d'intérieur | E72: Meubles de bureau | F72: Bureau industriel
D73: Eléments d'ameublement d'intérieur | E73: Meubles de bureau | F73: Bureau scandinave
D74: Eléments d'ameublement d'intérieur | E74: Meubles de bureau | F74: Bureau classique
D75: Eléments d'ameublement d'intérieur | E75: Meubles de bureau | F75: Bureau enfant
D76: Eléments d'ameublement d'intérieur | E76: Meubles de bureau | F76: Bureau chic
D78: Meubles de cuisine
D80: Rayon | E80: Catégorie | F80: Exemples de produits (non-exhaustif)
D81: =$B$6 -> Eléments d'ameublement d'intérieur | E81: =$D$78 -> Meubles de cuisine | F81: Rangement meuble haut
D82: Eléments d'ameublement d'intérieur | E82: Meubles de cuisine | F82: Rangement meuble bas
D83: Eléments d'ameublement d'intérieur | E83: Meubles de cuisine | F83: Rangement d'angle
D84: Eléments d'ameublement d'intérieur | E84: Meubles de cuisine | F84: Buffet de moins d'1m
D85: Eléments d'ameublement d'intérieur | E85: Meubles de cuisine | F85: Buffet entre 1m et 1m50
D86: Eléments d'ameublement d'intérieur | E86: Meubles de cuisine | F86: Buffet de plus d'1m50
D87: =$B$6 -> Eléments d'ameublement d'intérieur | E87: =$D$78 -> Meubles de cuisine | F87: Plans de travail
D90: Meubles de salle de bains
D92: Rayon | E92: Catégorie | F92: Exemples de produits (non-exhaustif)
D93: =$B$6 -> Eléments d'ameublement d'intérieur | E93: =$D$90 -> Meubles de salle de bains | F93: Meuble simple vasque
D94: Eléments d'ameublement d'intérieur | E94: Meubles de salle de bains | F94: Meuble simple vasque large
D95: Eléments d'ameublement d'intérieur | E95: Meubles de salle de bains | F95: Meuble double vasque
D96: Eléments d'ameublement d'intérieur | E96: Meubles de salle de bains | F96: Colonne
D97: Eléments d'ameublement d'intérieur | E97: Meubles de salle de bains | F97: Meuble bas
D98: Eléments d'ameublement d'intérieur | E98: Meubles de salle de bains | F98: Caisson colonne
D99: Eléments d'ameublement d'intérieur | E99: Meubles de salle de bains | F99: Meubles haut
D100: Eléments d'ameublement d'intérieur | E100: Meubles de salle de bains | F100: Cube
D101: Eléments d'ameublement d'intérieur | E101: Meubles de salle de bains | F101: Meuble Simple vasque encastrée
D102: Eléments d'ameublement d'intérieur | E102: Meubles de salle de bains | F102: Meuble Double vasque encastrée
D103: Eléments d'ameublement d'intérieur | E103: Meubles de salle de bains | F103: Meuble Simple vasque à poser
D104: Eléments d'ameublement d'intérieur | E104: Meubles de salle de bains | F104: Meuble double vasque à poser
D107: Plans de travail
D109: Rayon | E109: Catégorie | F109: Exemples de produits (non-exhaustif)
D110: =$B$6 -> Eléments d'ameublement d'intérieur | E110: =$D$107 -> Plans de travail
D113: Sièges
D115: Rayon | E115: Catégorie | F115: Exemples de produits (non-exhaustif)
D116: =$D$113 -> Sièges | E116: Sièges | F116: Siège 1 place pivotant ajustable en hauteur
D117: Sièges | E117: Sièges | F117: Autres articles rembourrés d’assise ou de couchage
D118: Sièges | E118: Sièges | F118: Siège sans structure 1 place
D119: Sièges | E119: Sièges | F119: Siège sans structure 2 places
D120: Sièges | E120: Sièges | F120: Siège sans structure plus de 2 places
D121: Sièges | E121: Sièges | F121: Siège non convertible 1 place
D122: Sièges | E122: Sièges | F122: Siège non convertible 2 places
D123: Sièges | E123: Sièges | F123: Siège non convertible plus de 2 places
D124: Sièges | E124: Sièges | F124: Siège convertible 1 place
D125: Sièges | E125: Sièges | F125: Siège convertible 2 places
D126: Sièges | E126: Sièges | F126: Siège convertible plus de 2 places
D127: Sièges | E127: Sièges | F127: Autre accessoire, partie de siège, support de hamac
D128: Sièges | E128: Sièges | F128: Siège gonflable
D129: Sièges | E129: Sièges | F129: Canapé convertible Hôtellerie 2 places couchage 140x190 cm
D130: Sièges | E130: Sièges | F130: Chaise de salle à manger
D131: Sièges | E131: Sièges | F131: Chaise de bar
D132: Sièges | E132: Sièges | F132: Chaise de bureau
D133: Sièges | E133: Sièges | F133: Chaise rotin
D134: Sièges | E134: Sièges | F134: Chaise de relaxation
D135: Sièges | E135: Sièges | F135: Chaise papillon
D136: Sièges | E136: Sièges | F136: Chaise de bureau pivotante
D137: Sièges | E137: Sièges | F137: Chaise de bureau avec dossier inclinable
D138: Sièges | E138: Sièges | F138: Tabouret de bar Chic
D139: Sièges | E139: Sièges | F139: Tabouret de bar Industriel
D140: Sièges | E140: Sièges | F140: Tabouret de bar Naturel
D141: Sièges | E141: Sièges | F141: Tabouret de bar Design
D142: Sièges | E142: Sièges | F142: Chaise à bascule
D143: Sièges | E143: Sièges | F143: Siège articulé / électrique 1 place
D144: Sièges | E144: Sièges | F144: Siège articulé / électrique 2 places
D145: Sièges | E145: Sièges | F145: Siège articulé / électrique plus de 2 places
D148: Produits rembourrés d'assise ou de couchage
D150: Rayon | E150: Catégorie | F150: Exemples de produits (non-exhaustif)
D151: =$B$6 -> Eléments d'ameublement d'intérieur | E151: =$D$148 -> Produits rembourrés d'assise ou de couchage | F151: Fauteuils
D152: =$B$6 -> Eléments d'ameublement d'intérieur | E152: =$D$148 -> Produits rembourrés d'assise ou de couchage | F152: Canapés
D155: Meubles de chambre à coucher
D157: Rayon | E157: Catégorie | F157: Exemples de produits (non-exhaustif)
D158: =$B$6 -> Eléments d'ameublement d'intérieur | E158: =$D$155 -> Meubles de chambre à coucher | F158: Cadre à lattes
D159: Eléments d'ameublement d'intérieur | E159: Meubles de chambre à coucher | F159: Sommier relaxation mécanique
D160: Eléments d'ameublement d'intérieur | E160: Meubles de chambre à coucher | F160: Rangement (hors tabletterie)
D161: Eléments d'ameublement d'intérieur | E161: Meubles de chambre à coucher | F161: Tête de lit
D162: Eléments d'ameublement d'intérieur | E162: Meubles de chambre à coucher | F162: Table de chevet style scandinave
D163: Eléments d'ameublement d'intérieur | E163: Meubles de chambre à coucher | F163: Table de chevet style chic
D164: Eléments d'ameublement d'intérieur | E164: Meubles de chambre à coucher | F164: Commode inférieur à 100cm
D165: Eléments d'ameublement d'intérieur | E165: Meubles de chambre à coucher | F165: Tête de lit Hôtellerie similicuir déco
D166: Eléments d'ameublement d'intérieur | E166: Meubles de chambre à coucher | F166: Tête de lit Hôtellerie tissu déco
D167: Eléments d'ameublement d'intérieur | E167: Meubles de chambre à coucher | F167: Lit médicalisé à fonction de Trendelemburg
D168: Eléments d'ameublement d'intérieur | E168: Meubles de chambre à coucher | F168: Meubles ou éléments d'ameublement servant au couchage (cadre de lit, tête de lit…) ( NB: hors matelas et sommiers)
D169: Eléments d'ameublement d'intérieur | E169: Meubles de chambre à coucher | F169: Lit superposé collectivité métal tube rond
D170: Eléments d'ameublement d'intérieur | E170: Meubles de chambre à coucher | F170: Lit superposé collectivité métal tube carré
D171: Eléments d'ameublement d'intérieur | E171: Meubles de chambre à coucher | F171: Lit surélevé collectivité métal tube carré
D172: Eléments d'ameublement d'intérieur | E172: Meubles de chambre à coucher | F172: Lit collectivité métal 1 ou 2 places tube carré
D173: Eléments d'ameublement d'intérieur | E173: Meubles de chambre à coucher | F173: Lit collectivité métal 1 ou 2 places tube carré décor métal
D174: Eléments d'ameublement d'intérieur | E174: Meubles de chambre à coucher | F174: Lit collectivité métal 1 ou 2 places tube carré décor bois
D175: Eléments d'ameublement d'intérieur | E175: Meubles de chambre à coucher | F175: Lit collectivité métal 1 ou 2 places tube rond
D176: Eléments d'ameublement d'intérieur | E176: Meubles de chambre à coucher | F176: Lit collectivité métal 1 ou 2 places tube rond décor métal
D177: Eléments d'ameublement d'intérieur | E177: Meubles de chambre à coucher | F177: Lit collectivité métal 1 ou 2 places tube rond décor bois
D178: Eléments d'ameublement d'intérieur | E178: Meubles de chambre à coucher | F178: Lit vertical Hôtellerie couchage 90x190 cm
D179: Eléments d'ameublement d'intérieur | E179: Meubles de chambre à coucher | F179: Lit-coffre Hôtellerie déco à grande capacité
D180: Eléments d'ameublement d'intérieur | E180: Meubles de chambre à coucher | F180: Lit pliant Hôtellerie couchage 90x190 cm
D181: Eléments d'ameublement d'intérieur | E181: Meubles de chambre à coucher | F181: Commode entre 100 et 200 cm
D182: Eléments d'ameublement d'intérieur | E182: Meubles de chambre à coucher | F182: Commode supérieur à 200cm
D183: Eléments d'ameublement d'intérieur | E183: Meubles de chambre à coucher | F183: Dressing ouvert
D184: Eléments d'ameublement d'intérieur | E184: Meubles de chambre à coucher | F184: Lit coffre
D185: Eléments d'ameublement d'intérieur | E185: Meubles de chambre à coucher | F185: Dressing fermé
D186: Eléments d'ameublement d'intérieur | E186: Meubles de chambre à coucher | F186: Armoire dressing de 40 à 120 cm
D187: Eléments d'ameublement d'intérieur | E187: Meubles de chambre à coucher | F187: Armoire dressing de 120 à 160 cm
D188: Eléments d'ameublement d'intérieur | E188: Meubles de chambre à coucher | F188: Cadre de lit
D189: Eléments d'ameublement d'intérieur | E189: Meubles de chambre à coucher | F189: Tabletterie
B193: Literie
D195: Matelas rembourré
D197: Rayon | E197: Catégorie | F197: Exemples de produits (non-exhaustif)
D198: =$B$193 -> Literie | E198: =$D$195 -> Matelas rembourré | F198: Matelas anti-escarres pour lit médicalisé
D199: Literie | E199: Matelas rembourré | F199: Matelas économiques à ressorts ensachés pour hôtellerie de plein air
D200: Literie | E200: Matelas rembourré | F200: Matelas à ressorts ensachés pour hôtels et chambres d'hôtes
D201: Literie | E201: Matelas rembourré | F201: Matelas d'épaisseur >10cm
D202: Literie | E202: Matelas rembourré | F202: Matelas mousse haute densité pour collectivités
D203: Literie | E203: Matelas rembourré | F203: Matelas artisanal à mémoire de forme pour hôtellerie haut de gamme
D206: Matelas gonflable
D208: Rayon | E208: Catégorie | F208: Exemples de produits (non-exhaustif)
D209: =$B$193 -> Literie | E209: =$D$206 -> Matelas gonflable | F209: Matelas d'épaisseur ≤10cm
D210: =$B$193 -> Literie | E210: =$D$206 -> Matelas gonflable | F210: Matelas gonflable
D213: Sacs de couchage
D215: Rayon | E215: Catégorie | F215: Exemples de produits (non-exhaustif)
D216: =$B$193 -> Literie | E216: =D213 -> Sacs de couchage | F216: Sac de couchage
D218: Couettes, surmatelas non litiers, édredons
D220: Rayon | E220: Catégorie | F220: Exemples de produits (non-exhaustif)
D221: =$B$193 -> Literie | E221: =$D$218 -> Couettes, surmatelas non litiers, édredons | F221: Couettes
D222: Literie | E222: =$D$218 -> Couettes, surmatelas non litiers, édredons | F222: Surmatelas avec rembourrage de type non litier
D223: Literie | E223: Couettes, surmatelas non litiers, édredons | F223: Surmatelas topper à mémoire de forme pour hôtellerie
D224: Literie | E224: Couettes, surmatelas non litiers, édredons | F224: Surmatelas topper capitonné super soft pour hôtellerie
D225: Literie | E225: Couettes, surmatelas non litiers, édredons | F225: Protège-matelas Hôtellerie imperméable respirant silencieux
D226: Literie | E226: Couettes, surmatelas non litiers, édredons | F226: Protège-oreiller Hôtellerie imperméable respirant silencieux
D227: Literie | E227: Couettes, surmatelas non litiers, édredons | F227: Couette Hôtellerie 4 saisons microfibre
D228: Literie | E228: Couettes, surmatelas non litiers, édredons | F228: Couette Hôtellerie été microfibre
D229: Literie | E229: Couettes, surmatelas non litiers, édredons | F229: Edredon
D230: Literie | E230: Couettes, surmatelas non litiers, édredons | F230: Couette
D231: Literie | E231: Couettes, surmatelas non litiers, édredons | F231: Couette Hôtellerie duvet canard
D232: Literie | E232: Couettes, surmatelas non litiers, édredons | F232: Couette Hôtellerie duvet canard plus
D233: Literie | E233: Couettes, surmatelas non litiers, édredons | F233: Surmatelas non litiers
D235: Oreillers, traversins, tous types de coussins et autres produits rembourrés d'assise et de couchage
D237: Rayon | E237: Catégorie | F237: Exemples de produits (non-exhaustif)
D238: =$B$193 -> Literie | E238: =$D$235 -> Oreillers, traversins, tous types de coussins et autres produits rembourrés d'assise et de couchage | F238: Polochon
D239: =$B$193 -> Literie | E239: =$D$235 -> Oreillers, traversins, tous types de coussins et autres produits rembourrés d'assise et de couchage | F239: Traversin
... 2498 more rows

Sheet Comprendre la codification (hidden)
B1: Système de codification ecomaison
B4: ► Un outil de création de tables de correspondance entre votre catalogue et le catalogue produit ecomaison est disponible
B5: ► Les codifications DEA ne sont pas représentées ci-dessous
B8: Structure générale du code
B20: Code Rayon : XX 000 00 000 0
B22: REP | C22: _ | D22: Rayon | E22: _2 | F22: Code Rayon
B24: Articles Bricolage et Jardin - ABJ | D24: Articles de bricolage | F24: 21
B25: Articles Bricolage et Jardin - ABJ | D25: Entretien et aménagement du jardin | F25: 22
B27: Jeux et jouets - JJ | D27: Jouets | F27: 31
B28: Jeux et jouets - JJ | D28: Jouets de plein air | F28: 32
B29: Jeux et jouets - JJ | D29: Jeux de société | F29: 33
B30: Jeux et jouets - JJ | D30: Jouets cadeaux | F30: 34
B32: Construction du bâtiment - PMCB | D32: Matériaux primaires de construction | F32: 40
B33: Construction du bâtiment - PMCB | D33: Voirie, réseaux intérieurs et extérieurs | F33: =F32+1 -> 41
B34: Construction du bâtiment - PMCB | D34: Structure, maçonnerie, gros oeuvre, charpente | F34: =F33+1 -> 42
B35: Construction du bâtiment - PMCB | D35: Couverture et étanchéité | F35: 43
B36: Construction du bâtiment - PMCB | D36: Cloisonnement, plafonds | F36: 44
B37: Construction du bâtiment - PMCB | D37: Isolation thermique et acoustique | F37: 45
B38: Construction du bâtiment - PMCB | D38: Menuiseries intérieures et extérieures, fermetures | F38: 46
B39: Construction du bâtiment - PMCB | D39: Façades | F39: 47
B40: Construction du bâtiment - PMCB | D40: Revêtements des sols, murs et plafonds | F40: 48
B41: Construction du bâtiment - PMCB | D41: Quincaillerie du bâtiment | F41: 49
B42: Construction du bâtiment - PMCB | D42: Peinture, lasures et vernis, droguerie, colles et traitement, adjuvants | F42: 50
B43: Construction du bâtiment - PMCB | D43: Equipements sanitaires pour salle de bain, cuisine et WC | F43: 51
B44: Construction du bâtiment - PMCB | D44: Electricité | F44: 52
B45: Construction du bâtiment - PMCB | D45: Chauffage et traitement de l'air | F45: 53
B46: Construction du bâtiment - PMCB | D46: Eléments de jardin maçonnés et leurs pièces structurelles | F46: 54
B49: Code Catégorie Produit : 00 XXX 00 000 0
B51: REP | C51: _ | D51: Rayon | E51: Catégorie | F51: Code Produit
B53: ABJ | D53: =$D$24 -> Articles de bricolage | E53: Outillage à main et leurs accessoires | F53: 100
B55: ABJ | D55: =$D$24 -> Articles de bricolage | E55: Gros objets et machines non électriques et non thermiques et leurs accessoires | F55: =F53+1 -> 101
B56: ABJ | D56: Articles de bricolage | E56: Outils et supports de travail en hauteur | F56: =F55+1 -> 102
B57: ABJ | D57: Articles de bricolage | E57: Equipement personnel et accessoires de protection de bricolage | F57: 103
B58: ABJ | D58: Articles de bricolage | E58: Bâches, housses, filets et films de bricolage | F58: 104
B59: ABJ | D59: =$D$25 -> Entretien et aménagement du jardin | E59: Outils à main d’entretien du jardin et petits accessoires | F59: 150
B60: ABJ | D60: =$D$25 -> Entretien et aménagement du jardin | E60: Equipement personnel et accessoires de protection de jardinage | F60: =F59+1 -> 151
B61: ABJ | D61: =$D$25 -> Entretien et aménagement du jardin | E61: Pots de fleur et contenants | F61: =F60+1 -> 152
B62: ABJ | D62: Entretien et aménagement du jardin | E62: Bâches, housses, filets et films de jardinage | F62: 153
B63: ABJ | D63: Entretien et aménagement du jardin | E63: Equipements de plein air et leurs accessoires (hors bâches, filets, housses) | F63: 154
B64: ABJ | D64: Entretien et aménagement du jardin | E64: Structures extérieures non-maçonnées | F64: 155
B66: JJ | D66: =$D$27 -> Jouets | E66: Figurines d'action & accessoires | F66: 201
B67: JJ | D67: Jouets | E67: Jeux de construction & accessoires | F67: 202
B68: JJ | D68: Jouets | E68: Poupées, Poupons & accessoires | F68: 203
B69: JJ | D69: Jouets | E69: Peluches & accessoires | F69: 204
B70: JJ | D70: Jouets | E70: Jouets premier âge et préscolaire & accessoires | F70: 205
B71: JJ | D71: Jouets | E71: Véhicules miniatures & accessoires | F71: 206
B72: JJ | D72: Jouets | E72: Arts créatifs & accessoires | F72: 207
B73: JJ | D73: Jouets | E73: Jouets d'exploration et autres jouets & accessoires | F73: 208
B74: JJ | D74: =$D$28 -> Jouets de plein air | E74: Jouets porteurs à pédales & accessoires | F74: 209
B75: JJ | D75: =$D$28 -> Jouets de plein air | E75: Jouets porteurs sans pédales & accessoires | F75: 210
B76: JJ | D76: =$D$28 -> Jouets de plein air | E76: Jouets sportifs & accessoires | F76: 211
B77: JJ | D77: =$D$28 -> Jouets de plein air | E77: Jouet d'été & accessoires | F77: 212
B78: JJ | D78: =$D$28 -> Jouets de plein air | E78: Jouets d'activité à usage famillial | F78: 213
B79: JJ | D79: =$D$29 -> Jeux de société | E79: Jeux de société tous publics | F79: 214
B80: JJ | D80: Jeux de société | E80: Jeux de société adultes | F80: 215
B81: JJ | D81: Jeux de société | E81: Puzzles enfants | F81: 216
B82: JJ | D82: Jeux de société | E82: Puzzles de grand format | F82: 217
B83: JJ | D83: Jeux de société | E83: Maquettes enfants | F83: 218
B84: JJ | D84: Jeux de société | E84: Maquettes adultes | F84: 219
B85: JJ | D85: =$D$30 -> Jouets cadeaux | E85: Jouets cadeaux | F85: 220
B87: PMCB | D87: Matériaux primaires de construction | E87: Granulats | F87: 300
B88: PMCB | D88: Matériaux primaires de construction | E88: Pierre de construction, granit, grès et lave | F88: 301
B89: PMCB | D89: Matériaux primaires de construction | E89: Terre crue et éléments en terre cuite | F89: 302
B90: PMCB | D90: Matériaux primaires de construction | E90: Ciments et chaux | F90: 303
B91: PMCB | D91: Matériaux primaires de construction | E91: Mortier, béton, éléments en béton, y.c. biosourcés | F91: 304
B92: PMCB | D92: Matériaux primaires de construction | E92: Plâtre et éléments en plâtre | F92: 305
B93: PMCB | D93: Matériaux primaires de construction | E93: Bois de charpente, panneaux, planches, tablettes, tasseaux | F93: 306
B94: PMCB | D94: Matériaux primaires de construction | E94: Verre et assimilés pour assemblage | F94: 307
B95: PMCB | D95: Matériaux primaires de construction | E95: Divers produits et matériaux primaires de construction | F95: 310
B96: PMCB | D96: Voirie, réseaux intérieurs et extérieurs | E96: Enrobé de voirie, bordure et caniveau | F96: 315
B97: PMCB | D97: Voirie, réseaux intérieurs et extérieurs | E97: Réseaux d'adduction d'eau et de gaz (tuyaux et éléments intérieurs et extérieurs) | F97: 316
B98: PMCB | D98: Voirie, réseaux intérieurs et extérieurs | E98: Evacuation et assainissement des eaux pluviales et usées (goutières, raccords, traitement, drainage, évacuation) | F98: 317
B99: PMCB | D99: Voirie, réseaux intérieurs et extérieurs | E99: Cuves et réservoirs | F99: 318
B100: PMCB | D100: Voirie, réseaux intérieurs et extérieurs | E100: Eléments de voirie spéciaux et divers produits et matériaux de voirie et réseaux | F100: 321
B101: PMCB | D101: Structure, maçonnerie, gros oeuvre, charpente | E101: Eléments de charpente et contreventements | F101: 330
B102: PMCB | D102: Structure, maçonnerie, gros oeuvre, charpente | E102: Construction métallique, armatures et ferraillages | F102: 331
B103: PMCB | D103: Structure, maçonnerie, gros oeuvre, charpente | E103: Eléments préfabriqués hors blocs de béton | F103: 332
B104: PMCB | D104: Structure, maçonnerie, gros oeuvre, charpente | E104: Elements de ventilation de vide sanitaire | F104: 333
B105: PMCB | D105: Structure, maçonnerie, gros oeuvre, charpente | E105: Divers produits et matériaux de structure et charpente | F105: 336
B106: PMCB | D106: Couverture et étanchéité | E106: Eléments de couverture | F106: 345
B107: PMCB | D107: Couverture et étanchéité | E107: Produits d'étanchéité et d'imperméabilisation | F107: 346
B108: PMCB | D108: Couverture et étanchéité | E108: Divers élements de couverture et étanchéité (hors droguerie) | F108: 349
B109: PMCB | D109: Cloisonnement, plafonds | E109: Cloisons (hors plâtre et isolation) | F109: 355
B110: PMCB | D110: Cloisonnement, plafonds | E110: Ossatures métalliques | F110: 356
B111: PMCB | D111: Cloisonnement, plafonds | E111: Plafonds suspendus, plafonds tendus | F111: 357
B112: PMCB | D112: Cloisonnement, plafonds | E112: Divers produits de cloisonnement et plafonds | F112: 360
B113: PMCB | D113: Cloisonnement, plafonds | E113: Eléments en plâtre pour cloisons, plafonds | F113: 361
B114: PMCB | D114: Isolation thermique et acoustique | E114: Laines, mousse, fibres isolantes | F114: 370
B115: PMCB | D115: Isolation thermique et acoustique | E115: Eléments spéciaux d'isolation | F115: 371
B116: PMCB | D116: Menuiseries intérieures et extérieures, fermetures | E116: Portes (intérieures, coulissantes, entrée, garage, de service, technique,...) | F116: 380
B117: PMCB | D117: Menuiseries intérieures et extérieures, fermetures | E117: Fenêtres, portes fenêtres, fenêtres de toit et leurs accessoires hors fermetures | F117: 381
B118: PMCB | D118: Menuiseries intérieures et extérieures, fermetures | E118: Volets, volets roulants, persiennes, stores, brise-soleil | F118: 382
B119: PMCB | D119: Menuiseries intérieures et extérieures, fermetures | E119: Escaliers intérieurs et extérieurs | F119: 383
B120: PMCB | D120: Menuiseries intérieures et extérieures, fermetures | E120: Garde-corps, balustres et accessoires d'escaliers | F120: 384
B121: PMCB | D121: Menuiseries intérieures et extérieures, fermetures | E121: Fenêtre et porte fenêtre (cadre en bois) | F121: 385
B122: PMCB | D122: Menuiseries intérieures et extérieures, fermetures | E122: Fenêtre et porte fenêtre (cadre en métal) | F122: 386
B123: PMCB | D123: Menuiseries intérieures et extérieures, fermetures | E123: Fenêtre et porte fenêtre (cadre en PVC) | F123: 387
B124: PMCB | D124: Menuiseries intérieures et extérieures, fermetures | E124: Fenêtres, portes fenêtres, fenêtres de toit et leurs accessoires hors quincailleries | F124: 388
B125: PMCB | D125: Menuiseries intérieures et extérieures, fermetures | E125: Portail | F125: 389
B126: PMCB | D126: Menuiseries intérieures et extérieures, fermetures | E126: Portes : Huisserie bois | F126: 390
B127: PMCB | D127: Menuiseries intérieures et extérieures, fermetures | E127: Portes : Huisserie métallique | F127: 391
B128: PMCB | D128: Menuiseries intérieures et extérieures, fermetures | E128: Portes : Huisserie PVC | F128: 392
B129: PMCB | D129: Menuiseries intérieures et extérieures, fermetures | E129: Portes : Trappes en bois | F129: 393
B130: PMCB | D130: Menuiseries intérieures et extérieures, fermetures | E130: Portes : Trappes en métal | F130: 394
B131: PMCB | D131: Menuiseries intérieures et extérieures, fermetures | E131: Portes : Trappes en PVC | F131: 395
B132: PMCB | D132: Menuiseries intérieures et extérieures, fermetures | E132: Portes : vantail porte alvéolaire | F132: 396
B133: PMCB | D133: Menuiseries intérieures et extérieures, fermetures | E133: Portes : vantail porte en bois | F133: 397
B134: PMCB | D134: Menuiseries intérieures et extérieures, fermetures | E134: Portes : vantail porte en métal | F134: 398
B135: PMCB | D135: Menuiseries intérieures et extérieures, fermetures | E135: Portes : vantail porte en PVC | F135: 399
B136: PMCB | D136: Menuiseries intérieures et extérieures, fermetures | E136: Portes : vantail porte en verre (>90%) | F136: 400
B137: PMCB | D137: Menuiseries intérieures et extérieures, fermetures | E137: Portes : vantail porte vitrée | F137: 401
B138: PMCB | D138: Menuiseries intérieures et extérieures, fermetures | E138: Portes : Trappes autres | F138: 402
B139: PMCB | D139: Menuiseries intérieures et extérieures, fermetures | E139: Portes : vantail autres | F139: 403
B140: PMCB | D140: Menuiseries intérieures et extérieures, fermetures | E140: Volet battant (bois à plus de 90 %) | F140: 404
B141: PMCB | D141: Menuiseries intérieures et extérieures, fermetures | E141: Volet battant (métal à plus de 90 %) | F141: 405
B142: PMCB | D142: Menuiseries intérieures et extérieures, fermetures | E142: Volet battant (PVC à plus de 90 %) | F142: 406
B143: PMCB | D143: Menuiseries intérieures et extérieures, fermetures | E143: Volet roulant | F143: 407
B144: PMCB | D144: Menuiseries intérieures et extérieures, fermetures | E144: Divers élements de menuiserie | F144: 410
B145: PMCB | D145: Menuiseries intérieures et extérieures, fermetures | E145: Bloc - Porte (huisserie métal) | F145: 411
B146: PMCB | D146: Menuiseries intérieures et extérieures, fermetures | E146: Bloc - Porte (huisserie bois) | F146: 412
B147: PMCB | D147: Menuiseries intérieures et extérieures, fermetures | E147: Bloc - Porte (huisserie plastique) | F147: 413
B148: PMCB | D148: Menuiseries intérieures et extérieures, fermetures | E148: Bloc - Porte double vantail (huisserie métal) | F148: 545
B149: PMCB | D149: Menuiseries intérieures et extérieures, fermetures | E149: Bloc - Porte double vantail (huisserie bois) | F149: 546
B150: PMCB | D150: Menuiseries intérieures et extérieures, fermetures | E150: Bloc - Porte double vantail (huisserie plastique) | F150: 547
B151: PMCB | D151: Façades | E151: Mur-rideau | F151: 415
B152: PMCB | D152: Façades | E152: Bardage et clins | F152: 416
B153: PMCB | D153: Façades | E153: Vêtures | F153: 417
B154: PMCB | D154: Façades | E154: Panneaux sandwich de façade | F154: 418
B155: PMCB | D155: Façades | E155: Divers éléments de façade | F155: 421
B156: PMCB | D156: Revêtements des sols, murs et plafonds | E156: Pavés, dalles, plaquettes de parement en pierre | F156: 430
B157: PMCB | D157: Revêtements des sols, murs et plafonds | E157: Carrelage sol & Faïence murale | F157: 431
B158: PMCB | D158: Revêtements des sols, murs et plafonds | E158: Parquets, terrasses et lames en bois | F158: 432
B159: PMCB | D159: Revêtements des sols, murs et plafonds | E159: Lambris | F159: 433
B160: PMCB | D160: Revêtements des sols, murs et plafonds | E160: Plinthes | F160: 434
B161: PMCB | D161: Revêtements des sols, murs et plafonds | E161: Lames d'intérieur hors bois | F161: 435
B162: PMCB | D162: Revêtements des sols, murs et plafonds | E162: Sols plastiques | F162: 436
B163: PMCB | D163: Revêtements des sols, murs et plafonds | E163: Moquette de sol et murale fixe | F163: 437
B164: PMCB | D164: Revêtements des sols, murs et plafonds | E164: Papier peint et toile de verre | F164: 438
B165: PMCB | D165: Revêtements des sols, murs et plafonds | E165: Revêtement mural en fibre naturelle | F165: 439
B166: PMCB | D166: Revêtements des sols, murs et plafonds | E166: Revêtement mural avec fibre de verre | F166: 440
B167: PMCB | D167: Revêtements des sols, murs et plafonds | E167: Divers dont moulures | F167: 443
B168: PMCB | D168: Quincaillerie du bâtiment | E168: Eléments de fermeture de portes et fenêtres, gonds et pentures | F168: 450
B169: PMCB | D169: Quincaillerie du bâtiment | E169: Bas de portes | F169: 451
B170: PMCB | D170: Quincaillerie du bâtiment | E170: Accessoires de pose | F170: 452
B171: PMCB | D171: Quincaillerie du bâtiment | E171: Quincallerie et accessoire divers toute catégorie | F171: 455
B172: PMCB | D172: Peinture, lasures et vernis, droguerie, colles et traitement, adjuvants | E172: Sous-couches, préparation des sols et étanchéité | F172: 465
B173: PMCB | D173: Peinture, lasures et vernis, droguerie, colles et traitement, adjuvants | E173: Traitements des murs et toitures | F173: 467
B174: PMCB | D174: Peinture, lasures et vernis, droguerie, colles et traitement, adjuvants | E174: Peintures intérieures | F174: 468
B175: PMCB | D175: Peinture, lasures et vernis, droguerie, colles et traitement, adjuvants | E175: Colles et adhésifs | F175: 469
B176: PMCB | D176: Peinture, lasures et vernis, droguerie, colles et traitement, adjuvants | E176: Mastic, joints et mousses polyuréthanes | F176: 470
B177: PMCB | D177: Peinture, lasures et vernis, droguerie, colles et traitement, adjuvants | E177: Adjuvants | F177: 471
B178: PMCB | D178: Peinture, lasures et vernis, droguerie, colles et traitement, adjuvants | E178: Traitements bois | F178: 472
B179: PMCB | D179: Peinture, lasures et vernis, droguerie, colles et traitement, adjuvants | E179: Vernis et vitrificateurs | F179: 473
B180: PMCB | D180: Peinture, lasures et vernis, droguerie, colles et traitement, adjuvants | E180: Absorbeurs d'humidité | F180: 474
B181: PMCB | D181: Peinture, lasures et vernis, droguerie, colles et traitement, adjuvants | E181: Décapants | F181: 475
B182: PMCB | D182: Peinture, lasures et vernis, droguerie, colles et traitement, adjuvants | E182: Diluants, solvants | F182: 476
B183: PMCB | D183: Peinture, lasures et vernis, droguerie, colles et traitement, adjuvants | E183: Divers produits de droguerie du bâtiment | F183: 479
B184: PMCB | D184: Peinture, lasures et vernis, droguerie, colles et traitement, adjuvants | E184: Enduits pate | F184: 480
B185: PMCB | D185: Peinture, lasures et vernis, droguerie, colles et traitement, adjuvants | E185: Enduits poudre | F185: 481
B186: PMCB | D186: Peinture, lasures et vernis, droguerie, colles et traitement, adjuvants | E186: Peintures extérieures, yc enduits et peintures de façade | F186: 482
B187: PMCB | D187: Peinture, lasures et vernis, droguerie, colles et traitement, adjuvants | E187: Résines PU et expansive (aérosol) | F187: 483
B188: PMCB | D188: Peinture, lasures et vernis, droguerie, colles et traitement, adjuvants | E188: Traitement anti-termite | F188: 484
B189: PMCB | D189: Peinture, lasures et vernis, droguerie, colles et traitement, adjuvants | E189: Traitement des matériaux (aérosol) | F189: 485
B190: PMCB | D190: Peinture, lasures et vernis, droguerie, colles et traitement, adjuvants | E190: Traitement des matériaux hors bois | F190: 486
B191: PMCB | D191: Peinture, lasures et vernis, droguerie, colles et traitement, adjuvants | E191: Vernis et vitrificateurs et dérivés (aérosols) | F191: 487
B192: PMCB | D192: Equipements sanitaires pour salle de bain, cuisine et WC | E192: Eviers, vasques et lavabo | F192: 495
B193: PMCB | D193: Equipements sanitaires pour salle de bain, cuisine et WC | E193: Receveurs de douche et baignoires | F193: 496
B194: PMCB | D194: Equipements sanitaires pour salle de bain, cuisine et WC | E194: WC | F194: 497
B195: PMCB | D195: Equipements sanitaires pour salle de bain, cuisine et WC | E195: Pare-baignoire, pare-douche et cabines intégrales de douche | F195: 498
B196: PMCB | D196: Equipements sanitaires pour salle de bain, cuisine et WC | E196: Robinetterie et colonne de douche et bain | F196: 499
B197: PMCB | D197: Equipements sanitaires pour salle de bain, cuisine et WC | E197: Receveur de douche | F197: 501
B198: PMCB | D198: Equipements sanitaires pour salle de bain, cuisine et WC | E198: Baignoire (hors balnéo) | F198: 502
B199: PMCB | D199: Equipements sanitaires pour salle de bain, cuisine et WC | E199: Divers équipements sanitaires et accessoires vendus séparément hors robinetterie | F199: 505
B200: PMCB | D200: Electricité | E200: Fils et câbles | F200: 510
B201: PMCB | D201: Electricité | E201: Gaines et fixation | F201: 511
B202: PMCB | D202: Electricité | E202: Ascenseurs (hors machinerie) | F202: 512
B203: PMCB | D203: Electricité | E203: Caissons de télécommunication | F203: 513
B204: PMCB | D204: Electricité | E204: Supports pour lignes aériennes | F204: 514
B205: PMCB | D205: Electricité | E205: Divers produits d'électricité hors prises | F205: 516
B206: PMCB | D206: Chauffage et traitement de l'air | E206: Cheminées et inserts | F206: 525
B207: PMCB | D207: Chauffage et traitement de l'air | E207: Fumisterie | F207: 526
B208: PMCB | D208: Chauffage et traitement de l'air | E208: Chauffage central | F208: 527
B209: PMCB | D209: Chauffage et traitement de l'air | E209: Radiateurs | F209: 528
B210: PMCB | D210: Chauffage et traitement de l'air | E210: Poêles non-électriques | F210: 529
B211: PMCB | D211: Chauffage et traitement de l'air | E211: Traitement de l'air et ventilation | F211: 530
B212: PMCB | D212: Eléments de jardin maçonnés et leurs pièces structurelles | E212: Abris de jardins, serres maçonnées, pergolas et vérandas | F212: 535
B213: PMCB | D213: Eléments de jardin maçonnés et leurs pièces structurelles | E213: Clôtures maçonnées et éléments de protection de la parcelle | F213: 536
B214: PMCB | D214: Eléments de jardin maçonnés et leurs pièces structurelles | E214: Piscine et accessoires de piscine | F214: 537
B215: PMCB | D215: Eléments de jardin maçonnés et leurs pièces structurelles | E215: Divers produits de jardins associés à la construction | F215: 540
B216: PMCB | D216: Eléments de jardin maçonnés et leurs pièces structurelles | E216: Eléments de construction pour exploitation agricole | F216: 538
B219: Code Matériaux : 00 000 XX 000 0
B221: Type de matériaux | C221: _ | D221: Matériaux | E221: Exemples de matériaux | F221: Code matériaux | G221: Colonne1
B223: 1 - Métal | D223: Métal >90% | E223: Ferreux (Acier, Acier inoxydable, Fer forgé, Fonte, Acier au carbone, acier zingué, tole, alliages…) et non-ferreux (Aluminium, plomb, zinc, étain, chrome, cuivre, bronze, argent, zamac, nickel, titane, laiton...) | F223: 28
B224: 1 - Métal | D224: Assemblage avec métal >50% et autres matériaux | E224: Assemblage métal-bois, métal-plastique, métal-inertes … | F224: 02
B226: 2 - Bois et dérivés de bois | D226: Massif et assimilés certifiés >90% | E226: Toutes essences (douglas, sapin, chène, hêtre, pin maritime, pin sylvestre, moabi , mélèze, teak, épicea ...), dont contreplaqué, contrecollé, lamellé, plaqué | F226: 52
B227: 2 - Bois et dérivés de bois | D227: Massif et assimilés certifiés >75% | E227: Toutes essences (douglas, sapin, chène, hêtre, pin maritime, pin sylvestre, moabi , mélèze, teak, épicea ...), dont contreplaqué, contrecollé, lamellé, plaqué | F227: 20
B228: 2 - Bois et dérivés de bois | D228: Massif et assimilés >90% | E228: Toutes essences (douglas, sapin, chène, hêtre, pin maritime, pin sylvestre, moabi , mélèze, teak, épicea ...), dont contreplaqué, contrecollé, lamellé, plaqué | F228: 53
B229: 2 - Bois et dérivés de bois | D229: Massif et assimilés >75% | E229: Toutes essences (douglas, sapin, chène, hêtre, pin maritime, pin sylvestre, moabi , mélèze, teak, épicea ...), dont contreplaqué, contrecollé, lamellé, plaqué | F229: 21
B230: 2 - Bois et dérivés de bois | D230: Panneaux de particules ou OSB certifiés >90% | E230: Panneaux de particules, OSB | F230: 59
B231: 2 - Bois et dérivés de bois | D231: Panneaux de particules ou OSB certifiés >75% | E231: Panneaux de particules, OSB | F231: 60
... 119 more rows

Sheet Générateur de codes
A1: Générateur de code produit - Outillage et Bâtiment | H1: MASQUER | I1: MASQUER | K1: =Consignes!$A$7 -> Version 1.10 - 10 février 2023
A2: Sélectionner les éléments dans les cases vertes
A5: 1 - Choisissez une REP : | G5: Code: | H5: 1 | I5: =VLOOKUP(D5,'Param masqué'!$B$3:$C$19,2,FALSE) -> 
A8: 2 - Choisissez un rayon : | G8: =IF(D8="","",VLOOKUP(D8,'Param masqué'!$D$3:$E$19,2,FALSE)) ->  | H8: =LEFT(A8,1)+0 -> 2 | I8: =I5&"_"&G8 -> 
A10: =H8+1&" - Choisissez une catégorie de produit : " -> 3 - Choisissez une catégorie de produit : | E10: _ | G10: =IF(D10="","",VLOOKUP(D10,'Param masqué'!$J$3:$K$144,2,FALSE)) ->  | H10: =LEFT(A10,1)+0 -> 3 | I10: =I5&"_"&G10 -> 
A12: =IF(I12=0,"",H10+1&" - Choisissez votre unité fonctionnelle :") ->  | H12: =IF(I12=0,H10,LEFT(A12,1)+0) -> 3 | I12: =IFERROR(VLOOKUP(I10,'Param masqué'!W:Y,3,FALSE),0) -> 0
I13: =IF(OR(D12="Prix en fonction d'une autre unité fonctionelle",D12="Prix en m2"),I10&"F",IF(D12="Prix en m3",I10&"G","")) -> 
A14: =H12+1&" - Choisissez un matériau : " -> 4 - Choisissez un matériau : | G14: =IF(D14="","",VLOOKUP(D14,'Param masqué'!$R$3:$T$80,3,FALSE)) ->  | H14: =LEFT(A14,1)+0 -> 4 | I14: =IF(OR($D$12="Prix en fonction d'une autre unité fonctionelle",$D$12="Prix en m2",$D$12="Prix en m3"),VLOOKUP(I13,'Param masqué'!AH:AK,4,FALSE),VLOOKUP(I10,'Param masqué'!AH:AK,4,FALSE)) -> 
A16: =H14+1&" - Choisissez la caractéristique (ou conditionnement) en fonction du type de produit : " -> 5 - Choisissez la caractéristique (ou conditionnement) en fonction du type de produit : | G16: =IF(D16="","",VLOOKUP(D16,'Param masqué'!$AE$1:$AF$59,2,FALSE)) ->  | H16: =LEFT(A16,1)+0 -> 5
D18: =IF(OR($G$8='Param masqué'!$E$15,'Générateur de codes'!$G$8='Param masqué'!$E$19,'Générateur de codes'!$G$10='Param masqué'!$K$92),"Attention, ce produit relève peut-être d'une autre filière REP. Pensez à bien vérifier son appartenance à la "&'Générateur de codes'!$D$5,"") -> 
A20: D'où le code produit: | D20: =IF(OR(D16="",D14="",D10="",D8=""),"",CONCATENATE(G8,G10,G14,G16,0)) -> 
D21: =IF(D20="","",D8&" - "&D10&" en "&D14&" "&D16) -> 
A22: =IF(D24="","","Le montant de l'éco-participation en "&F24&" est :") -> 
A24: Vous pouvez le paramétrer le taux de TVA | C24: HT : | D24: =IFERROR(VLOOKUP('Générateur de codes'!$D$20,'Liste des tarifs'!$C:$J,8,FALSE),"") ->  | F24: =IFERROR(VLOOKUP('Générateur de codes'!$D$20,'Liste des tarifs'!$C:$J,7,FALSE),"") -> 
B25: 0.2 | C25: TTC : | D25: =IF(D24="","",D24*(1+$B$25)) ->  | F25: =IFERROR(VLOOKUP('Générateur de codes'!$D$20,'Liste des tarifs'!$C:$J,7,FALSE),"") -> 
A27: Si applicable, indiquez ici le poids de votre produit en kg ou la longueur en m ou le volume en m3 ou la surface en m² :
D29: =IFERROR(IF(D27="","",IF(F24="€ / Tonne",IF(D27*D24/1000<0.01,"Attention, le prix unitaire calculé est inférieur à 1ct, nous vous conseillons d'afficher le barème applicable si vous ne pouvez afficher le montant exact",""),"")),"") -> 
C30: soit : | D30: =IFERROR(IF(D27="","",IF(F24="€ / Tonne",D27*D24/1000,D27*D24)),"") ->  | F30: HT
A32: NB :
A33: penser à actionner le bouton "RESET" avant de faire une nouvelle génération. le montant TTC de l’éco-participation est donné à titre indicatif ; le barème applicable est le barème HT.

Sheet Barème par matériau
A1: Barème par matériau PMCB | E1: MASQUER | F1: MASQUER | H1: =Consignes!$A$7 -> Version 1.10 - 10 février 2023
A2: Sélectionner les éléments dans les cases vertes
A6: =1&" - Choisissez un type de matériau : " -> 1 - Choisissez un type de matériau : | E6: =LEFT(A6,1)+0 -> 1
A8: =IFERROR(IF(#REF!="Abs","Précisez le matériau majoritaire :","Précisez le rembourrage :"),"") ->  | F8: =IF(D8="","",VLOOKUP(D8,'Param masqué'!$AU$2:$AV$12,2,FALSE)) -> 
A10: =E6+1&" - Choisissez le matériau précis : " -> 2 - Choisissez le matériau précis : | E10: =LEFT(A10,1)+0 -> 2 | F10: =VLOOKUP(D8,'Param masqué'!$AU$2:$AW$12,3,FALSE) -> 
A14: Le montant de l'éco-participation (€/Tonne mise en marché):
A16: Vous pouvez le paramétrer le taux de TVA | C16: HT : | D16: =IFERROR(VLOOKUP('Barème par matériau'!$D$19,'PMCB - Grille d''éco-part'!$D$5:$G$49,4,FALSE),"") -> 
B17: 0.2 | C17: TTC : | D17: =IF(D16="","",D16*(1+$B$17)) -> 
A19: D'où le code de déclaration matériau : | D19: =IF(D12="","",IF(F10=11,"50"&VLOOKUP(D12,'Param masqué'!$AZ$2:$BA$56,2,FALSE)&"000000","40310"&VLOOKUP(D12,'Param masqué'!$AZ$2:$BA$56,2,FALSE)&"0000")) -> 

Sheet Param masqué (hidden)
B1: REP | C1: _ | D1: Rayon | E1: Code Rayon | G1: REP | H1: _ | I1: Rayon | J1: Catégorie | K1: Code Produit | Q1: Type de matériaux | R1: Matériaux | S1: Exemples de matériaux | T1: Code matériaux | AC1: Type de mesure | AD1: Mode de calcul | AE1: Périmètres produits d'application | AF1: Code Mesure | AH1: code produit | AI1: Tranches de dimensions | AJ1: unité | AK1: meta cat | AP1: Tranches de dimensions | AQ1: unité | AR1: meta cat | AZ1: Cat1
AH2: A_100 | AI2: Eléments de toutes dimensions et poids | AJ2: € / Tonne | AK2: DimT | AP2: Eléments de toutes dimensions et poids (T) | AQ2: € / Tonne | AR2: DimT | AU2: 1 - Métal (Cat. a du décret) | AV2: Cat_1 | AW2: 1 | AY2: 28 | AZ2: Métal >90% | BA2: =VLOOKUP(AZ2,'Comprendre la codification'!$D$223:$F$301,3,FALSE) -> 28 | BC2: Prix au poids | BE2: Prix au poids
A3: =E3 -> 21 | B3: Articles Bricolage et Jardin - ABJ | C3: A | D3: Articles de bricolage | E3: =VLOOKUP(D3,'Comprendre la codification'!$D$20:$F$42,3,FALSE) -> 21 | G3: ABJ | H3: ="A_"&VLOOKUP(I3,$D$3:$E$19,2,FALSE) -> A_21 | I3: Articles de bricolage | J3: Outillage à main et leurs accessoires | K3: =VLOOKUP(J3,'Comprendre la codification'!$E$49:$F$216,2,FALSE) -> 100 | M3: 1 - Métal | N3: MAT_1 | O3: 1 | P3: MAT_1 | Q3: 1 - Métal | R3: Métal >90% | S3: Ferreux (Acier, Acier inoxydable, Fer forgé, Fonte, Acier au carbone, acier zingué, tole, alliages…) et non-ferreux (Aluminium, plomb, zinc, étain, chrome, cuivre, bronze, argent, zamac, nickel, titane, laiton...) | T3: =VLOOKUP(R3,'Comprendre la codification'!$D$219:$F$301,3,FALSE) -> 28 | W3: B_300 | AC3: Général | AD3: € / Tonne | AE3: Eléments de toutes dimensions et poids (T) | AF3: 000 | AH3: A_101 | AI3: Eléments de toutes dimensions et poids | AJ3: € / Tonne | AK3: DimT | AP3: <13mm | AQ3: € / m2 | AR3: Cloison | AU3: 2 - Bois et dérivés de bois. (Cat. b du décret) | AV3: Cat_2 | AW3: 2 | AY3: 02 | AZ3: Assemblage avec métal >50% et autres matériaux | BA3: =VLOOKUP(AZ3,'Comprendre la codification'!$D$223:$F$301,3,FALSE) -> 02 | BC3: Prix en fonction d'une autre unité fonctionelle | BE3: Prix en m2
A4: =E4 -> 22 | B4: Articles Bricolage et Jardin - ABJ | C4: A | D4: Entretien et aménagement du jardin | E4: =VLOOKUP(D4,'Comprendre la codification'!$D$20:$F$42,3,FALSE) -> 22 | G4: ABJ | H4: ="A_"&VLOOKUP(I4,$D$3:$E$19,2,FALSE) -> A_21 | I4: Articles de bricolage | J4: Gros objets et machines non électriques et non thermiques et leurs accessoires | K4: =VLOOKUP(J4,'Comprendre la codification'!$E$49:$F$216,2,FALSE) -> 101 | M4: 2 - Bois et dérivés de bois | N4: MAT_2 | O4: 2 | P4: MAT_1 | Q4: 1 - Métal | R4: Assemblage avec métal >50% et autres matériaux | S4: Assemblage métal-bois, métal-plastique, métal-inertes … | T4: =VLOOKUP(R4,'Comprendre la codification'!$D$219:$F$301,3,FALSE) -> 02 | W4: Granulats hors pierre >90% | X4: =VLOOKUP(W4,R:T,3,FALSE) -> 85 | AC4: Général | AD4: € / m2 | AE4: Eléments de toutes dimensions et poids (m²) | AF4: 101 | AH4: A_102 | AI4: Eléments de toutes dimensions et poids | AJ4: € / Tonne | AK4: DimT | AP4: >= 13mm | AQ4: € / m2 | AR4: Cloison | AU4: 3 - Papier carton (Cat. j du décret) | AV4: Cat_3 | AW4: 3 | AZ4: Cat2 | BE4: Prix en m3
A5: 40 | B5: Construction du bâtiment - PMCB | C5: B | D5: Matériaux primaires de construction | E5: =VLOOKUP(D5,'Comprendre la codification'!$D$20:$F$46,3,FALSE) -> 40 | G5: ABJ | H5: A_21 | I5: Articles de bricolage | J5: Outils et supports de travail en hauteur | K5: =VLOOKUP(J5,'Comprendre la codification'!$E$49:$F$216,2,FALSE) -> 102 | M5: 3 - Papier carton | N5: MAT_3 | O5: 3 | W5: B_301 | AC5: Général | AD5: € / m3 | AE5: Eléments de toutes dimensions et poids (m3) | AF5: 102 | AH5: A_103 | AI5: Eléments de toutes dimensions et poids | AJ5: € / Tonne | AK5: DimT | AP5: Fenêtre <= 1,5 m² | AQ5: € / m2 | AR5: Fen | AU5: 4 - Matériaux et fibres d'origine végétal ou animal autres que bois et papier, carton (Cat. j du décret) | AV5: Cat_4 | AW5: 4 | AY5: 53 | AZ5: Massif et assimilés >90% | BA5: =VLOOKUP(AZ5,'Comprendre la codification'!$D$223:$F$301,3,FALSE) -> 53
A6: 41 | B6: Construction du bâtiment - PMCB | C6: B | D6: Voirie, réseaux intérieurs et extérieurs | E6: =VLOOKUP(D6,'Comprendre la codification'!$D$20:$F$46,3,FALSE) -> 41 | G6: ABJ | H6: A_21 | I6: Articles de bricolage | J6: Equipement personnel et accessoires de protection de bricolage | K6: =VLOOKUP(J6,'Comprendre la codification'!$E$49:$F$216,2,FALSE) -> 103 | M6: 4 - Matériaux et fibres d'origine végétal ou animal autres que bois et papier, carton | N6: MAT_4 | O6: 4 | P6: MAT_2 | Q6: 2 - Bois et dérivés de bois | R6: Massif et assimilés certifiés >90% | S6: Toutes essences (douglas, sapin, chène, hêtre, pin maritime, pin sylvestre, moabi , mélèze, teak, épicea ...), dont contreplaqué, contrecollé, lamellé, plaqué | T6: =VLOOKUP(R6,'Comprendre la codification'!$D$219:$F$301,3,FALSE) -> 52 | W6: Pierre calcaire >90% | X6: =VLOOKUP(W6,R:T,3,FALSE) -> 86 | AC6: Général | AD6: € / ml | AE6: Eléments de toutes dimensions et poids (mL) | AF6: 908 | AH6: A_104 | AI6: Eléments de toutes dimensions et poids | AJ6: € / Tonne | AK6: DimT | AP6: 1,5m² < Fenêtre < 3,5 m² | AQ6: € / m2 | AR6: Fen | AU6: 5 - Plastique, matériaux et fibres synthétiques (Cat. f du décret) | AV6: Cat_5 | AW6: 5 | AY6: 61 | AZ6: Panneaux de particules ou OSB >90% | BA6: =VLOOKUP(AZ6,'Comprendre la codification'!$D$223:$F$301,3,FALSE) -> 61
A7: 42 | B7: Construction du bâtiment - PMCB | C7: B | D7: Structure, maçonnerie, gros oeuvre, charpente | E7: =VLOOKUP(D7,'Comprendre la codification'!$D$20:$F$46,3,FALSE) -> 42 | G7: ABJ | H7: A_21 | I7: Articles de bricolage | J7: Bâches, housses, filets et films de bricolage | K7: =VLOOKUP(J7,'Comprendre la codification'!$E$49:$F$216,2,FALSE) -> 104 | M7: 5 - Plastique, matériaux et fibres synthétiques | N7: MAT_5 | O7: 5 | P7: MAT_2 | Q7: 2 - Bois et dérivés de bois | R7: Massif et assimilés certifiés >75% | S7: Toutes essences (douglas, sapin, chène, hêtre, pin maritime, pin sylvestre, moabi , mélèze, teak, épicea ...), dont contreplaqué, contrecollé, lamellé, plaqué | T7: =VLOOKUP(R7,'Comprendre la codification'!$D$219:$F$301,3,FALSE) -> 20 | W7: B_302 | AC7: Général | AD7: € / unité | AE7: Eléments de toutes dimensions et poids (U) | AF7: 907 | AH7: A_105 | AI7: Eléments de toutes dimensions et poids | AJ7: € / Tonne | AK7: DimT | AP7: Fenêtre >= 3,5 m² | AQ7: € / m2 | AR7: Fen | AU7: 6 - Verre et parois vitrées (Cat. d du décret) | AV7: Cat_6 | AW7: 6 | AY7: 62 | AZ7: Dérivés de bois >90% | BA7: =VLOOKUP(AZ7,'Comprendre la codification'!$D$223:$F$301,3,FALSE) -> 62
A8: 43 | B8: Construction du bâtiment - PMCB | C8: B | D8: Couverture et étanchéité | E8: =VLOOKUP(D8,'Comprendre la codification'!$D$20:$F$46,3,FALSE) -> 43 | G8: ABJ | H8: A_22 | I8: Entretien et aménagement du jardin | J8: Outils à main d’entretien du jardin et petits accessoires | K8: =VLOOKUP(J8,'Comprendre la codification'!$E$49:$F$216,2,FALSE) -> 150 | M8: 6 - Verre et parois vitrées | N8: MAT_6 | O8: 6 | P8: MAT_2 | Q8: 2 - Bois et dérivés de bois | R8: Massif et assimilés >90% | S8: Toutes essences (douglas, sapin, chène, hêtre, pin maritime, pin sylvestre, moabi , mélèze, teak, épicea ...), dont contreplaqué, contrecollé, lamellé, plaqué | T8: =VLOOKUP(R8,'Comprendre la codification'!$D$219:$F$301,3,FALSE) -> 53 | W8: Terre cuite ou crue >90% | X8: =VLOOKUP(W8,R:T,3,FALSE) -> 89 | AH8: A_150 | AI8: Eléments de toutes dimensions et poids | AJ8: € / Tonne | AK8: DimT | AP8: Par lot ou par unité < 300 g | AQ8: € / Unité | AR8: Lot | AU8: 7 - Plâtre (Cat. e du décret) | AV8: Cat_7 | AW8: 7 | AY8: 01 | AZ8: Assemblage de bois, dérivés de bois à plus de 50% avec d'autres matériaux ou bois composite (hors verre) | BA8: =VLOOKUP(AZ8,'Comprendre la codification'!$D$223:$F$301,3,FALSE) -> 01
A9: 44 | B9: Construction du bâtiment - PMCB | C9: B | D9: Cloisonnement, plafonds | E9: =VLOOKUP(D9,'Comprendre la codification'!$D$20:$F$46,3,FALSE) -> 44 | G9: ABJ | H9: A_22 | I9: Entretien et aménagement du jardin | J9: Equipement personnel et accessoires de protection de jardinage | K9: =VLOOKUP(J9,'Comprendre la codification'!$E$49:$F$216,2,FALSE) -> 151 | M9: 7 - Plâtre | N9: MAT_7 | O9: 7 | P9: MAT_2 | Q9: 2 - Bois et dérivés de bois | R9: Massif et assimilés >75% | S9: Toutes essences (douglas, sapin, chène, hêtre, pin maritime, pin sylvestre, moabi , mélèze, teak, épicea ...), dont contreplaqué, contrecollé, lamellé, plaqué | T9: =VLOOKUP(R9,'Comprendre la codification'!$D$219:$F$301,3,FALSE) -> 21 | W9: B_303 | AC9: Tranches | AD9: € / unité | AE9: < 1m | AF9: =VLOOKUP(AE9,'Comprendre la codification'!$E$314:$F$363,2,FALSE) -> 103 | AH9: A_151 | AI9: Eléments de toutes dimensions et poids | AJ9: € / Tonne | AK9: DimT | AP9: Par lot ou par unité < 1 kg | AQ9: € / Unité | AR9: Lot | AU9: 8- Laines de verre et laines de roches (Cat. h et i du décret) | AV9: Cat_8 | AW9: 8 | AZ9: Cat3
A10: 45 | B10: Construction du bâtiment - PMCB | C10: B | D10: Isolation thermique et acoustique | E10: =VLOOKUP(D10,'Comprendre la codification'!$D$20:$F$46,3,FALSE) -> 45 | G10: ABJ | H10: A_22 | I10: Entretien et aménagement du jardin | J10: Pots de fleur et contenants | K10: =VLOOKUP(J10,'Comprendre la codification'!$E$49:$F$216,2,FALSE) -> 152 | M10: 8 - Laines de verre et laines de roches | N10: MAT_8 | O10: 8 | P10: MAT_2 | Q10: 2 - Bois et dérivés de bois | R10: Panneaux de particules ou OSB certifiés >90% | S10: Panneaux de particules, OSB | T10: =VLOOKUP(R10,'Comprendre la codification'!$D$219:$F$301,3,FALSE) -> 59 | W10: Chaux >90% | X10: =VLOOKUP(W10,R:T,3,FALSE) -> 95 | AC10: Tranches | AD10: € / unité | AE10: >= 1m | AF10: =VLOOKUP(AE10,'Comprendre la codification'!$E$314:$F$363,2,FALSE) -> 104 | AH10: A_152 | AI10: Eléments de toutes dimensions et poids | AJ10: € / Tonne | AK10: DimT | AP10: Par lot ou par unité < 5 kg | AQ10: € / Unité | AR10: Lot | AU10: 9 - Membranes bitumineuses (Cat. g du décret) | AV10: Cat_9 | AW10: 9 | AY10: 19 | AZ10: Papier carton >50% avec d'autres matériaux (hors verre) | BA10: =VLOOKUP(AZ10,'Comprendre la codification'!$D$223:$F$301,3,FALSE) -> 19
A11: 46 | B11: Construction du bâtiment - PMCB | C11: B | D11: Menuiseries intérieures et extérieures, fermetures | E11: =VLOOKUP(D11,'Comprendre la codification'!$D$20:$F$46,3,FALSE) -> 46 | G11: ABJ | H11: A_22 | I11: Entretien et aménagement du jardin | J11: Bâches, housses, filets et films de jardinage | K11: =VLOOKUP(J11,'Comprendre la codification'!$E$49:$F$216,2,FALSE) -> 153 | M11: 9 - Membranes bitumineuses | N11: MAT_9 | O11: 9 | P11: MAT_2 | Q11: 2 - Bois et dérivés de bois | R11: Panneaux de particules ou OSB certifiés >75% | S11: Panneaux de particules, OSB | T11: =VLOOKUP(R11,'Comprendre la codification'!$D$219:$F$301,3,FALSE) -> 60 | W11: Ciment >90% | X11: =VLOOKUP(W11,R:T,3,FALSE) -> 90 | AC11: Tranches | AD11: € / m2 | AE11: >= 13mm | AF11: =VLOOKUP(AE11,'Comprendre la codification'!$E$314:$F$363,2,FALSE) -> 105 | AH11: A_153 | AI11: Eléments de toutes dimensions et poids | AJ11: € / Tonne | AK11: DimT | AP11: < 1m | AQ11: € / Unité | AR11: Evier | AU11: 10 - Autres mix matériaux ou matériaux non classés ou non spécifiés (produits appartenant aux catégories a,b, d, e, f, g, h, i et j et non spécifiés par l'entreprise) | AV11: Cat_10 | AW11: 10 | AZ11: Cat4
A12: 47 | B12: Construction du bâtiment - PMCB | C12: B | D12: Façades | E12: =VLOOKUP(D12,'Comprendre la codification'!$D$20:$F$46,3,FALSE) -> 47 | G12: ABJ | H12: A_22 | I12: Entretien et aménagement du jardin | J12: Equipements de plein air et leurs accessoires (hors bâches, filets, housses) | K12: =VLOOKUP(J12,'Comprendre la codification'!$E$49:$F$216,2,FALSE) -> 154 | M12: 10 - Autres mix matériaux ou matériaux non classés ou non spécifiés | N12: MAT_10 | O12: 10 | P12: MAT_2 | Q12: 2 - Bois et dérivés de bois | R12: Panneaux de particules ou OSB >90% | S12: Panneaux de particules, OSB | T12: =VLOOKUP(R12,'Comprendre la codification'!$D$219:$F$301,3,FALSE) -> 61 | W12: B_304 | Y12: FOR | AC12: Tranches | AD12: € / m2 | AE12: <13mm | AF12: =VLOOKUP(AE12,'Comprendre la codification'!$E$314:$F$363,2,FALSE) -> 106 | AH12: A_154 | AI12: Eléments de toutes dimensions et poids | AJ12: € / Tonne | AK12: DimT | AP12: >= 1m | AQ12: € / Unité | AR12: Evier | AU12: 11 - Mortiers, enduits, peintures, vernis, résines, produits de préparation (Cat. c du décret) | AV12: Cat_11 | AW12: 11 | AY12: 55 | AZ12: Matériaux bio sourcés ou textiles non synthétiques >90% | BA12: =VLOOKUP(AZ12,'Comprendre la codification'!$D$223:$F$301,3,FALSE) -> 55
A13: 48 | B13: Construction du bâtiment - PMCB | C13: B | D13: Revêtements des sols, murs et plafonds | E13: =VLOOKUP(D13,'Comprendre la codification'!$D$20:$F$46,3,FALSE) -> 48 | G13: ABJ | H13: A_22 | I13: Entretien et aménagement du jardin | J13: Structures extérieures non-maçonnées | K13: =VLOOKUP(J13,'Comprendre la codification'!$E$49:$F$216,2,FALSE) -> 155 | M13: 11 - Mortiers, enduits, peintures, vernis, résines, produits de préparation | N13: MAT_11 | O13: 11 | P13: MAT_2 | Q13: 2 - Bois et dérivés de bois | R13: Panneaux de particules ou OSB >75% | S13: Panneaux de particules, OSB | T13: =VLOOKUP(R13,'Comprendre la codification'!$D$219:$F$301,3,FALSE) -> 25 | W13: Béton >90% | X13: =VLOOKUP(W13,R:T,3,FALSE) -> 74 | AC13: Tranches | AD13: € / unité | AE13: Par lot ou par unité < 5 kg | AF13: =VLOOKUP(AE13,'Comprendre la codification'!$E$314:$F$363,2,FALSE) -> 107 | AH13: A_155 | AI13: Eléments de toutes dimensions et poids | AJ13: € / Tonne | AK13: DimT | AP13: Radiateur < 1 mètre (plus grande largeur ou hauteur) | AQ13: € / Unité | AR13: Rad | AY13: 04 | AZ13: Matériaux bio sourcés ou textiles non synthétiques >50% | BA13: =VLOOKUP(AZ13,'Comprendre la codification'!$D$223:$F$301,3,FALSE) -> 04
A14: 49 | B14: Construction du bâtiment - PMCB | C14: B | D14: Quincaillerie du bâtiment | E14: =VLOOKUP(D14,'Comprendre la codification'!$D$20:$F$46,3,FALSE) -> 49 | M14: 12 - Matériaux inertes | N14: MAT_12 | O14: 12 | P14: MAT_2 | Q14: 2 - Bois et dérivés de bois | R14: Dérivés de bois >90% | S14: Bois composite, MDF, HDF, alvéolaire, stratifé, HPL…. | T14: =VLOOKUP(R14,'Comprendre la codification'!$D$219:$F$301,3,FALSE) -> 62 | W14: Béton cellulaire >90% | X14: =VLOOKUP(W14,R:T,3,FALSE) -> 96 | AC14: Tranches | AD14: € / unité | AE14: Par lot ou par unité < 1 kg | AF14: =VLOOKUP(AE14,'Comprendre la codification'!$E$314:$F$363,2,FALSE) -> 108 | AH14: B_300 | AI14: Eléments de toutes dimensions et poids | AJ14: € / Tonne | AK14: DimT | AP14: Radiateur > 1 mètre (plus grande largeur ou hauteur) | AQ14: € / Unité | AR14: Rad | AY14: 63 | AZ14: Caoutchouc naturel >90% | BA14: =VLOOKUP(AZ14,'Comprendre la codification'!$D$223:$F$301,3,FALSE) -> 63
A15: 50 | B15: Construction du bâtiment - PMCB | C15: B | D15: Peinture, lasures et vernis, droguerie, colles et traitement, adjuvants | E15: =VLOOKUP(D15,'Comprendre la codification'!$D$20:$F$46,3,FALSE) -> 50 | G15: PMCB | H15: ="B_"&VLOOKUP(I15,$D$3:$E$19,2,FALSE) -> B_40 | I15: Matériaux primaires de construction | J15: Granulats | K15: =VLOOKUP(J15,'Comprendre la codification'!$E$49:$F$216,2,FALSE) -> 300 | P15: MAT_2 | Q15: 2 - Bois et dérivés de bois | R15: Assemblage de bois, dérivés de bois à plus de 50% avec d'autres matériaux ou bois composite (hors verre) | S15: Assemblage bois-métal, bois-plastique … | T15: =VLOOKUP(R15,'Comprendre la codification'!$D$219:$F$301,3,FALSE) -> 01 | W15: Matériaux bio sourcés ou textiles non synthétiques >90% | X15: =VLOOKUP(W15,R:T,3,FALSE) -> 55 | AC15: Tranches | AD15: € / unité | AE15: Par lot ou par unité < 300 g | AF15: =VLOOKUP(AE15,'Comprendre la codification'!$E$314:$F$363,2,FALSE) -> 109 | AH15: B_301 | AI15: Eléments de toutes dimensions et poids | AJ15: € / Tonne | AK15: DimT | AP15: Eléments de toutes dimensions et poids (U) | AQ15: € / Unité | AR15: DimU | AY15: 64 | AZ15: Caoutchouc naturel >50% | BA15: =VLOOKUP(AZ15,'Comprendre la codification'!$D$223:$F$301,3,FALSE) -> 64
A16: 51 | B16: Construction du bâtiment - PMCB | C16: B | D16: Equipements sanitaires pour salle de bain, cuisine et WC | E16: =VLOOKUP(D16,'Comprendre la codification'!$D$20:$F$46,3,FALSE) -> 51 | G16: PMCB | H16: ="B_"&VLOOKUP(I16,$D$3:$E$19,2,FALSE) -> B_40 | I16: Matériaux primaires de construction | J16: Pierre de construction, granit, grès et lave | K16: =VLOOKUP(J16,'Comprendre la codification'!$E$49:$F$216,2,FALSE) -> 301 | W16: Mortier >90% | X16: =VLOOKUP(W16,R:T,3,FALSE) -> 92 | AC16: Tranches | AD16: € / unité | AE16: Par lot de 2 | AF16: =VLOOKUP(AE16,'Comprendre la codification'!$E$314:$F$363,2,FALSE) -> 110 | AH16: B_302 | AI16: Eléments de toutes dimensions et poids | AJ16: € / Tonne | AK16: DimT | AP16: Eléments de toutes dimensions et poids (m²) | AQ16: € / m2 | AR16: Dim_2 | AZ16: Cat5
A17: 52 | B17: Construction du bâtiment - PMCB | C17: B | D17: Electricité | E17: =VLOOKUP(D17,'Comprendre la codification'!$D$20:$F$46,3,FALSE) -> 52 | G17: PMCB | H17: B_40 | I17: Matériaux primaires de construction | J17: Terre crue et éléments en terre cuite | K17: =VLOOKUP(J17,'Comprendre la codification'!$E$49:$F$216,2,FALSE) -> 302 | P17: MAT_3 | Q17: 3 - Papier carton | R17: Papier carton >50% avec d'autres matériaux (hors verre) | S17: Papier, Carton, Compact, Papier Kraft | T17: =VLOOKUP(R17,'Comprendre la codification'!$D$219:$F$301,3,FALSE) -> 19 | W17: Non connu ou non spécifié par l'entreprise | X17: =VLOOKUP(W17,R:T,3,FALSE) -> 00 | AC17: Tranches | AD17: € / unité | AE17: Par lot de 4 | AF17: =VLOOKUP(AE17,'Comprendre la codification'!$E$314:$F$363,2,FALSE) -> 111 | AH17: B_303 | AI17: Eléments de toutes dimensions et poids | AJ17: € / Tonne | AK17: DimT | AP17: Eléments de toutes dimensions et poids (m3) | AQ17: € / m3 | AR17: Dim_3 | AY17: 41 | AZ17: Plastiques (mono résine) >90% | BA17: =VLOOKUP(AZ17,'Comprendre la codification'!$D$223:$F$301,3,FALSE) -> 41
A18: 53 | B18: Construction du bâtiment - PMCB | C18: B | D18: Chauffage et traitement de l'air | E18: =VLOOKUP(D18,'Comprendre la codification'!$D$20:$F$46,3,FALSE) -> 53 | G18: PMCB | H18: B_40 | I18: Matériaux primaires de construction | J18: Ciments et chaux | K18: =VLOOKUP(J18,'Comprendre la codification'!$E$49:$F$216,2,FALSE) -> 303 | W18: B_305 | AC18: Tranches | AD18: € / unité | AE18: Par lot de 1000 | AF18: =VLOOKUP(AE18,'Comprendre la codification'!$E$314:$F$363,2,FALSE) -> 089 | AH18: B_304 | AI18: Eléments de toutes dimensions et poids | AJ18: € / Tonne | AK18: DimT | AP18: Eléments de toutes dimensions et poids (mL) | AQ18: € / ml | AR18: DimL | AY18: 05 | AZ18: Plastiques ou autres matériaux synthétiques >50% | BA18: =VLOOKUP(AZ18,'Comprendre la codification'!$D$223:$F$301,3,FALSE) -> 05
A19: 54 | B19: Construction du bâtiment - PMCB | C19: B | D19: Eléments de jardin maçonnés et leurs pièces structurelles | E19: =VLOOKUP(D19,'Comprendre la codification'!$D$20:$F$46,3,FALSE) -> 54 | G19: PMCB | H19: B_40 | I19: Matériaux primaires de construction | J19: Mortier, béton, éléments en béton, y.c. biosourcés | K19: =VLOOKUP(J19,'Comprendre la codification'!$E$49:$F$216,2,FALSE) -> 304 | P19: MAT_4 | Q19: 4 - Matériaux et fibres d'origine végétal ou animal autres que bois et papier, carton | R19: Matériaux bio sourcés ou textiles non synthétiques >90% | S19: Tiges végétales (bambou, rotin, osiers, jute, paille, liège), textiles naturels d'origine végétale non mélangés (coton, lin, chanvre, soie, ramie, fibres de noix de coco, rafia…) | T19: =VLOOKUP(R19,'Comprendre la codification'!$D$219:$F$301,3,FALSE) -> 55 | W19: Plâtre >50% | X19: =VLOOKUP(W19,R:T,3,FALSE) -> 76 | AC19: Tranches | AD19: € / unité | AE19: inférieur strictement à 0,1 kg | AF19: =VLOOKUP(AE19,'Comprendre la codification'!$E$314:$F$363,2,FALSE) -> 083 | AH19: B_304F | AI19: Béton prêt à l'emploi >90% | AJ19: € / m3 | AK19: Dim_Beton | AP19: Eléments de toutes dimensions et poids | AQ19: € / m3 | AR19: Dim_Beton | AY19: 49 | AZ19: Caoutchouc synthétique >90% | BA19: =VLOOKUP(AZ19,'Comprendre la codification'!$D$223:$F$301,3,FALSE) -> 49
G20: PMCB | H20: B_40 | I20: Matériaux primaires de construction | J20: Plâtre et éléments en plâtre | K20: =VLOOKUP(J20,'Comprendre la codification'!$E$49:$F$216,2,FALSE) -> 305 | P20: MAT_4 | Q20: 4 - Matériaux et fibres d'origine végétal ou animal autres que bois et papier, carton | R20: Matériaux bio sourcés ou textiles non synthétiques >50% | S20: Assemblage de matériaux bio sourcés avec du plastique, du métal … | T20: =VLOOKUP(R20,'Comprendre la codification'!$D$219:$F$301,3,FALSE) -> 04 | W20: Plâtre >90% | X20: =VLOOKUP(W20,R:T,3,FALSE) -> 75 | AC20: Tranches | AD20: € / unité | AE20: Compris entre 0,1 kg et 0,2 kg exclus | AF20: =VLOOKUP(AE20,'Comprendre la codification'!$E$314:$F$363,2,FALSE) -> 084 | AH20: B_304F | AI20: Premix | AJ20: € / Tonne | AK20: Dim_Beton | AP20: Béton prêt à l'emploi >90% | AQ20: € / m3 | AR20: Dim_Beton | AY20: 40 | AZ20: Assemblage caoutchouc synthétique ou latex >50% avec d'autres matériaux | BA20: =VLOOKUP(AZ20,'Comprendre la codification'!$D$223:$F$301,3,FALSE) -> 40
G21: PMCB | H21: B_40 | I21: Matériaux primaires de construction | J21: Bois de charpente, panneaux, planches, tablettes, tasseaux | K21: =VLOOKUP(J21,'Comprendre la codification'!$E$49:$F$216,2,FALSE) -> 306 | P21: MAT_4 | Q21: 4 - Matériaux et fibres d'origine végétal ou animal autres que bois et papier, carton | R21: Caoutchouc naturel >90% | S21: Caoutchouc, latex | T21: =VLOOKUP(R21,'Comprendre la codification'!$D$219:$F$301,3,FALSE) -> 63 | W21: Non connu ou non spécifié par l'entreprise | X21: =VLOOKUP(W21,R:T,3,FALSE) -> 00 | AC21: Tranches | AD21: € / unité | AE21: Compris entre 0,2 kg et 0,3 kg exclus | AF21: =VLOOKUP(AE21,'Comprendre la codification'!$E$314:$F$363,2,FALSE) -> 085 | AH21: B_305 | AI21: Eléments de toutes dimensions et poids | AJ21: € / Tonne | AK21: DimT | AP21: Premix | AQ21: € / Tonne | AR21: Dim_Beton | AY21: 65 | AZ21: Matériaux ou fibres synthétiques >90% | BA21: =VLOOKUP(AZ21,'Comprendre la codification'!$D$223:$F$301,3,FALSE) -> 65
G22: PMCB | H22: B_40 | I22: Matériaux primaires de construction | J22: Verre et assimilés pour assemblage | K22: =VLOOKUP(J22,'Comprendre la codification'!$E$49:$F$216,2,FALSE) -> 307 | P22: MAT_4 | Q22: 4 - Matériaux et fibres d'origine végétal ou animal autres que bois et papier, carton | R22: Caoutchouc naturel >50% | S22: Caoutchouc, latex | T22: =VLOOKUP(R22,'Comprendre la codification'!$D$219:$F$301,3,FALSE) -> 64 | W22: B_306 | Y22: FOR | AC22: Tranches | AD22: € / unité | AE22: Compris entre 0,3 kg et 0,4 kg exclus | AF22: =VLOOKUP(AE22,'Comprendre la codification'!$E$314:$F$363,2,FALSE) -> 086 | AH22: B_306 | AI22: Eléments de toutes dimensions et poids | AJ22: € / Tonne | AK22: DimT | AP22: Eléments de toutes dimensions et poids (m3) | AQ22: € / m3 | AR22: Dim_Panneau | AY22: 67 | AZ22: Assemblage matériaux ou fibres synthétiques >50% avec d'autres matériaux | BA22: =VLOOKUP(AZ22,'Comprendre la codification'!$D$223:$F$301,3,FALSE) -> 67
G23: PMCB | H23: B_40 | I23: Matériaux primaires de construction | J23: Divers produits et matériaux primaires de construction | K23: =VLOOKUP(J23,'Comprendre la codification'!$E$49:$F$216,2,FALSE) -> 310 | P23: MAT_4 | Q23: 4 - Matériaux et fibres d'origine végétal ou animal autres que bois et papier, carton | R23: Matériaux d'origine animale >50% | S23: Matières textiles ou rembourrages d'origine animale (laine, feutre, mohair, plumes, duvets, poils, cuirs...) | T23: =VLOOKUP(R23,'Comprendre la codification'!$D$219:$F$301,3,FALSE) -> 06 | W23: Assemblage de 3 matériaux ou plus sans un matériau à plus de 50% | X23: =VLOOKUP(W23,R:T,3,FALSE) -> 82 | AC23: Tranches | AD23: € / unité | AE23: Compris entre 0,4 kg et 0,5 kg exclus | AF23: =VLOOKUP(AE23,'Comprendre la codification'!$E$314:$F$363,2,FALSE) -> 087 | AH23: B_306F | AI23: Eléments de toutes dimensions et poids (m3) | AJ23: € / m3 | AK23: Dim_Panneau | AP23: épaisseur du panneau <= 10mm | AQ23: € / m2 | AR23: Dim_Panneau | AZ23: Cat6
G24: PMCB | H24: B_41 | I24: Voirie, réseaux intérieurs et extérieurs | J24: Enrobé de voirie, bordure et caniveau | K24: =VLOOKUP(J24,'Comprendre la codification'!$E$49:$F$216,2,FALSE) -> 315 | W24: Assemblage de bois, dérivés de bois à plus de 50% avec d'autres matériaux ou bois composite (hors verre) | X24: =VLOOKUP(W24,R:T,3,FALSE) -> 01 | AC24: Tranches | AD24: € / unité | AE24: Compris entre 0,5 kg et 1 kg exclus | AF24: =VLOOKUP(AE24,'Comprendre la codification'!$E$314:$F$363,2,FALSE) -> 021 | AH24: B_306F | AI24: épaisseur du panneau <= 10mm | AJ24: € / m2 | AK24: Dim_Panneau | AP24: 10mm < épaisseur du panneau <= 15mm | AQ24: € / m2 | AR24: Dim_Panneau | AY24: 68 | AZ24: Verre >90% | BA24: =VLOOKUP(AZ24,'Comprendre la codification'!$D$223:$F$301,3,FALSE) -> 68
G25: PMCB | H25: B_41 | I25: Voirie, réseaux intérieurs et extérieurs | J25: Réseaux d'adduction d'eau et de gaz (tuyaux et éléments intérieurs et extérieurs) | K25: =VLOOKUP(J25,'Comprendre la codification'!$E$49:$F$216,2,FALSE) -> 316 | P25: MAT_5 | Q25: 5 - Plastique, matériaux et fibres synthétiques | R25: Plastiques (mono résine) >90% | S25: Plastiques et autres matériaux synthétiques : acrylique, PP, PE, PS, XPS, EPS, PER, Nylon, Polyamide, PU, PVC, vinyle, époxy, fibres synthétiques, PL, matériaux composites, carbone…. | T25: =VLOOKUP(R25,'Comprendre la codification'!$D$219:$F$301,3,FALSE) -> 41 | W25: Dérivés de bois >90% | X25: =VLOOKUP(W25,R:T,3,FALSE) -> 62 | AC25: Tranches | AD25: € / unité | AE25: Compris entre 1 kg et 2 kg exclus | AF25: =VLOOKUP(AE25,'Comprendre la codification'!$E$314:$F$363,2,FALSE) -> 022 | AH25: B_306F | AI25: 10mm < épaisseur du panneau <= 15mm | AJ25: € / m2 | AK25: Dim_Panneau | AP25: 15mm < épaisseur du panneau <= 22mm | AQ25: € / m2 | AR25: Dim_Panneau | AY25: 70 | AZ25: Assemblage verre à plus de 50% avec métal | BA25: =VLOOKUP(AZ25,'Comprendre la codification'!$D$223:$F$301,3,FALSE) -> 70
G26: PMCB | H26: B_41 | I26: Voirie, réseaux intérieurs et extérieurs | J26: Evacuation et assainissement des eaux pluviales et usées (goutières, raccords, traitement, drainage, évacuation) | K26: =VLOOKUP(J26,'Comprendre la codification'!$E$49:$F$216,2,FALSE) -> 317 | P26: MAT_5 | Q26: 5 - Plastique, matériaux et fibres synthétiques | R26: PE ou PP ou mélange PP/PE >90% | S26: Polyéthylène (PE), Polypropylène (PP), mélange PP/PE | T26: =VLOOKUP(R26,'Comprendre la codification'!$D$219:$F$301,3,FALSE) -> 45 | W26: Massif et assimilés >90% | X26: =VLOOKUP(W26,R:T,3,FALSE) -> 53 | AC26: Tranches | AD26: € / unité | AE26: Compris entre 2 kg et 3 kg exclus | AF26: =VLOOKUP(AE26,'Comprendre la codification'!$E$314:$F$363,2,FALSE) -> 052 | AH26: B_306F | AI26: 15mm < épaisseur du panneau <= 22mm | AJ26: € / m2 | AK26: Dim_Panneau | AP26: épaisseur du panneau > 22mm | AQ26: € / m2 | AR26: Dim_Panneau | AY26: 71 | AZ26: Assemblage verre à plus de 50% avec Inerte | BA26: =VLOOKUP(AZ26,'Comprendre la codification'!$D$223:$F$301,3,FALSE) -> 71
G27: PMCB | H27: B_41 | I27: Voirie, réseaux intérieurs et extérieurs | J27: Cuves et réservoirs | K27: =VLOOKUP(J27,'Comprendre la codification'!$E$49:$F$216,2,FALSE) -> 318 | P27: MAT_5 | Q27: 5 - Plastique, matériaux et fibres synthétiques | R27: PVC >90% | T27: =VLOOKUP(R27,'Comprendre la codification'!$D$219:$F$301,3,FALSE) -> 48 | W27: Matériaux bio sourcés ou textiles non synthétiques >90% | X27: =VLOOKUP(W27,R:T,3,FALSE) -> 55 | AC27: Tranches | AD27: € / unité | AE27: Compris entre 3 kg et 5 kg exclus | AF27: =VLOOKUP(AE27,'Comprendre la codification'!$E$314:$F$363,2,FALSE) -> 053 | AH27: B_306F | AI27: épaisseur du panneau > 22mm | AJ27: € / m2 | AK27: Dim_Panneau | AP27: Eléments de toutes dimensions et poids (m3) | AQ27: € / m3 | AR27: Isolant3 | AY27: 72 | AZ27: Assemblage verre à plus de 50% avec bois ou dérivés de bois | BA27: =VLOOKUP(AZ27,'Comprendre la codification'!$D$223:$F$301,3,FALSE) -> 72
G28: PMCB | H28: B_41 | I28: Voirie, réseaux intérieurs et extérieurs | J28: Eléments de voirie spéciaux et divers produits et matériaux de voirie et réseaux | K28: =VLOOKUP(J28,'Comprendre la codification'!$E$49:$F$216,2,FALSE) -> 321 | P28: MAT_5 | Q28: 5 - Plastique, matériaux et fibres synthétiques | R28: Polyterephtalate d'Ethylène (PET) >90% | T28: =VLOOKUP(R28,'Comprendre la codification'!$D$219:$F$301,3,FALSE) -> 42 | W28: Panneaux de particules ou OSB >90% | X28: =VLOOKUP(W28,R:T,3,FALSE) -> 61 | AC28: Tranches | AD28: € / unité | AE28: Compris entre 5 kg et 7 kg exclus | AF28: =VLOOKUP(AE28,'Comprendre la codification'!$E$314:$F$363,2,FALSE) -> 054 | AH28: B_307 | AI28: Eléments de toutes dimensions et poids | AJ28: € / Tonne | AK28: DimT | AP28: épaisseur <= 100mm | AQ28: € / m2 | AR28: Isolant | AY28: 73 | AZ28: Assemblage verre à plus de 50% avec plastique | BA28: =VLOOKUP(AZ28,'Comprendre la codification'!$D$223:$F$301,3,FALSE) -> 73
G29: PMCB | H29: B_42 | I29: Structure, maçonnerie, gros oeuvre, charpente | J29: Eléments de charpente et contreventements | K29: =VLOOKUP(J29,'Comprendre la codification'!$E$49:$F$216,2,FALSE) -> 330 | P29: MAT_5 | Q29: 5 - Plastique, matériaux et fibres synthétiques | R29: ABS >90% | T29: =VLOOKUP(R29,'Comprendre la codification'!$D$219:$F$301,3,FALSE) -> 46 | W29: Autre matériau majoritaire | X29: =VLOOKUP(W29,R:T,3,FALSE) -> 12 | AC29: Tranches | AD29: € / unité | AE29: Compris entre 7 kg et 10 kg exclus | AF29: =VLOOKUP(AE29,'Comprendre la codification'!$E$314:$F$363,2,FALSE) -> 055 | AH29: B_310 | AI29: Eléments de toutes dimensions et poids | AJ29: € / Tonne | AK29: DimT | AP29: épaisseur > 100mm | AQ29: € / m2 | AR29: Isolant | AY29: 69 | AZ29: Miroir >90% | BA29: =VLOOKUP(AZ29,'Comprendre la codification'!$D$223:$F$301,3,FALSE) -> 69
G30: PMCB | H30: B_42 | I30: Structure, maçonnerie, gros oeuvre, charpente | J30: Construction métallique, armatures et ferraillages | K30: =VLOOKUP(J30,'Comprendre la codification'!$E$49:$F$216,2,FALSE) -> 331 | P30: MAT_5 | Q30: 5 - Plastique, matériaux et fibres synthétiques | R30: Polystyrène >90% | T30: =VLOOKUP(R30,'Comprendre la codification'!$D$219:$F$301,3,FALSE) -> 47 | W30: Non connu ou non spécifié par l'entreprise | X30: =VLOOKUP(W30,R:T,3,FALSE) -> 00 | AC30: Tranches | AD30: € / unité | AE30: Compris entre 10 kg et 15 kg exclus | AF30: =VLOOKUP(AE30,'Comprendre la codification'!$E$314:$F$363,2,FALSE) -> 056 | AH30: B_315 | AI30: Eléments de toutes dimensions et poids | AJ30: € / Tonne | AK30: DimT | AP30: Eléments de toutes dimensions et poids (U) | AQ30: € / Unité | AR30: Porte | AZ30: Cat7
G31: PMCB | H31: B_42 | I31: Structure, maçonnerie, gros oeuvre, charpente | J31: Eléments préfabriqués hors blocs de béton | K31: =VLOOKUP(J31,'Comprendre la codification'!$E$49:$F$216,2,FALSE) -> 332 | P31: MAT_5 | Q31: 5 - Plastique, matériaux et fibres synthétiques | R31: Plastiques ou autres matériaux synthétiques >50% | S31: Assemblage de matériaux et textiles synthétiques, ensemble | T31: =VLOOKUP(R31,'Comprendre la codification'!$D$219:$F$301,3,FALSE) -> 05 | W31: B_307 | AC31: Tranches | AD31: € / unité | AE31: Compris entre 15 kg et 20 kg exclus | AF31: =VLOOKUP(AE31,'Comprendre la codification'!$E$314:$F$363,2,FALSE) -> 057 | AH31: B_316 | AI31: Eléments de toutes dimensions et poids | AJ31: € / Tonne | AK31: DimT | AP31: Par lot de 2 | AQ31: le double vantail | AR31: Porte | AY31: 75 | AZ31: Plâtre >90% | BA31: =VLOOKUP(AZ31,'Comprendre la codification'!$D$223:$F$301,3,FALSE) -> 75
G32: PMCB | H32: B_42 | I32: Structure, maçonnerie, gros oeuvre, charpente | J32: Elements de ventilation de vide sanitaire | K32: =VLOOKUP(J32,'Comprendre la codification'!$E$49:$F$216,2,FALSE) -> 333 | P32: MAT_5 | Q32: 5 - Plastique, matériaux et fibres synthétiques | R32: Caoutchouc synthétique >90% | S32: Caoutchouc | T32: =VLOOKUP(R32,'Comprendre la codification'!$D$219:$F$301,3,FALSE) -> 49 | W32: Assemblage de 3 matériaux ou plus sans un matériau à plus de 50% | X32: =VLOOKUP(W32,R:T,3,FALSE) -> 82 | AC32: Tranches | AD32: € / unité | AE32: Compris entre 20 kg et 25 kg exclus | AF32: =VLOOKUP(AE32,'Comprendre la codification'!$E$314:$F$363,2,FALSE) -> 058 | AH32: B_317 | AI32: Eléments de toutes dimensions et poids | AJ32: € / Tonne | AK32: DimT | AY32: 76 | AZ32: Plâtre >50% | BA32: =VLOOKUP(AZ32,'Comprendre la codification'!$D$223:$F$301,3,FALSE) -> 76
G33: PMCB | H33: B_42 | I33: Structure, maçonnerie, gros oeuvre, charpente | J33: Divers produits et matériaux de structure et charpente | K33: =VLOOKUP(J33,'Comprendre la codification'!$E$49:$F$216,2,FALSE) -> 336 | P33: MAT_5 | Q33: 5 - Plastique, matériaux et fibres synthétiques | R33: Eléments contenant du latex | S33: Latex | T33: =VLOOKUP(R33,'Comprendre la codification'!$D$219:$F$301,3,FALSE) -> 10 | W33: Assemblage verre à plus de 50% avec bois ou dérivés de bois | X33: =VLOOKUP(W33,R:T,3,FALSE) -> 72 | AC33: Tranches | AD33: € / unité | AE33: Compris entre 25 kg et 30 kg exclus | AF33: =VLOOKUP(AE33,'Comprendre la codification'!$E$314:$F$363,2,FALSE) -> 059 | AH33: B_318 | AI33: Eléments de toutes dimensions et poids | AJ33: € / Tonne | AK33: DimT | AZ33: Cat8
G34: PMCB | H34: B_43 | I34: Couverture et étanchéité | J34: Eléments de couverture | K34: =VLOOKUP(J34,'Comprendre la codification'!$E$49:$F$216,2,FALSE) -> 345 | P34: MAT_5 | Q34: 5 - Plastique, matériaux et fibres synthétiques | R34: Assemblage caoutchouc synthétique ou latex >50% avec d'autres matériaux | S34: Caoutchouc, latex avec d'autres matériaux synthétiques, du bois, du métal … | T34: =VLOOKUP(R34,'Comprendre la codification'!$D$219:$F$301,3,FALSE) -> 40 | W34: Assemblage verre à plus de 50% avec Inerte | X34: =VLOOKUP(W34,R:T,3,FALSE) -> 71 | AC34: Tranches | AD34: € / unité | AE34: Compris entre 30 kg et 40 kg exclus | AF34: =VLOOKUP(AE34,'Comprendre la codification'!$E$314:$F$363,2,FALSE) -> 027 | AH34: B_321 | AI34: Eléments de toutes dimensions et poids | AJ34: € / Tonne | AK34: DimT | AY34: 77 | AZ34: Laines de roche à plus de 90 % | BA34: =VLOOKUP(AZ34,'Comprendre la codification'!$D$223:$F$301,3,FALSE) -> 77
G35: PMCB | H35: B_43 | I35: Couverture et étanchéité | J35: Produits d'étanchéité et d'imperméabilisation | K35: =VLOOKUP(J35,'Comprendre la codification'!$E$49:$F$216,2,FALSE) -> 346 | P35: MAT_5 | Q35: 5 - Plastique, matériaux et fibres synthétiques | R35: Matériaux ou fibres synthétiques >90% | S35: Polyamides, nylon, polyester (PES) et polyterephtalate d'Ethylène (PET), viscose, polyester, élastane, mousses … | T35: =VLOOKUP(R35,'Comprendre la codification'!$D$219:$F$301,3,FALSE) -> 65 | W35: Assemblage verre à plus de 50% avec métal | X35: =VLOOKUP(W35,R:T,3,FALSE) -> 70 | AC35: Tranches | AD35: € / unité | AE35: Compris entre 40 kg et 50 kg exclus | AF35: =VLOOKUP(AE35,'Comprendre la codification'!$E$314:$F$363,2,FALSE) -> 060 | AH35: B_330 | AI35: Eléments de toutes dimensions et poids | AJ35: € / Tonne | AK35: DimT | AY35: 78 | AZ35: Laine de verre à plus de 90 % | BA35: =VLOOKUP(AZ35,'Comprendre la codification'!$D$223:$F$301,3,FALSE) -> 78
G36: PMCB | H36: B_43 | I36: Couverture et étanchéité | J36: Divers élements de couverture et étanchéité (hors droguerie) | K36: =VLOOKUP(J36,'Comprendre la codification'!$E$49:$F$216,2,FALSE) -> 349 | P36: MAT_5 | Q36: 5 - Plastique, matériaux et fibres synthétiques | R36: Textile et rembourrage en polyester >90% | S36: Polyester | T36: =VLOOKUP(R36,'Comprendre la codification'!$D$219:$F$301,3,FALSE) -> 66 | W36: Assemblage verre à plus de 50% avec plastique | X36: =VLOOKUP(W36,R:T,3,FALSE) -> 73 | AC36: Tranches | AD36: € / unité | AE36: Compris entre 50 kg et 100 kg exclus | AF36: =VLOOKUP(AE36,'Comprendre la codification'!$E$314:$F$363,2,FALSE) -> 088 | AH36: B_331 | AI36: Eléments de toutes dimensions et poids | AJ36: € / Tonne | AK36: DimT | AY36: 79 | AZ36: Assemblage de laines de verre ou laines de roches à plus de 50% et d'autres matériaux | BA36: =VLOOKUP(AZ36,'Comprendre la codification'!$D$223:$F$301,3,FALSE) -> 79
G37: PMCB | H37: ="B_"&VLOOKUP(I37,$D$3:$E$19,2,FALSE) -> B_44 | I37: Cloisonnement, plafonds | J37: Cloisons (hors plâtre et isolation) | K37: =VLOOKUP(J37,'Comprendre la codification'!$E$49:$F$216,2,FALSE) -> 355 | P37: MAT_5 | Q37: 5 - Plastique, matériaux et fibres synthétiques | R37: Eléments contenant de la mousse | T37: =VLOOKUP(R37,'Comprendre la codification'!$D$219:$F$301,3,FALSE) -> 09 | W37: Verre >90% | X37: =VLOOKUP(W37,R:T,3,FALSE) -> 68 | AC37: Tranches | AD37: € / unité | AE37: Compris entre 100 kg et 150 kg exclus | AF37: =VLOOKUP(AE37,'Comprendre la codification'!$E$314:$F$363,2,FALSE) -> 030 | AH37: B_332 | AI37: Eléments de toutes dimensions et poids | AJ37: € / Tonne | AK37: DimT | AZ37: Cat9
G38: PMCB | H38: B_44 | I38: Cloisonnement, plafonds | J38: Ossatures métalliques | K38: =VLOOKUP(J38,'Comprendre la codification'!$E$49:$F$216,2,FALSE) -> 356 | P38: MAT_5 | Q38: 5 - Plastique, matériaux et fibres synthétiques | R38: Eléments textiles contenant des ressorts | T38: =VLOOKUP(R38,'Comprendre la codification'!$D$219:$F$301,3,FALSE) -> 11 | W38: Autre matériau majoritaire | X38: =VLOOKUP(W38,R:T,3,FALSE) -> 12 | AC38: Tranches | AD38: € / unité | AE38: Compris entre 150 kg et 200 kg exclus | AF38: =VLOOKUP(AE38,'Comprendre la codification'!$E$314:$F$363,2,FALSE) -> 031 | AH38: B_333 | AI38: Eléments de toutes dimensions et poids | AJ38: € / Tonne | AK38: DimT | AY38: 80 | AZ38: Membranes bitumineuses à plus de 90 % | BA38: =VLOOKUP(AZ38,'Comprendre la codification'!$D$223:$F$301,3,FALSE) -> 80
G39: PMCB | H39: B_44 | I39: Cloisonnement, plafonds | J39: Plafonds suspendus, plafonds tendus | K39: =VLOOKUP(J39,'Comprendre la codification'!$E$49:$F$216,2,FALSE) -> 357 | P39: MAT_5 | Q39: 5 - Plastique, matériaux et fibres synthétiques | R39: Assemblage matériaux ou fibres synthétiques >50% avec d'autres matériaux | S39: Assemblage de matériaux et textiles synthétiques avec du métal, du bois … | T39: =VLOOKUP(R39,'Comprendre la codification'!$D$219:$F$301,3,FALSE) -> 67 | W39: Non connu ou non spécifié par l'entreprise | X39: =VLOOKUP(W39,R:T,3,FALSE) -> 00 | AC39: Tranches | AD39: € / unité | AE39: Compris entre 200 kg et 250 kg exclus | AF39: =VLOOKUP(AE39,'Comprendre la codification'!$E$314:$F$363,2,FALSE) -> 032 | AH39: B_336 | AI39: Eléments de toutes dimensions et poids | AJ39: € / Tonne | AK39: DimT | AZ39: Cat10
G40: PMCB | H40: B_44 | I40: Cloisonnement, plafonds | J40: Divers produits de cloisonnement et plafonds | K40: =VLOOKUP(J40,'Comprendre la codification'!$E$49:$F$216,2,FALSE) -> 360 | W40: B_310 | AC40: Tranches | AD40: € / unité | AE40: supérieur à 250 kg | AF40: =VLOOKUP(AE40,'Comprendre la codification'!$E$314:$F$363,2,FALSE) -> 082 | AH40: B_345 | AI40: Eléments de toutes dimensions et poids | AJ40: € / Tonne | AK40: DimT | AY40: 82 | AZ40: Assemblage de 3 matériaux ou plus sans un matériau à plus de 50% | BA40: =VLOOKUP(AZ40,'Comprendre la codification'!$D$223:$F$301,3,FALSE) -> 82
G41: PMCB | H41: B_44 | I41: Cloisonnement, plafonds | J41: Eléments en plâtre pour cloisons, plafonds | K41: =VLOOKUP(J41,'Comprendre la codification'!$E$49:$F$216,2,FALSE) -> 361 | P41: MAT_6 | Q41: 6 - Verre et parois vitrées | R41: Verre >90% | S41: Verre plat, brique de verre … | T41: =VLOOKUP(R41,'Comprendre la codification'!$D$219:$F$301,3,FALSE) -> 68 | W41: ABS >90% | X41: =VLOOKUP(W41,R:T,3,FALSE) -> 46 | AC41: Tranches | AD41: € / m2 | AE41: épaisseur du panneau <= 10mm | AF41: =VLOOKUP(AE41,'Comprendre la codification'!$E$314:$F$363,2,FALSE) -> 112 | AH41: B_345F | AI41: Eléments de toutes dimensions et poids | AJ41: € / m2 | AK41: Dim_2 | AY41: 00 | AZ41: Non connu ou non spécifié par l'entreprise | BA41: =VLOOKUP(AZ41,'Comprendre la codification'!$D$223:$F$301,3,FALSE) -> 00
G42: PMCB | H42: B_45 | I42: Isolation thermique et acoustique | J42: Laines, mousse, fibres isolantes | K42: =VLOOKUP(J42,'Comprendre la codification'!$E$49:$F$216,2,FALSE) -> 370 | P42: MAT_6 | Q42: 6 - Verre et parois vitrées | R42: Assemblage verre à plus de 50% avec métal | S42: Assemblage de verre avec des métaux | T42: =VLOOKUP(R42,'Comprendre la codification'!$D$219:$F$301,3,FALSE) -> 70 | W42: Adjuvants >90% | X42: =VLOOKUP(W42,R:T,3,FALSE) -> 93 | AC42: Tranches | AD42: € / m2 | AE42: 10mm < épaisseur du panneau <= 15mm | AF42: =VLOOKUP(AE42,'Comprendre la codification'!$E$314:$F$363,2,FALSE) -> 113 | AH42: B_346 | AI42: Eléments de toutes dimensions et poids | AJ42: € / Tonne | AK42: DimT | AZ42: Cat11
G43: PMCB | H43: B_45 | I43: Isolation thermique et acoustique | J43: Eléments spéciaux d'isolation | K43: =VLOOKUP(J43,'Comprendre la codification'!$E$49:$F$216,2,FALSE) -> 371 | P43: MAT_6 | Q43: 6 - Verre et parois vitrées | R43: Assemblage verre à plus de 50% avec Inerte | S43: Assemblage de verre avec de l'inerte | T43: =VLOOKUP(R43,'Comprendre la codification'!$D$219:$F$301,3,FALSE) -> 71 | W43: Assemblage avec métal >50% et autres matériaux | X43: =VLOOKUP(W43,R:T,3,FALSE) -> 02 | AC43: Tranches | AD43: € / m2 | AE43: 15mm < épaisseur du panneau <= 22mm | AF43: =VLOOKUP(AE43,'Comprendre la codification'!$E$314:$F$363,2,FALSE) -> 114 | AH43: B_346F | AI43: Eléments de toutes dimensions et poids | AJ43: € / m2 | AK43: Dim_2 | AY43: 465 | AZ43: Sous-couches, préparation des sols et étanchéité | BA43: =VLOOKUP(AZ43,'Comprendre la codification'!$E$172:$F$191,2,FALSE) -> 465
G44: PMCB | H44: B_46 | I44: Menuiseries intérieures et extérieures, fermetures | J44: Portes (intérieures, coulissantes, entrée, garage, de service, technique,...) | K44: =VLOOKUP(J44,'Comprendre la codification'!$E$49:$F$216,2,FALSE) -> 380 | P44: MAT_6 | Q44: 6 - Verre et parois vitrées | R44: Assemblage verre à plus de 50% avec bois ou dérivés de bois | S44: Assemblage de verre avec du bois ou des matériaux biosourcés | T44: =VLOOKUP(R44,'Comprendre la codification'!$D$219:$F$301,3,FALSE) -> 72 | W44: Assemblage caoutchouc synthétique ou latex >50% avec d'autres matériaux | X44: =VLOOKUP(W44,R:T,3,FALSE) -> 40 | AC44: Tranches | AD44: € / m2 | AE44: épaisseur du panneau > 22mm | AF44: =VLOOKUP(AE44,'Comprendre la codification'!$E$314:$F$363,2,FALSE) -> 115 | AH44: B_349 | AI44: Eléments de toutes dimensions et poids | AJ44: € / Tonne | AK44: DimT | AY44: 467 | AZ44: Traitements des murs et toitures | BA44: =VLOOKUP(AZ44,'Comprendre la codification'!$E$172:$F$191,2,FALSE) -> 467
G45: PMCB | H45: B_46 | I45: Menuiseries intérieures et extérieures, fermetures | J45: Fenêtres, portes fenêtres, fenêtres de toit et leurs accessoires hors fermetures | K45: =VLOOKUP(J45,'Comprendre la codification'!$E$49:$F$216,2,FALSE) -> 381 | P45: MAT_6 | Q45: 6 - Verre et parois vitrées | R45: Assemblage verre à plus de 50% avec plastique | S45: Assemblage de verre avec du plastique | T45: =VLOOKUP(R45,'Comprendre la codification'!$D$219:$F$301,3,FALSE) -> 73 | W45: Assemblage de 3 matériaux ou plus sans un matériau à plus de 50% | X45: =VLOOKUP(W45,R:T,3,FALSE) -> 82 | AC45: Tranches | AD45: € / m2 | AE45: épaisseur <= 100mm | AF45: =VLOOKUP(AE45,'Comprendre la codification'!$E$314:$F$363,2,FALSE) -> 116 | AH45: B_349F | AI45: Eléments de toutes dimensions et poids | AJ45: € / m2 | AK45: Dim_2 | AY45: 468 | AZ45: Peintures intérieures | BA45: =VLOOKUP(AZ45,'Comprendre la codification'!$E$172:$F$191,2,FALSE) -> 468
G46: PMCB | H46: B_46 | I46: Menuiseries intérieures et extérieures, fermetures | J46: Volets, volets roulants, persiennes, stores, brise-soleil | K46: =VLOOKUP(J46,'Comprendre la codification'!$E$49:$F$216,2,FALSE) -> 382 | P46: MAT_6 | Q46: 6 - Verre et parois vitrées | R46: Miroir >90% | S46: Miroir | T46: =VLOOKUP(R46,'Comprendre la codification'!$D$219:$F$301,3,FALSE) -> 69 | W46: Assemblage de bois, dérivés de bois à plus de 50% avec d'autres matériaux ou bois composite (hors verre) | X46: =VLOOKUP(W46,R:T,3,FALSE) -> 01 | AC46: Tranches | AD46: € / m2 | AE46: épaisseur > 100mm | AF46: =VLOOKUP(AE46,'Comprendre la codification'!$E$314:$F$363,2,FALSE) -> 117 | AH46: B_355 | AI46: Eléments de toutes dimensions et poids | AJ46: € / Tonne | AK46: DimT | AY46: 469 | AZ46: Colles et adhésifs | BA46: =VLOOKUP(AZ46,'Comprendre la codification'!$E$172:$F$191,2,FALSE) -> 469
G47: PMCB | H47: B_46 | I47: Menuiseries intérieures et extérieures, fermetures | J47: Escaliers intérieurs et extérieurs | K47: =VLOOKUP(J47,'Comprendre la codification'!$E$49:$F$216,2,FALSE) -> 383 | W47: Assemblage de laines de verre ou laines de roches à plus de 50% et d'autres matériaux | X47: =VLOOKUP(W47,R:T,3,FALSE) -> 79 | AH47: B_356 | AI47: Eléments de toutes dimensions et poids | AJ47: € / Tonne | AK47: DimT | AY47: 483 | AZ47: Résines PU et expansive (aérosol) | BA47: =VLOOKUP(AZ47,'Comprendre la codification'!$E$172:$F$191,2,FALSE) -> 483
G48: PMCB | H48: B_46 | I48: Menuiseries intérieures et extérieures, fermetures | J48: Garde-corps, balustres et accessoires d'escaliers | K48: =VLOOKUP(J48,'Comprendre la codification'!$E$49:$F$216,2,FALSE) -> 384 | P48: MAT_7 | Q48: 7 - Plâtre | R48: Plâtre >90% | S48: Matière en plâtre, plaque de plâtre (placo) et fibre gypse | T48: =VLOOKUP(R48,'Comprendre la codification'!$D$219:$F$301,3,FALSE) -> 75 | W48: Assemblage matériaux ou fibres synthétiques >50% avec d'autres matériaux | X48: =VLOOKUP(W48,R:T,3,FALSE) -> 67 | AH48: B_357 | AI48: Eléments de toutes dimensions et poids | AJ48: € / Tonne | AK48: DimT | AY48: 470 | AZ48: Mastic, joints et mousses polyuréthanes | BA48: =VLOOKUP(AZ48,'Comprendre la codification'!$E$172:$F$191,2,FALSE) -> 470
G49: PMCB | H49: B_46 | I49: Menuiseries intérieures et extérieures, fermetures | J49: Fenêtre et porte fenêtre (cadre en bois) | K49: =VLOOKUP(J49,'Comprendre la codification'!$E$49:$F$216,2,FALSE) -> 385 | P49: MAT_7 | Q49: 7 - Plâtre | R49: Plâtre >50% | S49: Elément composé majoritaitement de plâtre et associé à d'autres matériaux | T49: =VLOOKUP(R49,'Comprendre la codification'!$D$219:$F$301,3,FALSE) -> 76 | W49: Assemblage verre à plus de 50% avec bois ou dérivés de bois | X49: =VLOOKUP(W49,R:T,3,FALSE) -> 72 | AC49: Spécifiques produit | AD49: € / m2 | AE49: Fenêtre <= 1,5 m² | AF49: =VLOOKUP(AE49,'Comprendre la codification'!$E$314:$F$363,2,FALSE) -> 500 | AH49: B_360 | AI49: Eléments de toutes dimensions et poids | AJ49: € / Tonne | AK49: DimT | AY49: 471 | AZ49: Adjuvants | BA49: =VLOOKUP(AZ49,'Comprendre la codification'!$E$172:$F$191,2,FALSE) -> 471
G50: PMCB | H50: B_46 | I50: Menuiseries intérieures et extérieures, fermetures | J50: Fenêtre et porte fenêtre (cadre en métal) | K50: =VLOOKUP(J50,'Comprendre la codification'!$E$49:$F$216,2,FALSE) -> 386 | W50: Assemblage verre à plus de 50% avec Inerte | X50: =VLOOKUP(W50,R:T,3,FALSE) -> 71 | AC50: Spécifiques produit | AD50: € / m2 | AE50: 1,5m² < Fenêtre < 3,5 m² | AF50: =VLOOKUP(AE50,'Comprendre la codification'!$E$314:$F$363,2,FALSE) -> 501 | AH50: B_361 | AI50: Eléments de toutes dimensions et poids | AJ50: € / Tonne | AK50: DimT | AY50: 472 | AZ50: Traitements bois | BA50: =VLOOKUP(AZ50,'Comprendre la codification'!$E$172:$F$191,2,FALSE) -> 472
G51: PMCB | H51: B_46 | I51: Menuiseries intérieures et extérieures, fermetures | J51: Fenêtre et porte fenêtre (cadre en PVC) | K51: =VLOOKUP(J51,'Comprendre la codification'!$E$49:$F$216,2,FALSE) -> 387 | P51: MAT_8 | Q51: 8 - Laines de verre et laines de roches | R51: Laines de roche à plus de 90 % | S51: Matière isolante fabriquée à partir d'un matériau naturel issu de l'activité volcanique | T51: =VLOOKUP(R51,'Comprendre la codification'!$D$219:$F$301,3,FALSE) -> 77 | W51: Assemblage verre à plus de 50% avec métal | X51: =VLOOKUP(W51,R:T,3,FALSE) -> 70 | AC51: Spécifiques produit | AD51: € / m2 | AE51: Fenêtre >= 3,5 m² | AF51: =VLOOKUP(AE51,'Comprendre la codification'!$E$314:$F$363,2,FALSE) -> 502 | AH51: B_361F | AI51: <13mm | AJ51: € / m2 | AK51: Cloison | AY51: 485 | AZ51: Traitement des matériaux (aérosol) | BA51: =VLOOKUP(AZ51,'Comprendre la codification'!$E$172:$F$191,2,FALSE) -> 485
G52: PMCB | H52: B_46 | I52: Menuiseries intérieures et extérieures, fermetures | J52: Fenêtres, portes fenêtres, fenêtres de toit et leurs accessoires hors quincailleries | K52: =VLOOKUP(J52,'Comprendre la codification'!$E$49:$F$216,2,FALSE) -> 388 | P52: MAT_8 | Q52: 8 - Laines de verre et laines de roches | R52: Laine de verre à plus de 90 % | S52: Matière composée de fils de verre, utilisé comme filtrant ou isolant | T52: =VLOOKUP(R52,'Comprendre la codification'!$D$219:$F$301,3,FALSE) -> 78 | W52: Assemblage verre à plus de 50% avec plastique | X52: =VLOOKUP(W52,R:T,3,FALSE) -> 73 | AC52: Spécifiques produit | AD52: € / Unité | AE52: Radiateur < 1 mètre (plus grande largeur ou hauteur) | AF52: =VLOOKUP(AE52,'Comprendre la codification'!$E$314:$F$363,2,FALSE) -> 510 | AH52: B_361F | AI52: >= 13mm | AJ52: € / m2 | AK52: Cloison | AY52: 486 | AZ52: Traitement des matériaux hors bois | BA52: =VLOOKUP(AZ52,'Comprendre la codification'!$E$172:$F$191,2,FALSE) -> 486
G53: PMCB | H53: B_46 | I53: Menuiseries intérieures et extérieures, fermetures | J53: Portail | K53: =VLOOKUP(J53,'Comprendre la codification'!$E$49:$F$216,2,FALSE) -> 389 | P53: MAT_8 | Q53: 8 - Laines de verre et laines de roches | R53: Assemblage de laines de verre ou laines de roches à plus de 50% et d'autres matériaux | S53: Elément composé majoritaitement de laine minérale | T53: =VLOOKUP(R53,'Comprendre la codification'!$D$219:$F$301,3,FALSE) -> 79 | W53: Béton >90% | X53: =VLOOKUP(W53,R:T,3,FALSE) -> 74 | AC53: Spécifiques produit | AD53: € / Unité | AE53: Radiateur > 1 mètre (plus grande largeur ou hauteur) | AF53: =VLOOKUP(AE53,'Comprendre la codification'!$E$314:$F$363,2,FALSE) -> 511 | AH53: B_370 | AI53: Eléments de toutes dimensions et poids | AJ53: € / Tonne | AK53: DimT | AY53: 473 | AZ53: Vernis et vitrificateurs | BA53: =VLOOKUP(AZ53,'Comprendre la codification'!$E$172:$F$191,2,FALSE) -> 473
G54: PMCB | H54: B_46 | I54: Menuiseries intérieures et extérieures, fermetures | J54: Portes : Huisserie bois | K54: =VLOOKUP(J54,'Comprendre la codification'!$E$49:$F$216,2,FALSE) -> 390 | W54: Caoutchouc naturel >50% | X54: =VLOOKUP(W54,R:T,3,FALSE) -> 64 | AH54: B_370G | AI54: Eléments de toutes dimensions et poids | AJ54: € / m3 | AK54: Isolant3 | AY54: 487 | AZ54: Vernis et vitrificateurs et dérivés (aérosols) | BA54: =VLOOKUP(AZ54,'Comprendre la codification'!$E$172:$F$191,2,FALSE) -> 487
G55: PMCB | H55: B_46 | I55: Menuiseries intérieures et extérieures, fermetures | J55: Portes : Huisserie métallique | K55: =VLOOKUP(J55,'Comprendre la codification'!$E$49:$F$216,2,FALSE) -> 391 | P55: MAT_9 | Q55: 9 - Membranes bitumineuses | R55: Membranes bitumineuses à plus de 90 % | S55: Membrane d'étanchéité synthétique | T55: =VLOOKUP(R55,'Comprendre la codification'!$D$219:$F$301,3,FALSE) -> 80 | W55: Caoutchouc naturel >90% | X55: =VLOOKUP(W55,R:T,3,FALSE) -> 63 | AC55: Spécifiques Ecominero | AD55: € / Tonne | AE55: Pulvérulent | AF55: 600 | AH55: B_370F | AI55: épaisseur <= 100mm | AJ55: € / m2 | AK55: Isolant | AY55: 481 | AZ55: Enduits poudre | BA55: =VLOOKUP(AZ55,'Comprendre la codification'!$E$172:$F$191,2,FALSE) -> 481
G56: PMCB | H56: B_46 | I56: Menuiseries intérieures et extérieures, fermetures | J56: Portes : Huisserie PVC | K56: =VLOOKUP(J56,'Comprendre la codification'!$E$49:$F$216,2,FALSE) -> 392 | W56: Caoutchouc synthétique >90% | X56: =VLOOKUP(W56,R:T,3,FALSE) -> 49 | AC56: Spécifiques Ecominero | AD56: € / m3 | AE56: Béton prêt à l'emploi >90% | AF56: 601 | AH56: B_370F | AI56: épaisseur > 100mm | AJ56: € / m2 | AK56: Isolant | AY56: 480 | AZ56: Enduits pate | BA56: =VLOOKUP(AZ56,'Comprendre la codification'!$E$172:$F$191,2,FALSE) -> 480
G57: PMCB | H57: B_46 | I57: Menuiseries intérieures et extérieures, fermetures | J57: Portes : Trappes en bois | K57: =VLOOKUP(J57,'Comprendre la codification'!$E$49:$F$216,2,FALSE) -> 393 | P57: MAT_10 | Q57: 10 - Autres mix matériaux ou matériaux non classés ou non spécifiés | R57: Assemblage dont la composition conjointe en bois, dérivés de bois et en métal dépasse 90% | T57: =VLOOKUP(R57,'Comprendre la codification'!$D$219:$F$301,3,FALSE) -> 81 | W57: Dérivés de bois >90% | X57: =VLOOKUP(W57,R:T,3,FALSE) -> 62 | AC57: Spécifiques Ecominero | AD57: € / Tonne | AE57: Divers jardin | AF57: 602 | AH57: B_371 | AI57: Eléments de toutes dimensions et poids | AJ57: € / Tonne | AK57: DimT
G58: PMCB | H58: B_46 | I58: Menuiseries intérieures et extérieures, fermetures | J58: Portes : Trappes en métal | K58: =VLOOKUP(J58,'Comprendre la codification'!$E$49:$F$216,2,FALSE) -> 394 | P58: MAT_10 | Q58: 10 - Autres mix matériaux ou matériaux non classés ou non spécifiés | R58: Assemblage de 3 matériaux ou plus sans un matériau à plus de 50% | S58: Elément composé de parties en matériaux divers avec souvent mais non exclusivement une partie de plastique ou de textile synthétique | T58: =VLOOKUP(R58,'Comprendre la codification'!$D$219:$F$301,3,FALSE) -> 82 | W58: Laine de verre à plus de 90 % | X58: =VLOOKUP(W58,R:T,3,FALSE) -> 78 | AC58: Spécifiques Ecominero | AD58: € / Tonne | AE58: Premix | AF58: 603 | AH58: B_380 | AI58: Eléments de toutes dimensions et poids | AJ58: € / Tonne | AK58: DimT
G59: PMCB | H59: B_46 | I59: Menuiseries intérieures et extérieures, fermetures | J59: Portes : Trappes en PVC | K59: =VLOOKUP(J59,'Comprendre la codification'!$E$49:$F$216,2,FALSE) -> 395 | P59: MAT_10 | Q59: 10 - Autres mix matériaux ou matériaux non classés ou non spécifiés | R59: Autre matériau majoritaire | S59: Autre matériau majoritaire | T59: =VLOOKUP(R59,'Comprendre la codification'!$D$219:$F$301,3,FALSE) -> 12 | W59: Laines de roche à plus de 90 % | X59: =VLOOKUP(W59,R:T,3,FALSE) -> 77 | AC59: Spécifiques Ecominero | AD59: € / Tonne | AE59: Non pulvérulent | AF59: 604 | AH59: B_380F | AI59: Eléments de toutes dimensions et poids | AJ59: € / Unité | AK59: DimU
G60: PMCB | H60: B_46 | I60: Menuiseries intérieures et extérieures, fermetures | J60: Portes : vantail porte alvéolaire | K60: =VLOOKUP(J60,'Comprendre la codification'!$E$49:$F$216,2,FALSE) -> 396 | P60: MAT_10 | Q60: 10 - Autres mix matériaux ou matériaux non classés ou non spécifiés | R60: Non connu ou non spécifié par l'entreprise | S60: Non connu ou non spécifié par l'entreprise | T60: =VLOOKUP(R60,'Comprendre la codification'!$D$219:$F$301,3,FALSE) -> 00 | W60: Massif et assimilés >90% | X60: =VLOOKUP(W60,R:T,3,FALSE) -> 53 | AH60: B_381 | AI60: Eléments de toutes dimensions et poids | AJ60: € / Tonne | AK60: DimT
G61: PMCB | H61: B_46 | I61: Menuiseries intérieures et extérieures, fermetures | J61: Portes : vantail porte en bois | K61: =VLOOKUP(J61,'Comprendre la codification'!$E$49:$F$216,2,FALSE) -> 397 | W61: Matériaux bio sourcés ou textiles non synthétiques >50% | X61: =VLOOKUP(W61,R:T,3,FALSE) -> 04 | AH61: B_381F | AI61: Eléments de toutes dimensions et poids | AJ61: € / Unité | AK61: Fen
G62: PMCB | H62: B_46 | I62: Menuiseries intérieures et extérieures, fermetures | J62: Portes : vantail porte en métal | K62: =VLOOKUP(J62,'Comprendre la codification'!$E$49:$F$216,2,FALSE) -> 398 | P62: MAT_11 | Q62: 11 - Mortiers, enduits, peintures, vernis, résines, produits de préparation | R62: Produits liquides, y.c. dangereux >90% | S62: Sous couches, préparation des sols et étanchéité, Peintures extérieures, Traitement des sols et toitures, Peintures intérieures, Colles et adhésifs, Résines PU et expansive (aérosol), Mastics, joints et mousses PU, Adjuvants, Traitement des bois, Traitement des matériaux (aérosol), Traitement des matériaux hors bois, Vernis et vitrificateurs et dérivés, Vernis et vitrificateurs et dérivés (aérosols), Enduits poudre, Enduits pate | T62: =VLOOKUP(R62,'Comprendre la codification'!$D$219:$F$301,3,FALSE) -> 83 | W62: Matériaux bio sourcés ou textiles non synthétiques >90% | X62: =VLOOKUP(W62,R:T,3,FALSE) -> 55 | AH62: B_382 | AI62: Eléments de toutes dimensions et poids | AJ62: € / Tonne | AK62: DimT
G63: PMCB | H63: B_46 | I63: Menuiseries intérieures et extérieures, fermetures | J63: Portes : vantail porte en PVC | K63: =VLOOKUP(J63,'Comprendre la codification'!$E$49:$F$216,2,FALSE) -> 399 | W63: Matériaux ou fibres synthétiques >90% | X63: =VLOOKUP(W63,R:T,3,FALSE) -> 65 | AH63: B_383 | AI63: Eléments de toutes dimensions et poids | AJ63: € / Tonne | AK63: DimT
G64: PMCB | H64: B_46 | I64: Menuiseries intérieures et extérieures, fermetures | J64: Portes : vantail porte en verre (>90%) | K64: =VLOOKUP(J64,'Comprendre la codification'!$E$49:$F$216,2,FALSE) -> 400 | P64: MAT_12 | Q64: 12 - Matériaux inertes | R64: Assemblage de matériaux avec de l'inerte >50% | T64: =VLOOKUP(R64,'Comprendre la codification'!$D$219:$F$301,3,FALSE) -> 08 | W64: Membranes bitumineuses à plus de 90 % | X64: =VLOOKUP(W64,R:T,3,FALSE) -> 80 | AH64: B_383F | AI64: Eléments de toutes dimensions et poids | AJ64: € / Unité | AK64: DimU
G65: PMCB | H65: B_46 | I65: Menuiseries intérieures et extérieures, fermetures | J65: Portes : vantail porte vitrée | K65: =VLOOKUP(J65,'Comprendre la codification'!$E$49:$F$216,2,FALSE) -> 401 | P65: MAT_12 | Q65: 12 - Matériaux inertes | R65: Composites et autres matériaux minéraux reconstitués >50% | T65: =VLOOKUP(R65,'Comprendre la codification'!$D$219:$F$301,3,FALSE) -> 15 | W65: Métal >90% | X65: =VLOOKUP(W65,R:T,3,FALSE) -> 28 | AH65: B_384 | AI65: Eléments de toutes dimensions et poids | AJ65: € / Tonne | AK65: DimT
G66: PMCB | H66: B_46 | I66: Menuiseries intérieures et extérieures, fermetures | J66: Portes : Trappes autres | K66: =VLOOKUP(J66,'Comprendre la codification'!$E$49:$F$216,2,FALSE) -> 402 | P66: MAT_12 | Q66: 12 - Matériaux inertes | R66: Ardoise >90% | S66: Ardoise | T66: =VLOOKUP(R66,'Comprendre la codification'!$D$219:$F$301,3,FALSE) -> 84 | W66: Miroir >90% | X66: =VLOOKUP(W66,R:T,3,FALSE) -> 69 | AH66: B_385 | AI66: Fenêtre <= 1,5 m² | AJ66: € / m2 | AK66: Fen
G67: PMCB | H67: B_46 | I67: Menuiseries intérieures et extérieures, fermetures | J67: Portes : vantail autres | K67: =VLOOKUP(J67,'Comprendre la codification'!$E$49:$F$216,2,FALSE) -> 403 | P67: MAT_12 | Q67: 12 - Matériaux inertes | R67: Granulats hors pierre >90% | S67: Matière minérale de petite taille (granulats, gravillons, sable, grave, gravier, moellon, concassé, …) hors pierre | T67: =VLOOKUP(R67,'Comprendre la codification'!$D$219:$F$301,3,FALSE) -> 85 | W67: Panneaux de particules ou OSB >90% | X67: =VLOOKUP(W67,R:T,3,FALSE) -> 61 | AH67: B_385 | AI67: 1,5m² < Fenêtre < 3,5 m² | AJ67: € / m2 | AK67: Fen
G68: PMCB | H68: B_46 | I68: Menuiseries intérieures et extérieures, fermetures | J68: Volet battant (bois à plus de 90 %) | K68: =VLOOKUP(J68,'Comprendre la codification'!$E$49:$F$216,2,FALSE) -> 404 | P68: MAT_12 | Q68: 12 - Matériaux inertes | R68: Pierre calcaire >90% | S68: Matière minérale de grosse taille, hors granulats, gravillons, sable et hors pierres spécifiques comme l'ardoise | T68: =VLOOKUP(R68,'Comprendre la codification'!$D$219:$F$301,3,FALSE) -> 86 | W68: Papier carton >50% avec d'autres matériaux (hors verre) | X68: =VLOOKUP(W68,R:T,3,FALSE) -> 19 | AH68: B_385 | AI68: Fenêtre >= 3,5 m² | AJ68: € / m2 | AK68: Fen
G69: PMCB | H69: B_46 | I69: Menuiseries intérieures et extérieures, fermetures | J69: Volet battant (métal à plus de 90 %) | K69: =VLOOKUP(J69,'Comprendre la codification'!$E$49:$F$216,2,FALSE) -> 405 | P69: MAT_12 | Q69: 12 - Matériaux inertes | R69: Lave >90% | T69: =VLOOKUP(R69,'Comprendre la codification'!$D$219:$F$301,3,FALSE) -> 87 | W69: PE ou PP ou mélange PP/PE >90% | X69: =VLOOKUP(W69,R:T,3,FALSE) -> 45 | AH69: B_385F | AI69: Eléments de toutes dimensions et poids | AJ69: € / Unité | AK69: DimU
G70: PMCB | H70: B_46 | I70: Menuiseries intérieures et extérieures, fermetures | J70: Volet battant (PVC à plus de 90 %) | K70: =VLOOKUP(J70,'Comprendre la codification'!$E$49:$F$216,2,FALSE) -> 406 | P70: MAT_12 | Q70: 12 - Matériaux inertes | R70: Mélange bitumineux >90% | S70: Matière liquide à base de bitume | T70: =VLOOKUP(R70,'Comprendre la codification'!$D$219:$F$301,3,FALSE) -> 88 | W70: Plastiques (mono résine) >90% | X70: =VLOOKUP(W70,R:T,3,FALSE) -> 41 | AH70: B_386 | AI70: Fenêtre <= 1,5 m² | AJ70: € / m2 | AK70: Fen
G71: PMCB | H71: B_46 | I71: Menuiseries intérieures et extérieures, fermetures | J71: Volet roulant | K71: =VLOOKUP(J71,'Comprendre la codification'!$E$49:$F$216,2,FALSE) -> 407 | P71: MAT_12 | Q71: 12 - Matériaux inertes | R71: Terre cuite ou crue >90% | S71: Matière terre cuite | T71: =VLOOKUP(R71,'Comprendre la codification'!$D$219:$F$301,3,FALSE) -> 89 | W71: Plastiques ou autres matériaux synthétiques >50% | X71: =VLOOKUP(W71,R:T,3,FALSE) -> 05 | AH71: B_386 | AI71: 1,5m² < Fenêtre < 3,5 m² | AJ71: € / m2 | AK71: Fen
G72: PMCB | H72: B_46 | I72: Menuiseries intérieures et extérieures, fermetures | J72: Divers élements de menuiserie | K72: =VLOOKUP(J72,'Comprendre la codification'!$E$49:$F$216,2,FALSE) -> 410 | P72: MAT_12 | Q72: 12 - Matériaux inertes | R72: Béton >90% | S72: Assemblage de granulats (graviers, gravillons, sables, etc.), d'un liant (ciment, bitume, argile) d'adjuvants et d'eau | T72: =VLOOKUP(R72,'Comprendre la codification'!$D$219:$F$301,3,FALSE) -> 74 | W72: Plâtre >50% | X72: =VLOOKUP(W72,R:T,3,FALSE) -> 76 | AH72: B_386 | AI72: Fenêtre >= 3,5 m² | AJ72: € / m2 | AK72: Fen
G73: PMCB | H73: ="B_"&VLOOKUP(I73,$D$3:$E$19,2,FALSE) -> B_46 | I73: Menuiseries intérieures et extérieures, fermetures | J73: Bloc - Porte (huisserie métal) | K73: =VLOOKUP(J73,'Comprendre la codification'!$E$49:$F$216,2,FALSE) -> 411 | P73: MAT_12 | Q73: 12 - Matériaux inertes | R73: Béton cellulaire >90% | T73: =VLOOKUP(R73,'Comprendre la codification'!$D$219:$F$301,3,FALSE) -> 96 | W73: Plâtre >90% | X73: =VLOOKUP(W73,R:T,3,FALSE) -> 75 | AH73: B_386F | AI73: Eléments de toutes dimensions et poids | AJ73: € / Unité | AK73: DimU
G74: PMCB | H74: B_46 | I74: Menuiseries intérieures et extérieures, fermetures | J74: Bloc - Porte (huisserie bois) | K74: =VLOOKUP(J74,'Comprendre la codification'!$E$49:$F$216,2,FALSE) -> 412 | P74: MAT_12 | Q74: 12 - Matériaux inertes | R74: Ciment >90% | T74: =VLOOKUP(R74,'Comprendre la codification'!$D$219:$F$301,3,FALSE) -> 90 | W74: Polystyrène >90% | X74: =VLOOKUP(W74,R:T,3,FALSE) -> 47 | AH74: B_387 | AI74: Fenêtre <= 1,5 m² | AJ74: € / m2 | AK74: Fen
G75: PMCB | H75: ="B_"&VLOOKUP(I75,$D$3:$E$19,2,FALSE) -> B_46 | I75: Menuiseries intérieures et extérieures, fermetures | J75: Bloc - Porte (huisserie plastique) | K75: =VLOOKUP(J75,'Comprendre la codification'!$E$49:$F$216,2,FALSE) -> 413 | P75: MAT_12 | Q75: 12 - Matériaux inertes | R75: Granit >90% | S75: Matière à base de faïence ou grès | T75: =VLOOKUP(R75,'Comprendre la codification'!$D$219:$F$301,3,FALSE) -> 91 | W75: Polyterephtalate d'Ethylène (PET) >90% | X75: =VLOOKUP(W75,R:T,3,FALSE) -> 42 | AH75: B_387 | AI75: 1,5m² < Fenêtre < 3,5 m² | AJ75: € / m2 | AK75: Fen
G76: PMCB | H76: ="B_"&VLOOKUP(I76,$D$3:$E$19,2,FALSE) -> B_46 | I76: Menuiseries intérieures et extérieures, fermetures | J76: Bloc - Porte double vantail (huisserie métal) | K76: 545 | P76: MAT_12 | Q76: 12 - Matériaux inertes | R76: Céramique >90% | T76: =VLOOKUP(R76,'Comprendre la codification'!$D$219:$F$301,3,FALSE) -> 97 | W76: PVC >90% | X76: =VLOOKUP(W76,R:T,3,FALSE) -> 48 | AH76: B_387 | AI76: Fenêtre >= 3,5 m² | AJ76: € / m2 | AK76: Fen
G77: PMCB | H77: B_46 | I77: Menuiseries intérieures et extérieures, fermetures | J77: Bloc - Porte double vantail (huisserie bois) | K77: 546 | P77: MAT_12 | Q77: 12 - Matériaux inertes | R77: Mortier >90% | T77: =VLOOKUP(R77,'Comprendre la codification'!$D$219:$F$301,3,FALSE) -> 92 | W77: Verre >90% | X77: =VLOOKUP(W77,R:T,3,FALSE) -> 68 | AH77: B_387F | AI77: Eléments de toutes dimensions et poids | AJ77: € / Unité | AK77: DimU
G78: PMCB | H78: B_46 | I78: Menuiseries intérieures et extérieures, fermetures | J78: Bloc - Porte double vantail (huisserie plastique) | K78: 547 | P78: MAT_12 | Q78: 12 - Matériaux inertes | R78: Adjuvants >90% | T78: =VLOOKUP(R78,'Comprendre la codification'!$D$219:$F$301,3,FALSE) -> 93 | W78: Autre matériau majoritaire | X78: =VLOOKUP(W78,R:T,3,FALSE) -> 12 | AH78: B_388 | AI78: Eléments de toutes dimensions et poids | AJ78: € / Tonne | AK78: DimT
G79: PMCB | H79: B_47 | I79: Façades | J79: Mur-rideau | K79: =VLOOKUP(J79,'Comprendre la codification'!$E$49:$F$216,2,FALSE) -> 415 | P79: MAT_12 | Q79: 12 - Matériaux inertes | R79: Grès >90% | T79: =VLOOKUP(R79,'Comprendre la codification'!$D$219:$F$301,3,FALSE) -> 94 | W79: Non connu ou non spécifié par l'entreprise | X79: =VLOOKUP(W79,R:T,3,FALSE) -> 00 | AH79: B_389 | AI79: Eléments de toutes dimensions et poids | AJ79: € / ml | AK79: DimL
G80: PMCB | H80: B_47 | I80: Façades | J80: Bardage et clins | K80: =VLOOKUP(J80,'Comprendre la codification'!$E$49:$F$216,2,FALSE) -> 416 | P80: MAT_12 | Q80: 12 - Matériaux inertes | R80: Chaux >90% | S80: Matériau obtenu par moulage d'agrégats divers, charges et liants (béton, pierre reconstituée) ou par synthèse chimique | T80: =VLOOKUP(R80,'Comprendre la codification'!$D$219:$F$301,3,FALSE) -> 95 | W80: B_315 | AH80: B_390 | AI80: Eléments de toutes dimensions et poids | AJ80: € / Unité | AK80: DimU
G81: PMCB | H81: B_47 | I81: Façades | J81: Vêtures | K81: =VLOOKUP(J81,'Comprendre la codification'!$E$49:$F$216,2,FALSE) -> 417 | P81: MAT_12 | Q81: 12 - Matériaux inertes | R81: Pierre artificielle >90% | T81: =VLOOKUP(R81,'Comprendre la codification'!$D$219:$F$301,3,FALSE) -> 98 | W81: Béton >90% | X81: =VLOOKUP(W81,R:T,3,FALSE) -> 74 | AH81: B_391 | AI81: Eléments de toutes dimensions et poids | AJ81: € / Unité | AK81: DimU
G82: PMCB | H82: B_47 | I82: Façades | J82: Panneaux sandwich de façade | K82: =VLOOKUP(J82,'Comprendre la codification'!$E$49:$F$216,2,FALSE) -> 418 | W82: Autre matériau majoritaire | X82: =VLOOKUP(W82,R:T,3,FALSE) -> 12 | AH82: B_392 | AI82: Eléments de toutes dimensions et poids | AJ82: € / Unité | AK82: DimU
G83: PMCB | H83: B_47 | I83: Façades | J83: Divers éléments de façade | K83: =VLOOKUP(J83,'Comprendre la codification'!$E$49:$F$216,2,FALSE) -> 421 | W83: Mélange bitumineux >90% | X83: =VLOOKUP(W83,R:T,3,FALSE) -> 88 | AH83: B_393 | AI83: Eléments de toutes dimensions et poids | AJ83: € / Unité | AK83: DimU
G84: PMCB | H84: B_48 | I84: Revêtements des sols, murs et plafonds | J84: Pavés, dalles, plaquettes de parement en pierre | K84: =VLOOKUP(J84,'Comprendre la codification'!$E$49:$F$216,2,FALSE) -> 430 | W84: B_316 | AH84: B_394 | AI84: Eléments de toutes dimensions et poids | AJ84: € / Unité | AK84: DimU
G85: PMCB | H85: ="B_"&VLOOKUP(I85,$D$3:$E$19,2,FALSE) -> B_48 | I85: Revêtements des sols, murs et plafonds | J85: Carrelage sol & Faïence murale | K85: =VLOOKUP(J85,'Comprendre la codification'!$E$49:$F$216,2,FALSE) -> 431 | W85: ABS >90% | X85: =VLOOKUP(W85,R:T,3,FALSE) -> 46 | AH85: B_395 | AI85: Eléments de toutes dimensions et poids | AJ85: € / Unité | AK85: DimU
G86: PMCB | H86: B_48 | I86: Revêtements des sols, murs et plafonds | J86: Parquets, terrasses et lames en bois | K86: =VLOOKUP(J86,'Comprendre la codification'!$E$49:$F$216,2,FALSE) -> 432 | W86: Assemblage avec métal >50% et autres matériaux | X86: =VLOOKUP(W86,R:T,3,FALSE) -> 02 | AH86: B_396 | AI86: Eléments de toutes dimensions et poids | AJ86: € / Unité | AK86: Porte
G87: PMCB | H87: B_48 | I87: Revêtements des sols, murs et plafonds | J87: Lambris | K87: =VLOOKUP(J87,'Comprendre la codification'!$E$49:$F$216,2,FALSE) -> 433 | W87: Assemblage de 3 matériaux ou plus sans un matériau à plus de 50% | X87: =VLOOKUP(W87,R:T,3,FALSE) -> 82 | AH87: B_397 | AI87: Eléments de toutes dimensions et poids | AJ87: € / Unité | AK87: Porte
G88: PMCB | H88: B_48 | I88: Revêtements des sols, murs et plafonds | J88: Plinthes | K88: =VLOOKUP(J88,'Comprendre la codification'!$E$49:$F$216,2,FALSE) -> 434 | W88: Assemblage matériaux ou fibres synthétiques >50% avec d'autres matériaux | X88: =VLOOKUP(W88,R:T,3,FALSE) -> 67 | AH88: B_398 | AI88: Eléments de toutes dimensions et poids | AJ88: € / Unité | AK88: Porte
G89: PMCB | H89: B_48 | I89: Revêtements des sols, murs et plafonds | J89: Lames d'intérieur hors bois | K89: =VLOOKUP(J89,'Comprendre la codification'!$E$49:$F$216,2,FALSE) -> 435 | W89: Béton >90% | X89: =VLOOKUP(W89,R:T,3,FALSE) -> 74 | AH89: B_399 | AI89: Eléments de toutes dimensions et poids | AJ89: € / Unité | AK89: Porte
G90: PMCB | H90: B_48 | I90: Revêtements des sols, murs et plafonds | J90: Sols plastiques | K90: =VLOOKUP(J90,'Comprendre la codification'!$E$49:$F$216,2,FALSE) -> 436 | W90: Métal >90% | X90: =VLOOKUP(W90,R:T,3,FALSE) -> 28 | AH90: B_400 | AI90: Eléments de toutes dimensions et poids | AJ90: € / Unité | AK90: Porte
G91: PMCB | H91: B_48 | I91: Revêtements des sols, murs et plafonds | J91: Moquette de sol et murale fixe | K91: =VLOOKUP(J91,'Comprendre la codification'!$E$49:$F$216,2,FALSE) -> 437 | W91: PE ou PP ou mélange PP/PE >90% | X91: =VLOOKUP(W91,R:T,3,FALSE) -> 45 | AH91: B_401 | AI91: Eléments de toutes dimensions et poids | AJ91: € / Unité | AK91: Porte
G92: PMCB | H92: B_48 | I92: Revêtements des sols, murs et plafonds | J92: Papier peint et toile de verre | K92: =VLOOKUP(J92,'Comprendre la codification'!$E$49:$F$216,2,FALSE) -> 438 | W92: Plastiques (mono résine) >90% | X92: =VLOOKUP(W92,R:T,3,FALSE) -> 41 | AH92: B_402 | AI92: Eléments de toutes dimensions et poids | AJ92: € / Unité | AK92: DimU
G93: PMCB | H93: B_48 | I93: Revêtements des sols, murs et plafonds | J93: Revêtement mural en fibre naturelle | K93: =VLOOKUP(J93,'Comprendre la codification'!$E$49:$F$216,2,FALSE) -> 439 | W93: Plastiques ou autres matériaux synthétiques >50% | X93: =VLOOKUP(W93,R:T,3,FALSE) -> 05 | AH93: B_403 | AI93: Eléments de toutes dimensions et poids | AJ93: € / Unité | AK93: Porte
G94: PMCB | H94: B_48 | I94: Revêtements des sols, murs et plafonds | J94: Revêtement mural avec fibre de verre | K94: =VLOOKUP(J94,'Comprendre la codification'!$E$49:$F$216,2,FALSE) -> 440 | W94: Polystyrène >90% | X94: =VLOOKUP(W94,R:T,3,FALSE) -> 47 | AH94: B_404 | AI94: Fenêtre <= 1,5 m² | AJ94: € / m2 | AK94: Fen
G95: PMCB | H95: B_48 | I95: Revêtements des sols, murs et plafonds | J95: Divers dont moulures | K95: =VLOOKUP(J95,'Comprendre la codification'!$E$49:$F$216,2,FALSE) -> 443 | W95: Polyterephtalate d'Ethylène (PET) >90% | X95: =VLOOKUP(W95,R:T,3,FALSE) -> 42 | AH95: B_404 | AI95: 1,5m² < Fenêtre < 3,5 m² | AJ95: € / m2 | AK95: Fen
G96: PMCB | H96: B_49 | I96: Quincaillerie du bâtiment | J96: Eléments de fermeture de portes et fenêtres, gonds et pentures | K96: =VLOOKUP(J96,'Comprendre la codification'!$E$49:$F$216,2,FALSE) -> 450 | W96: PVC >90% | X96: =VLOOKUP(W96,R:T,3,FALSE) -> 48 | AH96: B_405 | AI96: Fenêtre <= 1,5 m² | AJ96: € / m2 | AK96: Fen
G97: PMCB | H97: B_49 | I97: Quincaillerie du bâtiment | J97: Bas de portes | K97: =VLOOKUP(J97,'Comprendre la codification'!$E$49:$F$216,2,FALSE) -> 451 | W97: Autre matériau majoritaire | X97: =VLOOKUP(W97,R:T,3,FALSE) -> 12 | AH97: B_405 | AI97: 1,5m² < Fenêtre < 3,5 m² | AJ97: € / m2 | AK97: Fen
G98: PMCB | H98: B_49 | I98: Quincaillerie du bâtiment | J98: Accessoires de pose | K98: =VLOOKUP(J98,'Comprendre la codification'!$E$49:$F$216,2,FALSE) -> 452 | W98: Non connu ou non spécifié par l'entreprise | X98: =VLOOKUP(W98,R:T,3,FALSE) -> 00 | AH98: B_406 | AI98: Fenêtre <= 1,5 m² | AJ98: € / m2 | AK98: Fen
G99: PMCB | H99: B_49 | I99: Quincaillerie du bâtiment | J99: Quincallerie et accessoire divers toute catégorie | K99: =VLOOKUP(J99,'Comprendre la codification'!$E$49:$F$216,2,FALSE) -> 455 | W99: B_317 | AH99: B_406 | AI99: 1,5m² < Fenêtre < 3,5 m² | AJ99: € / m2 | AK99: Fen
G100: PMCB | H100: B_50 | I100: Peinture, lasures et vernis, droguerie, colles et traitement, adjuvants | J100: Sous-couches, préparation des sols et étanchéité | K100: =VLOOKUP(J100,'Comprendre la codification'!$E$49:$F$216,2,FALSE) -> 465 | W100: ABS >90% | X100: =VLOOKUP(W100,R:T,3,FALSE) -> 46 | AH100: B_407 | AI100: Fenêtre <= 1,5 m² | AJ100: € / m2 | AK100: Fen
G101: PMCB | H101: B_50 | I101: Peinture, lasures et vernis, droguerie, colles et traitement, adjuvants | J101: Traitements des murs et toitures | K101: =VLOOKUP(J101,'Comprendre la codification'!$E$49:$F$216,2,FALSE) -> 467 | W101: Assemblage avec métal >50% et autres matériaux | X101: =VLOOKUP(W101,R:T,3,FALSE) -> 02 | AH101: B_407 | AI101: 1,5m² < Fenêtre < 3,5 m² | AJ101: € / m2 | AK101: Fen
G102: PMCB | H102: B_50 | I102: Peinture, lasures et vernis, droguerie, colles et traitement, adjuvants | J102: Peintures intérieures | K102: =VLOOKUP(J102,'Comprendre la codification'!$E$49:$F$216,2,FALSE) -> 468 | W102: Assemblage de 3 matériaux ou plus sans un matériau à plus de 50% | X102: =VLOOKUP(W102,R:T,3,FALSE) -> 82 | AH102: B_410 | AI102: Eléments de toutes dimensions et poids | AJ102: € / Tonne | AK102: DimT
G103: PMCB | H103: B_50 | I103: Peinture, lasures et vernis, droguerie, colles et traitement, adjuvants | J103: Colles et adhésifs | K103: =VLOOKUP(J103,'Comprendre la codification'!$E$49:$F$216,2,FALSE) -> 469 | W103: Assemblage matériaux ou fibres synthétiques >50% avec d'autres matériaux | X103: =VLOOKUP(W103,R:T,3,FALSE) -> 67 | AH103: B_411 | AI103: Eléments de toutes dimensions et poids | AJ103: € / Unité | AK103: DimU
G104: PMCB | H104: B_50 | I104: Peinture, lasures et vernis, droguerie, colles et traitement, adjuvants | J104: Mastic, joints et mousses polyuréthanes | K104: =VLOOKUP(J104,'Comprendre la codification'!$E$49:$F$216,2,FALSE) -> 470 | W104: Béton >90% | X104: =VLOOKUP(W104,R:T,3,FALSE) -> 74 | AH104: B_412 | AI104: Eléments de toutes dimensions et poids | AJ104: € / Unité | AK104: DimU
G105: PMCB | H105: B_50 | I105: Peinture, lasures et vernis, droguerie, colles et traitement, adjuvants | J105: Adjuvants | K105: =VLOOKUP(J105,'Comprendre la codification'!$E$49:$F$216,2,FALSE) -> 471 | W105: Caoutchouc synthétique >90% | X105: =VLOOKUP(W105,R:T,3,FALSE) -> 49 | AH105: B_413 | AI105: Eléments de toutes dimensions et poids | AJ105: € / Unité | AK105: DimU
G106: PMCB | H106: B_50 | I106: Peinture, lasures et vernis, droguerie, colles et traitement, adjuvants | J106: Traitements bois | K106: =VLOOKUP(J106,'Comprendre la codification'!$E$49:$F$216,2,FALSE) -> 472 | W106: Matériaux ou fibres synthétiques >90% | X106: =VLOOKUP(W106,R:T,3,FALSE) -> 65 | AH106: B_415 | AI106: Eléments de toutes dimensions et poids | AJ106: € / Tonne | AK106: DimT
G107: PMCB | H107: B_50 | I107: Peinture, lasures et vernis, droguerie, colles et traitement, adjuvants | J107: Vernis et vitrificateurs | K107: =VLOOKUP(J107,'Comprendre la codification'!$E$49:$F$216,2,FALSE) -> 473 | W107: Métal >90% | X107: =VLOOKUP(W107,R:T,3,FALSE) -> 28 | AH107: B_416 | AI107: Eléments de toutes dimensions et poids | AJ107: € / Tonne | AK107: DimT
G108: PMCB | H108: B_50 | I108: Peinture, lasures et vernis, droguerie, colles et traitement, adjuvants | J108: Absorbeurs d'humidité | K108: =VLOOKUP(J108,'Comprendre la codification'!$E$49:$F$216,2,FALSE) -> 474 | W108: PE ou PP ou mélange PP/PE >90% | X108: =VLOOKUP(W108,R:T,3,FALSE) -> 45 | AH108: B_417 | AI108: Eléments de toutes dimensions et poids | AJ108: € / Tonne | AK108: DimT
G109: PMCB | H109: B_50 | I109: Peinture, lasures et vernis, droguerie, colles et traitement, adjuvants | J109: Décapants | K109: =VLOOKUP(J109,'Comprendre la codification'!$E$49:$F$216,2,FALSE) -> 475 | W109: Plastiques (mono résine) >90% | X109: =VLOOKUP(W109,R:T,3,FALSE) -> 41 | AH109: B_418 | AI109: Eléments de toutes dimensions et poids | AJ109: € / Tonne | AK109: DimT
G110: PMCB | H110: B_50 | I110: Peinture, lasures et vernis, droguerie, colles et traitement, adjuvants | J110: Diluants, solvants | K110: =VLOOKUP(J110,'Comprendre la codification'!$E$49:$F$216,2,FALSE) -> 476 | W110: Plastiques ou autres matériaux synthétiques >50% | X110: =VLOOKUP(W110,R:T,3,FALSE) -> 05 | AH110: B_421 | AI110: Eléments de toutes dimensions et poids | AJ110: € / Tonne | AK110: DimT
G111: PMCB | H111: B_50 | I111: Peinture, lasures et vernis, droguerie, colles et traitement, adjuvants | J111: Divers produits de droguerie du bâtiment | K111: =VLOOKUP(J111,'Comprendre la codification'!$E$49:$F$216,2,FALSE) -> 479 | W111: Polystyrène >90% | X111: =VLOOKUP(W111,R:T,3,FALSE) -> 47 | AH111: B_430 | AI111: Eléments de toutes dimensions et poids | AJ111: € / Tonne | AK111: DimT
G112: PMCB | H112: B_50 | I112: Peinture, lasures et vernis, droguerie, colles et traitement, adjuvants | J112: Enduits pate | K112: =VLOOKUP(J112,'Comprendre la codification'!$E$49:$F$216,2,FALSE) -> 480 | W112: Polyterephtalate d'Ethylène (PET) >90% | X112: =VLOOKUP(W112,R:T,3,FALSE) -> 42 | AH112: B_431 | AI112: Eléments de toutes dimensions et poids | AJ112: € / Tonne | AK112: DimT
G113: PMCB | H113: B_50 | I113: Peinture, lasures et vernis, droguerie, colles et traitement, adjuvants | J113: Enduits poudre | K113: =VLOOKUP(J113,'Comprendre la codification'!$E$49:$F$216,2,FALSE) -> 481 | W113: PVC >90% | X113: =VLOOKUP(W113,R:T,3,FALSE) -> 48 | AH113: B_432 | AI113: Eléments de toutes dimensions et poids | AJ113: € / Tonne | AK113: DimT
G114: PMCB | H114: B_50 | I114: Peinture, lasures et vernis, droguerie, colles et traitement, adjuvants | J114: Peintures extérieures, yc enduits et peintures de façade | K114: =VLOOKUP(J114,'Comprendre la codification'!$E$49:$F$216,2,FALSE) -> 482 | W114: Autre matériau majoritaire | X114: =VLOOKUP(W114,R:T,3,FALSE) -> 12 | AH114: B_432F | AI114: Eléments de toutes dimensions et poids | AJ114: € / m2 | AK114: Dim_2
G115: PMCB | H115: B_50 | I115: Peinture, lasures et vernis, droguerie, colles et traitement, adjuvants | J115: Résines PU et expansive (aérosol) | K115: =VLOOKUP(J115,'Comprendre la codification'!$E$49:$F$216,2,FALSE) -> 483 | W115: Non connu ou non spécifié par l'entreprise | X115: =VLOOKUP(W115,R:T,3,FALSE) -> 00 | AH115: B_433 | AI115: Eléments de toutes dimensions et poids | AJ115: € / Tonne | AK115: DimT
G116: PMCB | H116: B_50 | I116: Peinture, lasures et vernis, droguerie, colles et traitement, adjuvants | J116: Traitement anti-termite | K116: =VLOOKUP(J116,'Comprendre la codification'!$E$49:$F$216,2,FALSE) -> 484 | W116: B_318 | AH116: B_433F | AI116: Eléments de toutes dimensions et poids | AJ116: € / m2 | AK116: Dim_2
G117: PMCB | H117: B_50 | I117: Peinture, lasures et vernis, droguerie, colles et traitement, adjuvants | J117: Traitement des matériaux (aérosol) | K117: =VLOOKUP(J117,'Comprendre la codification'!$E$49:$F$216,2,FALSE) -> 485 | W117: ABS >90% | X117: =VLOOKUP(W117,R:T,3,FALSE) -> 46 | AH117: B_434 | AI117: Eléments de toutes dimensions et poids | AJ117: € / Tonne | AK117: DimT
G118: PMCB | H118: B_50 | I118: Peinture, lasures et vernis, droguerie, colles et traitement, adjuvants | J118: Traitement des matériaux hors bois | K118: =VLOOKUP(J118,'Comprendre la codification'!$E$49:$F$216,2,FALSE) -> 486 | W118: Assemblage avec métal >50% et autres matériaux | X118: =VLOOKUP(W118,R:T,3,FALSE) -> 02 | AH118: B_434F | AI118: Eléments de toutes dimensions et poids | AJ118: € / ml | AK118: DimL
G119: PMCB | H119: B_50 | I119: Peinture, lasures et vernis, droguerie, colles et traitement, adjuvants | J119: Vernis et vitrificateurs et dérivés (aérosols) | K119: =VLOOKUP(J119,'Comprendre la codification'!$E$49:$F$216,2,FALSE) -> 487 | W119: Assemblage de 3 matériaux ou plus sans un matériau à plus de 50% | X119: =VLOOKUP(W119,R:T,3,FALSE) -> 82 | AH119: B_435 | AI119: Eléments de toutes dimensions et poids | AJ119: € / Tonne | AK119: DimT
G120: PMCB | H120: ="B_"&VLOOKUP(I120,$D$3:$E$19,2,FALSE) -> B_51 | I120: Equipements sanitaires pour salle de bain, cuisine et WC | J120: Eviers, vasques et lavabo | K120: =VLOOKUP(J120,'Comprendre la codification'!$E$49:$F$216,2,FALSE) -> 495 | W120: Assemblage matériaux ou fibres synthétiques >50% avec d'autres matériaux | X120: =VLOOKUP(W120,R:T,3,FALSE) -> 67 | AH120: B_436 | AI120: Eléments de toutes dimensions et poids | AJ120: € / Tonne | AK120: DimT
G121: PMCB | H121: B_51 | I121: Equipements sanitaires pour salle de bain, cuisine et WC | J121: Receveurs de douche et baignoires | K121: =VLOOKUP(J121,'Comprendre la codification'!$E$49:$F$216,2,FALSE) -> 496 | W121: Béton >90% | X121: =VLOOKUP(W121,R:T,3,FALSE) -> 74 | AH121: B_436F | AI121: Eléments de toutes dimensions et poids | AJ121: € / m2 | AK121: Dim_2
G122: PMCB | H122: B_51 | I122: Equipements sanitaires pour salle de bain, cuisine et WC | J122: WC | K122: =VLOOKUP(J122,'Comprendre la codification'!$E$49:$F$216,2,FALSE) -> 497 | W122: Métal >90% | X122: =VLOOKUP(W122,R:T,3,FALSE) -> 28 | AH122: B_437 | AI122: Eléments de toutes dimensions et poids | AJ122: € / Tonne | AK122: DimT
G123: PMCB | H123: ="B_"&VLOOKUP(I123,$D$3:$E$19,2,FALSE) -> B_51 | I123: Equipements sanitaires pour salle de bain, cuisine et WC | J123: Pare-baignoire, pare-douche et cabines intégrales de douche | K123: =VLOOKUP(J123,'Comprendre la codification'!$E$49:$F$216,2,FALSE) -> 498 | W123: PE ou PP ou mélange PP/PE >90% | X123: =VLOOKUP(W123,R:T,3,FALSE) -> 45 | AH123: B_438 | AI123: Eléments de toutes dimensions et poids | AJ123: € / Tonne | AK123: DimT
G124: PMCB | H124: ="B_"&VLOOKUP(I124,$D$3:$E$19,2,FALSE) -> B_51 | I124: Equipements sanitaires pour salle de bain, cuisine et WC | J124: Robinetterie et colonne de douche et bain | K124: =VLOOKUP(J124,'Comprendre la codification'!$E$49:$F$216,2,FALSE) -> 499 | W124: Plastiques (mono résine) >90% | X124: =VLOOKUP(W124,R:T,3,FALSE) -> 41 | AH124: B_439 | AI124: Eléments de toutes dimensions et poids | AJ124: € / m2 | AK124: Dim_2
G125: PMCB | H125: B_51 | I125: Equipements sanitaires pour salle de bain, cuisine et WC | J125: Receveur de douche | K125: =VLOOKUP(J125,'Comprendre la codification'!$E$49:$F$216,2,FALSE) -> 501 | W125: Plastiques ou autres matériaux synthétiques >50% | X125: =VLOOKUP(W125,R:T,3,FALSE) -> 05 | AH125: B_440 | AI125: Eléments de toutes dimensions et poids | AJ125: € / m2 | AK125: Dim_2
G126: PMCB | H126: B_51 | I126: Equipements sanitaires pour salle de bain, cuisine et WC | J126: Baignoire (hors balnéo) | K126: =VLOOKUP(J126,'Comprendre la codification'!$E$49:$F$216,2,FALSE) -> 502 | W126: Polystyrène >90% | X126: =VLOOKUP(W126,R:T,3,FALSE) -> 47 | AH126: B_443 | AI126: Eléments de toutes dimensions et poids | AJ126: € / Tonne | AK126: DimT
G127: PMCB | H127: B_51 | I127: Equipements sanitaires pour salle de bain, cuisine et WC | J127: Divers équipements sanitaires et accessoires vendus séparément hors robinetterie | K127: =VLOOKUP(J127,'Comprendre la codification'!$E$49:$F$216,2,FALSE) -> 505 | W127: Polyterephtalate d'Ethylène (PET) >90% | X127: =VLOOKUP(W127,R:T,3,FALSE) -> 42 | AH127: B_450 | AI127: Eléments de toutes dimensions et poids | AJ127: € / Tonne | AK127: DimT
G128: PMCB | H128: ="B_"&VLOOKUP(I128,$D$3:$E$19,2,FALSE) -> B_52 | I128: Electricité | J128: Fils et câbles | K128: =VLOOKUP(J128,'Comprendre la codification'!$E$49:$F$216,2,FALSE) -> 510 | W128: PVC >90% | X128: =VLOOKUP(W128,R:T,3,FALSE) -> 48 | AH128: B_451 | AI128: Eléments de toutes dimensions et poids | AJ128: € / Tonne | AK128: DimT
G129: PMCB | H129: B_52 | I129: Electricité | J129: Gaines et fixation | K129: =VLOOKUP(J129,'Comprendre la codification'!$E$49:$F$216,2,FALSE) -> 511 | W129: Non connu ou non spécifié par l'entreprise | X129: =VLOOKUP(W129,R:T,3,FALSE) -> 00 | AH129: B_452 | AI129: Eléments de toutes dimensions et poids | AJ129: € / Tonne | AK129: DimT
G130: PMCB | H130: B_52 | I130: Electricité | J130: Ascenseurs (hors machinerie) | K130: =VLOOKUP(J130,'Comprendre la codification'!$E$49:$F$216,2,FALSE) -> 512 | W130: ABS >90% | X130: =VLOOKUP(W130,R:T,3,FALSE) -> 46 | AH130: B_455 | AI130: Eléments de toutes dimensions et poids | AJ130: € / Tonne | AK130: DimT
G131: PMCB | H131: B_52 | I131: Electricité | J131: Caissons de télécommunication | K131: =VLOOKUP(J131,'Comprendre la codification'!$E$49:$F$216,2,FALSE) -> 513 | W131: Assemblage avec métal >50% et autres matériaux | X131: =VLOOKUP(W131,R:T,3,FALSE) -> 02 | AH131: B_455F | AI131: Par lot ou par unité < 1 kg | AJ131: € / Unité | AK131: Lot
G132: PMCB | H132: B_52 | I132: Electricité | J132: Supports pour lignes aériennes | K132: =VLOOKUP(J132,'Comprendre la codification'!$E$49:$F$216,2,FALSE) -> 514 | W132: Assemblage de 3 matériaux ou plus sans un matériau à plus de 50% | X132: =VLOOKUP(W132,R:T,3,FALSE) -> 82 | AH132: B_455F | AI132: Par lot ou par unité < 300 g | AJ132: € / Unité | AK132: Lot
G133: PMCB | H133: B_52 | I133: Electricité | J133: Divers produits d'électricité hors prises | K133: =VLOOKUP(J133,'Comprendre la codification'!$E$49:$F$216,2,FALSE) -> 516 | W133: Assemblage de bois, dérivés de bois à plus de 50% avec d'autres matériaux ou bois composite (hors verre) | X133: =VLOOKUP(W133,R:T,3,FALSE) -> 01 | AH133: B_455F | AI133: Par lot ou par unité < 5 kg | AJ133: € / Unité | AK133: Lot
G134: PMCB | H134: ="B_"&VLOOKUP(I134,$D$3:$E$19,2,FALSE) -> B_53 | I134: Chauffage et traitement de l'air | J134: Cheminées et inserts | K134: =VLOOKUP(J134,'Comprendre la codification'!$E$49:$F$216,2,FALSE) -> 525 | W134: Assemblage matériaux ou fibres synthétiques >50% avec d'autres matériaux | X134: =VLOOKUP(W134,R:T,3,FALSE) -> 67 | AH134: B_465 | AI134: Eléments de toutes dimensions et poids | AJ134: € / Tonne | AK134: DimT
G135: PMCB | H135: B_53 | I135: Chauffage et traitement de l'air | J135: Fumisterie | K135: =VLOOKUP(J135,'Comprendre la codification'!$E$49:$F$216,2,FALSE) -> 526 | W135: Assemblage verre à plus de 50% avec bois ou dérivés de bois | X135: =VLOOKUP(W135,R:T,3,FALSE) -> 72 | AH135: B_467 | AI135: Eléments de toutes dimensions et poids | AJ135: € / Tonne | AK135: DimT
G136: PMCB | H136: B_53 | I136: Chauffage et traitement de l'air | J136: Chauffage central | K136: =VLOOKUP(J136,'Comprendre la codification'!$E$49:$F$216,2,FALSE) -> 527 | W136: Assemblage verre à plus de 50% avec Inerte | X136: =VLOOKUP(W136,R:T,3,FALSE) -> 71 | AH136: B_468 | AI136: Eléments de toutes dimensions et poids | AJ136: € / Tonne | AK136: DimT
G137: PMCB | H137: B_53 | I137: Chauffage et traitement de l'air | J137: Radiateurs | K137: =VLOOKUP(J137,'Comprendre la codification'!$E$49:$F$216,2,FALSE) -> 528 | W137: Assemblage verre à plus de 50% avec métal | X137: =VLOOKUP(W137,R:T,3,FALSE) -> 70 | AH137: B_469 | AI137: Eléments de toutes dimensions et poids | AJ137: € / Tonne | AK137: DimT
G138: PMCB | H138: B_53 | I138: Chauffage et traitement de l'air | J138: Poêles non-électriques | K138: =VLOOKUP(J138,'Comprendre la codification'!$E$49:$F$216,2,FALSE) -> 529 | W138: Assemblage verre à plus de 50% avec plastique | X138: =VLOOKUP(W138,R:T,3,FALSE) -> 73 | AH138: B_470 | AI138: Eléments de toutes dimensions et poids | AJ138: € / Tonne | AK138: DimT
G139: PMCB | H139: B_53 | I139: Chauffage et traitement de l'air | J139: Traitement de l'air et ventilation | K139: =VLOOKUP(J139,'Comprendre la codification'!$E$49:$F$216,2,FALSE) -> 530 | W139: Béton >90% | X139: =VLOOKUP(W139,R:T,3,FALSE) -> 74 | AH139: B_471 | AI139: Eléments de toutes dimensions et poids | AJ139: € / Tonne | AK139: DimT
G140: PMCB | H140: ="B_"&VLOOKUP(I140,$D$3:$E$19,2,FALSE) -> B_54 | I140: Eléments de jardin maçonnés et leurs pièces structurelles | J140: Abris de jardins, serres maçonnées, pergolas et vérandas | K140: =VLOOKUP(J140,'Comprendre la codification'!$E$49:$F$216,2,FALSE) -> 535 | W140: Caoutchouc naturel >50% | X140: =VLOOKUP(W140,R:T,3,FALSE) -> 64 | AH140: B_472 | AI140: Eléments de toutes dimensions et poids | AJ140: € / Tonne | AK140: DimT
G141: PMCB | H141: B_54 | I141: Eléments de jardin maçonnés et leurs pièces structurelles | J141: Clôtures maçonnées et éléments de protection de la parcelle | K141: =VLOOKUP(J141,'Comprendre la codification'!$E$49:$F$216,2,FALSE) -> 536 | W141: Caoutchouc synthétique >90% | X141: =VLOOKUP(W141,R:T,3,FALSE) -> 49 | AH141: B_473 | AI141: Eléments de toutes dimensions et poids | AJ141: € / Tonne | AK141: DimT
G142: PMCB | H142: B_54 | I142: Eléments de jardin maçonnés et leurs pièces structurelles | J142: Piscine et accessoires de piscine | K142: =VLOOKUP(J142,'Comprendre la codification'!$E$49:$F$216,2,FALSE) -> 537 | W142: Dérivés de bois >90% | X142: =VLOOKUP(W142,R:T,3,FALSE) -> 62 | AH142: B_474 | AI142: Eléments de toutes dimensions et poids | AJ142: € / Tonne | AK142: DimT
G143: PMCB | H143: B_54 | I143: Eléments de jardin maçonnés et leurs pièces structurelles | J143: Divers produits de jardins associés à la construction | K143: =VLOOKUP(J143,'Comprendre la codification'!$E$49:$F$216,2,FALSE) -> 540 | W143: Massif et assimilés >90% | X143: =VLOOKUP(W143,R:T,3,FALSE) -> 53 | AH143: B_475 | AI143: Eléments de toutes dimensions et poids | AJ143: € / Tonne | AK143: DimT
G144: PMCB | H144: B_54 | I144: Eléments de jardin maçonnés et leurs pièces structurelles | J144: Eléments de construction pour exploitation agricole | K144: =VLOOKUP(J144,'Comprendre la codification'!$E$49:$F$216,2,FALSE) -> 538 | W144: Matériaux bio sourcés ou textiles non synthétiques >90% | X144: =VLOOKUP(W144,R:T,3,FALSE) -> 55 | AH144: B_476 | AI144: Eléments de toutes dimensions et poids | AJ144: € / Tonne | AK144: DimT
W145: Matériaux ou fibres synthétiques >90% | X145: =VLOOKUP(W145,R:T,3,FALSE) -> 65 | AH145: B_479 | AI145: Eléments de toutes dimensions et poids | AJ145: € / Tonne | AK145: DimT
W146: Métal >90% | X146: =VLOOKUP(W146,R:T,3,FALSE) -> 28 | AH146: B_480 | AI146: Eléments de toutes dimensions et poids | AJ146: € / Tonne | AK146: DimT
W147: Miroir >90% | X147: =VLOOKUP(W147,R:T,3,FALSE) -> 69 | AH147: B_481 | AI147: Eléments de toutes dimensions et poids | AJ147: € / Tonne | AK147: DimT
W148: Panneaux de particules ou OSB >90% | X148: =VLOOKUP(W148,R:T,3,FALSE) -> 61 | AH148: B_482 | AI148: Eléments de toutes dimensions et poids | AJ148: € / Tonne | AK148: DimT
W149: PE ou PP ou mélange PP/PE >90% | X149: =VLOOKUP(W149,R:T,3,FALSE) -> 45 | AH149: B_483 | AI149: Eléments de toutes dimensions et poids | AJ149: € / Tonne | AK149: DimT
W150: Plastiques (mono résine) >90% | X150: =VLOOKUP(W150,R:T,3,FALSE) -> 41 | AH150: B_484 | AI150: Eléments de toutes dimensions et poids | AJ150: € / Tonne | AK150: DimT
W151: Plastiques ou autres matériaux synthétiques >50% | X151: =VLOOKUP(W151,R:T,3,FALSE) -> 05 | AH151: B_485 | AI151: Eléments de toutes dimensions et poids | AJ151: € / Tonne | AK151: DimT
W152: Polystyrène >90% | X152: =VLOOKUP(W152,R:T,3,FALSE) -> 47 | AH152: B_486 | AI152: Eléments de toutes dimensions et poids | AJ152: € / Tonne | AK152: DimT
W153: Polyterephtalate d'Ethylène (PET) >90% | X153: =VLOOKUP(W153,R:T,3,FALSE) -> 42 | AH153: B_487 | AI153: Eléments de toutes dimensions et poids | AJ153: € / Tonne | AK153: DimT
W154: PVC >90% | X154: =VLOOKUP(W154,R:T,3,FALSE) -> 48 | AH154: B_495 | AI154: Eléments de toutes dimensions et poids | AJ154: € / Tonne | AK154: DimT
W155: Autre matériau majoritaire | X155: =VLOOKUP(W155,R:T,3,FALSE) -> 12 | AH155: B_495F | AI155: < 1m | AJ155: € / Unité | AK155: Evier
W156: Non connu ou non spécifié par l'entreprise | X156: =VLOOKUP(W156,R:T,3,FALSE) -> 00 | AH156: B_495F | AI156: >= 1m | AJ156: € / Unité | AK156: Evier
W157: B_330 | AH157: B_496 | AI157: Eléments de toutes dimensions et poids | AJ157: € / Tonne | AK157: DimT
W158: Assemblage avec métal >50% et autres matériaux | X158: =VLOOKUP(W158,R:T,3,FALSE) -> 02 | AH158: B_497 | AI158: Eléments de toutes dimensions et poids | AJ158: € / Tonne | AK158: DimT
W159: Assemblage de 3 matériaux ou plus sans un matériau à plus de 50% | X159: =VLOOKUP(W159,R:T,3,FALSE) -> 82 | AH159: B_497F | AI159: Eléments de toutes dimensions et poids | AJ159: € / Unité | AK159: DimU
W160: Assemblage de bois, dérivés de bois à plus de 50% avec d'autres matériaux ou bois composite (hors verre) | X160: =VLOOKUP(W160,R:T,3,FALSE) -> 01 | AH160: B_498 | AI160: Eléments de toutes dimensions et poids | AJ160: € / Tonne | AK160: DimT
W161: Béton >90% | X161: =VLOOKUP(W161,R:T,3,FALSE) -> 74 | AH161: B_499 | AI161: Eléments de toutes dimensions et poids | AJ161: € / Tonne | AK161: DimT
W162: Dérivés de bois >90% | X162: =VLOOKUP(W162,R:T,3,FALSE) -> 62 | AH162: B_501 | AI162: Eléments de toutes dimensions et poids | AJ162: € / Unité | AK162: DimU
W163: Massif et assimilés >90% | X163: =VLOOKUP(W163,R:T,3,FALSE) -> 53 | AH163: B_502 | AI163: Eléments de toutes dimensions et poids | AJ163: € / Unité | AK163: DimU
W164: Matériaux bio sourcés ou textiles non synthétiques >90% | X164: =VLOOKUP(W164,R:T,3,FALSE) -> 55 | AH164: B_505 | AI164: Eléments de toutes dimensions et poids | AJ164: € / Tonne | AK164: DimT
W165: Métal >90% | X165: =VLOOKUP(W165,R:T,3,FALSE) -> 28 | AH165: B_510 | AI165: Eléments de toutes dimensions et poids | AJ165: € / Tonne | AK165: DimT
W166: Panneaux de particules ou OSB >90% | X166: =VLOOKUP(W166,R:T,3,FALSE) -> 61 | AH166: B_511 | AI166: Eléments de toutes dimensions et poids | AJ166: € / Tonne | AK166: DimT
W167: Autre matériau majoritaire | X167: =VLOOKUP(W167,R:T,3,FALSE) -> 12 | AH167: B_512 | AI167: Eléments de toutes dimensions et poids | AJ167: € / Tonne | AK167: DimT
W168: Non connu ou non spécifié par l'entreprise | X168: =VLOOKUP(W168,R:T,3,FALSE) -> 00 | AH168: B_513 | AI168: Eléments de toutes dimensions et poids | AJ168: € / Tonne | AK168: DimT
W169: B_331 | AH169: B_514 | AI169: Eléments de toutes dimensions et poids | AJ169: € / Tonne | AK169: DimT
W170: Assemblage avec métal >50% et autres matériaux | X170: =VLOOKUP(W170,R:T,3,FALSE) -> 02 | AH170: B_516 | AI170: Eléments de toutes dimensions et poids | AJ170: € / Tonne | AK170: DimT
W171: Assemblage de 3 matériaux ou plus sans un matériau à plus de 50% | X171: =VLOOKUP(W171,R:T,3,FALSE) -> 82 | AH171: B_525 | AI171: Eléments de toutes dimensions et poids | AJ171: € / Tonne | AK171: DimT
W172: Métal >90% | X172: =VLOOKUP(W172,R:T,3,FALSE) -> 28 | AH172: B_526 | AI172: Eléments de toutes dimensions et poids | AJ172: € / Tonne | AK172: DimT
W173: Autre matériau majoritaire | X173: =VLOOKUP(W173,R:T,3,FALSE) -> 12 | AH173: B_527 | AI173: Eléments de toutes dimensions et poids | AJ173: € / Tonne | AK173: DimT
W174: Non connu ou non spécifié par l'entreprise | X174: =VLOOKUP(W174,R:T,3,FALSE) -> 00 | AH174: B_528 | AI174: Eléments de toutes dimensions et poids | AJ174: € / Tonne | AK174: DimT
W175: B_332 | AH175: B_528F | AI175: Radiateur < 1 mètre (plus grande largeur ou hauteur) | AJ175: € / Unité | AK175: Rad
W176: Assemblage avec métal >50% et autres matériaux | X176: =VLOOKUP(W176,R:T,3,FALSE) -> 02 | AH176: B_528F | AI176: Radiateur > 1 mètre (plus grande largeur ou hauteur) | AJ176: € / Unité | AK176: Rad
W177: Assemblage de 3 matériaux ou plus sans un matériau à plus de 50% | X177: =VLOOKUP(W177,R:T,3,FALSE) -> 82 | AH177: B_529 | AI177: Eléments de toutes dimensions et poids | AJ177: € / Tonne | AK177: DimT
W178: Assemblage de bois, dérivés de bois à plus de 50% avec d'autres matériaux ou bois composite (hors verre) | X178: =VLOOKUP(W178,R:T,3,FALSE) -> 01 | AH178: B_530 | AI178: Eléments de toutes dimensions et poids | AJ178: € / Tonne | AK178: DimT
W179: Béton cellulaire >90% | X179: =VLOOKUP(W179,R:T,3,FALSE) -> 96 | AH179: B_535 | AI179: Eléments de toutes dimensions et poids | AJ179: € / Tonne | AK179: DimT
W180: Dérivés de bois >90% | X180: =VLOOKUP(W180,R:T,3,FALSE) -> 62 | AH180: B_536 | AI180: Eléments de toutes dimensions et poids | AJ180: € / Tonne | AK180: DimT
W181: Massif et assimilés >90% | X181: =VLOOKUP(W181,R:T,3,FALSE) -> 53 | AH181: B_537 | AI181: Eléments de toutes dimensions et poids | AJ181: € / Tonne | AK181: DimT
W182: Matériaux bio sourcés ou textiles non synthétiques >90% | X182: =VLOOKUP(W182,R:T,3,FALSE) -> 55 | AH182: B_538 | AI182: Eléments de toutes dimensions et poids | AJ182: € / Tonne | AK182: DimT
W183: Métal >90% | X183: =VLOOKUP(W183,R:T,3,FALSE) -> 28 | AH183: B_540 | AI183: Eléments de toutes dimensions et poids | AJ183: € / Tonne | AK183: DimT
W184: Panneaux de particules ou OSB >90% | X184: =VLOOKUP(W184,R:T,3,FALSE) -> 61 | AH184: B_431F | AI184: Eléments de toutes dimensions et poids | AJ184: € / m2 | AK184: Dim_2
W185: Papier carton >50% avec d'autres matériaux (hors verre) | X185: =VLOOKUP(W185,R:T,3,FALSE) -> 19 | AH185: B_545 | AI185: Eléments de toutes dimensions et poids | AJ185: € / Unité | AK185: DimU
W186: Pierre calcaire >90% | X186: =VLOOKUP(W186,R:T,3,FALSE) -> 86 | AH186: B_546 | AI186: Eléments de toutes dimensions et poids | AJ186: € / Unité | AK186: DimU
W187: Autre matériau majoritaire | X187: =VLOOKUP(W187,R:T,3,FALSE) -> 12 | AH187: B_547 | AI187: Eléments de toutes dimensions et poids | AJ187: € / Unité | AK187: DimU
W188: Non connu ou non spécifié par l'entreprise | X188: =VLOOKUP(W188,R:T,3,FALSE) -> 00 | AH188: B_382F | AI188: Fenêtre <= 1,5 m² | AJ188: € / m2 | AK188: Fen
D189: Textile et rembourrage en polyester >90% | W189: B_333 | AH189: B_382F | AI189: 1,5m² < Fenêtre < 3,5 m² | AJ189: € / m2 | AK189: Fen
B190: Code Mesure : 00 000 00 XXX 0 | W190: ABS >90% | X190: =VLOOKUP(W190,R:T,3,FALSE) -> 46 | AH190: B_382F | AI190: Fenêtre >= 3,5 m² | AJ190: € / m2 | AK190: Fen
W191: Assemblage avec métal >50% et autres matériaux | X191: =VLOOKUP(W191,R:T,3,FALSE) -> 02 | AH191: B_437F | AI191: Eléments de toutes dimensions et poids | AJ191: € / m2 | AK191: Dim_2
W192: Assemblage de 3 matériaux ou plus sans un matériau à plus de 50% | X192: =VLOOKUP(W192,R:T,3,FALSE) -> 82
W193: Assemblage matériaux ou fibres synthétiques >50% avec d'autres matériaux | X193: =VLOOKUP(W193,R:T,3,FALSE) -> 67
W194: Assemblage verre à plus de 50% avec bois ou dérivés de bois | X194: =VLOOKUP(W194,R:T,3,FALSE) -> 72
W195: Assemblage verre à plus de 50% avec Inerte | X195: =VLOOKUP(W195,R:T,3,FALSE) -> 71
W196: Assemblage verre à plus de 50% avec métal | X196: =VLOOKUP(W196,R:T,3,FALSE) -> 70
W197: Assemblage verre à plus de 50% avec plastique | X197: =VLOOKUP(W197,R:T,3,FALSE) -> 73
W198: Béton >90% | X198: =VLOOKUP(W198,R:T,3,FALSE) -> 74
W199: Caoutchouc naturel >50% | X199: =VLOOKUP(W199,R:T,3,FALSE) -> 64
W200: Caoutchouc synthétique >90% | X200: =VLOOKUP(W200,R:T,3,FALSE) -> 49
... 1817 more rows

Sheet Liste des tarifs
A1: REP | B1: Cat. REP | C1: Code Ecomaison | D1: Code Ecominéro | E1: Rayon | F1: Catégorie de produits | G1: Matériaux | H1: Tranches de dimensions | I1: Mesure | J1: Tarifs | K1: Eco-participation 2023 | L1: codes tarifs
A2: REP ABJ | B2: 3 | C2: 21100000000 | E2: Articles de bricolage | F2: Outillage à main et leurs accessoires | G2: Non connu ou non spécifié par l'entreprise | H2: Eléments de toutes dimensions et poids | I2: € / Tonne | J2: 215 | K2: 215 €/Tonne | L2: =VLOOKUP(J2,'Codes tarifs éco-part'!$C$3:$E$466,3,FALSE) -> 498
A3: REP ABJ | B3: 3 | C3: 21100010000 | E3: Articles de bricolage | F3: Outillage à main et leurs accessoires | G3: Assemblage de bois, dérivés de bois à plus de 50% avec d'autres matériaux ou bois composite (hors verre) | H3: Eléments de toutes dimensions et poids | I3: € / Tonne | J3: 45 | K3: 45 €/Tonne | L3: =VLOOKUP(J3,'Codes tarifs éco-part'!$C$3:$E$466,3,FALSE) -> 169
A4: REP ABJ | B4: 3 | C4: 21100020000 | E4: Articles de bricolage | F4: Outillage à main et leurs accessoires | G4: Assemblage avec métal >50% et autres matériaux | H4: Eléments de toutes dimensions et poids | I4: € / Tonne | J4: 10 | K4: 10 €/Tonne | L4: =VLOOKUP(J4,'Codes tarifs éco-part'!$C$3:$E$466,3,FALSE) -> 138
A5: REP ABJ | B5: 3 | C5: 21100040000 | E5: Articles de bricolage | F5: Outillage à main et leurs accessoires | G5: Matériaux bio sourcés ou textiles non synthétiques >50% | H5: Eléments de toutes dimensions et poids | I5: € / Tonne | J5: 215 | K5: 215 €/Tonne | L5: =VLOOKUP(J5,'Codes tarifs éco-part'!$C$3:$E$466,3,FALSE) -> 498
A6: REP ABJ | B6: 3 | C6: 21100050000 | E6: Articles de bricolage | F6: Outillage à main et leurs accessoires | G6: Plastiques ou autres matériaux synthétiques >50% | H6: Eléments de toutes dimensions et poids | I6: € / Tonne | J6: 215 | K6: 215 €/Tonne | L6: =VLOOKUP(J6,'Codes tarifs éco-part'!$C$3:$E$466,3,FALSE) -> 498
A7: REP ABJ | B7: 3 | C7: 21100060000 | E7: Articles de bricolage | F7: Outillage à main et leurs accessoires | G7: Matériaux d'origine animale >50% | H7: Eléments de toutes dimensions et poids | I7: € / Tonne | J7: 215 | K7: 215 €/Tonne | L7: =VLOOKUP(J7,'Codes tarifs éco-part'!$C$3:$E$466,3,FALSE) -> 498
A8: REP ABJ | B8: 3 | C8: 21100190000 | E8: Articles de bricolage | F8: Outillage à main et leurs accessoires | G8: Papier carton >50% avec d'autres matériaux (hors verre) | H8: Eléments de toutes dimensions et poids | I8: € / Tonne | J8: 215 | K8: 215 €/Tonne | L8: =VLOOKUP(J8,'Codes tarifs éco-part'!$C$3:$E$466,3,FALSE) -> 498
A9: REP ABJ | B9: 3 | C9: 21100200000 | E9: Articles de bricolage | F9: Outillage à main et leurs accessoires | G9: Massif et assimilés certifiés >75% | H9: Eléments de toutes dimensions et poids | I9: € / Tonne | J9: 45 | K9: 45 €/Tonne | L9: =VLOOKUP(J9,'Codes tarifs éco-part'!$C$3:$E$466,3,FALSE) -> 169
A10: REP ABJ | B10: 3 | C10: 21100210000 | E10: Articles de bricolage | F10: Outillage à main et leurs accessoires | G10: Massif et assimilés >75% | H10: Eléments de toutes dimensions et poids | I10: € / Tonne | J10: 45 | K10: 45 €/Tonne | L10: =VLOOKUP(J10,'Codes tarifs éco-part'!$C$3:$E$466,3,FALSE) -> 169
A11: REP ABJ | B11: 3 | C11: 21100250000 | E11: Articles de bricolage | F11: Outillage à main et leurs accessoires | G11: Panneaux de particules ou OSB >75% | H11: Eléments de toutes dimensions et poids | I11: € / Tonne | J11: 45 | K11: 45 €/Tonne | L11: =VLOOKUP(J11,'Codes tarifs éco-part'!$C$3:$E$466,3,FALSE) -> 169
A12: REP ABJ | B12: 3 | C12: 21100280000 | E12: Articles de bricolage | F12: Outillage à main et leurs accessoires | G12: Métal >90% | H12: Eléments de toutes dimensions et poids | I12: € / Tonne | J12: 10 | K12: 10 €/Tonne | L12: =VLOOKUP(J12,'Codes tarifs éco-part'!$C$3:$E$466,3,FALSE) -> 138
A13: REP ABJ | B13: 3 | C13: 21100400000 | E13: Articles de bricolage | F13: Outillage à main et leurs accessoires | G13: Assemblage caoutchouc synthétique ou latex >50% avec d'autres matériaux | H13: Eléments de toutes dimensions et poids | I13: € / Tonne | J13: 215 | K13: 215 €/Tonne | L13: =VLOOKUP(J13,'Codes tarifs éco-part'!$C$3:$E$466,3,FALSE) -> 498
A14: REP ABJ | B14: 3 | C14: 21100410000 | E14: Articles de bricolage | F14: Outillage à main et leurs accessoires | G14: Plastiques (mono résine) >90% | H14: Eléments de toutes dimensions et poids | I14: € / Tonne | J14: 165 | K14: 165 €/Tonne | L14: =VLOOKUP(J14,'Codes tarifs éco-part'!$C$3:$E$466,3,FALSE) -> 496
A15: REP ABJ | B15: 3 | C15: 21100420000 | E15: Articles de bricolage | F15: Outillage à main et leurs accessoires | G15: Polyterephtalate d'Ethylène (PET) >90% | H15: Eléments de toutes dimensions et poids | I15: € / Tonne | J15: 165 | K15: 165 €/Tonne | L15: =VLOOKUP(J15,'Codes tarifs éco-part'!$C$3:$E$466,3,FALSE) -> 496
A16: REP ABJ | B16: 3 | C16: 21100450000 | E16: Articles de bricolage | F16: Outillage à main et leurs accessoires | G16: PE ou PP ou mélange PP/PE >90% | H16: Eléments de toutes dimensions et poids | I16: € / Tonne | J16: 165 | K16: 165 €/Tonne | L16: =VLOOKUP(J16,'Codes tarifs éco-part'!$C$3:$E$466,3,FALSE) -> 496
A17: REP ABJ | B17: 3 | C17: 21100460000 | E17: Articles de bricolage | F17: Outillage à main et leurs accessoires | G17: ABS >90% | H17: Eléments de toutes dimensions et poids | I17: € / Tonne | J17: 165 | K17: 165 €/Tonne | L17: =VLOOKUP(J17,'Codes tarifs éco-part'!$C$3:$E$466,3,FALSE) -> 496
A18: REP ABJ | B18: 3 | C18: 21100470000 | E18: Articles de bricolage | F18: Outillage à main et leurs accessoires | G18: Polystyrène >90% | H18: Eléments de toutes dimensions et poids | I18: € / Tonne | J18: 165 | K18: 165 €/Tonne | L18: =VLOOKUP(J18,'Codes tarifs éco-part'!$C$3:$E$466,3,FALSE) -> 496
A19: REP ABJ | B19: 3 | C19: 21100480000 | E19: Articles de bricolage | F19: Outillage à main et leurs accessoires | G19: PVC >90% | H19: Eléments de toutes dimensions et poids | I19: € / Tonne | J19: 165 | K19: 165 €/Tonne | L19: =VLOOKUP(J19,'Codes tarifs éco-part'!$C$3:$E$466,3,FALSE) -> 496
A20: REP ABJ | B20: 3 | C20: 21100490000 | E20: Articles de bricolage | F20: Outillage à main et leurs accessoires | G20: Caoutchouc synthétique >90% | H20: Eléments de toutes dimensions et poids | I20: € / Tonne | J20: 165 | K20: 165 €/Tonne | L20: =VLOOKUP(J20,'Codes tarifs éco-part'!$C$3:$E$466,3,FALSE) -> 496
A21: REP ABJ | B21: 3 | C21: 21100520000 | E21: Articles de bricolage | F21: Outillage à main et leurs accessoires | G21: Massif et assimilés certifiés >90% | H21: Eléments de toutes dimensions et poids | I21: € / Tonne | J21: 45 | K21: 45 €/Tonne | L21: =VLOOKUP(J21,'Codes tarifs éco-part'!$C$3:$E$466,3,FALSE) -> 169
A22: REP ABJ | B22: 3 | C22: 21100530000 | E22: Articles de bricolage | F22: Outillage à main et leurs accessoires | G22: Massif et assimilés >90% | H22: Eléments de toutes dimensions et poids | I22: € / Tonne | J22: 45 | K22: 45 €/Tonne | L22: =VLOOKUP(J22,'Codes tarifs éco-part'!$C$3:$E$466,3,FALSE) -> 169
A23: REP ABJ | B23: 3 | C23: 21100550000 | E23: Articles de bricolage | F23: Outillage à main et leurs accessoires | G23: Matériaux bio sourcés ou textiles non synthétiques >90% | H23: Eléments de toutes dimensions et poids | I23: € / Tonne | J23: 50 | K23: 50 €/Tonne | L23: =VLOOKUP(J23,'Codes tarifs éco-part'!$C$3:$E$466,3,FALSE) -> 173
A24: REP ABJ | B24: 3 | C24: 21100590000 | E24: Articles de bricolage | F24: Outillage à main et leurs accessoires | G24: Panneaux de particules ou OSB certifiés >90% | H24: Eléments de toutes dimensions et poids | I24: € / Tonne | J24: 45 | K24: 45 €/Tonne | L24: =VLOOKUP(J24,'Codes tarifs éco-part'!$C$3:$E$466,3,FALSE) -> 169
A25: REP ABJ | B25: 3 | C25: 21100600000 | E25: Articles de bricolage | F25: Outillage à main et leurs accessoires | G25: Panneaux de particules ou OSB certifiés >75% | H25: Eléments de toutes dimensions et poids | I25: € / Tonne | J25: 45 | K25: 45 €/Tonne | L25: =VLOOKUP(J25,'Codes tarifs éco-part'!$C$3:$E$466,3,FALSE) -> 169
A26: REP ABJ | B26: 3 | C26: 21100610000 | E26: Articles de bricolage | F26: Outillage à main et leurs accessoires | G26: Panneaux de particules ou OSB >90% | H26: Eléments de toutes dimensions et poids | I26: € / Tonne | J26: 45 | K26: 45 €/Tonne | L26: =VLOOKUP(J26,'Codes tarifs éco-part'!$C$3:$E$466,3,FALSE) -> 169
A27: REP ABJ | B27: 3 | C27: 21100620000 | E27: Articles de bricolage | F27: Outillage à main et leurs accessoires | G27: Dérivés de bois >90% | H27: Eléments de toutes dimensions et poids | I27: € / Tonne | J27: 45 | K27: 45 €/Tonne | L27: =VLOOKUP(J27,'Codes tarifs éco-part'!$C$3:$E$466,3,FALSE) -> 169
A28: REP ABJ | B28: 3 | C28: 21100630000 | E28: Articles de bricolage | F28: Outillage à main et leurs accessoires | G28: Caoutchouc naturel >90% | H28: Eléments de toutes dimensions et poids | I28: € / Tonne | J28: 50 | K28: 50 €/Tonne | L28: =VLOOKUP(J28,'Codes tarifs éco-part'!$C$3:$E$466,3,FALSE) -> 173
A29: REP ABJ | B29: 3 | C29: 21100640000 | E29: Articles de bricolage | F29: Outillage à main et leurs accessoires | G29: Caoutchouc naturel >50% | H29: Eléments de toutes dimensions et poids | I29: € / Tonne | J29: 215 | K29: 215 €/Tonne | L29: =VLOOKUP(J29,'Codes tarifs éco-part'!$C$3:$E$466,3,FALSE) -> 498
A30: REP ABJ | B30: 3 | C30: 21100650000 | E30: Articles de bricolage | F30: Outillage à main et leurs accessoires | G30: Matériaux ou fibres synthétiques >90% | H30: Eléments de toutes dimensions et poids | I30: € / Tonne | J30: 165 | K30: 165 €/Tonne | L30: =VLOOKUP(J30,'Codes tarifs éco-part'!$C$3:$E$466,3,FALSE) -> 496
A31: REP ABJ | B31: 3 | C31: 21100670000 | E31: Articles de bricolage | F31: Outillage à main et leurs accessoires | G31: Assemblage matériaux ou fibres synthétiques >50% avec d'autres matériaux | H31: Eléments de toutes dimensions et poids | I31: € / Tonne | J31: 215 | K31: 215 €/Tonne | L31: =VLOOKUP(J31,'Codes tarifs éco-part'!$C$3:$E$466,3,FALSE) -> 498
A32: REP ABJ | B32: 3 | C32: 21100680000 | E32: Articles de bricolage | F32: Outillage à main et leurs accessoires | G32: Verre >90% | H32: Eléments de toutes dimensions et poids | I32: € / Tonne | J32: 5 | K32: 5 €/Tonne | L32: =VLOOKUP(J32,'Codes tarifs éco-part'!$C$3:$E$466,3,FALSE) -> 042
A33: REP ABJ | B33: 3 | C33: 21100700000 | E33: Articles de bricolage | F33: Outillage à main et leurs accessoires | G33: Assemblage verre à plus de 50% avec métal | H33: Eléments de toutes dimensions et poids | I33: € / Tonne | J33: 215 | K33: 215 €/Tonne | L33: =VLOOKUP(J33,'Codes tarifs éco-part'!$C$3:$E$466,3,FALSE) -> 498
A34: REP ABJ | B34: 3 | C34: 21100710000 | E34: Articles de bricolage | F34: Outillage à main et leurs accessoires | G34: Assemblage verre à plus de 50% avec Inerte | H34: Eléments de toutes dimensions et poids | I34: € / Tonne | J34: 215 | K34: 215 €/Tonne | L34: =VLOOKUP(J34,'Codes tarifs éco-part'!$C$3:$E$466,3,FALSE) -> 498
A35: REP ABJ | B35: 3 | C35: 21100720000 | E35: Articles de bricolage | F35: Outillage à main et leurs accessoires | G35: Assemblage verre à plus de 50% avec bois ou dérivés de bois | H35: Eléments de toutes dimensions et poids | I35: € / Tonne | J35: 215 | K35: 215 €/Tonne | L35: =VLOOKUP(J35,'Codes tarifs éco-part'!$C$3:$E$466,3,FALSE) -> 498
A36: REP ABJ | B36: 3 | C36: 21100730000 | E36: Articles de bricolage | F36: Outillage à main et leurs accessoires | G36: Assemblage verre à plus de 50% avec plastique | H36: Eléments de toutes dimensions et poids | I36: € / Tonne | J36: 215 | K36: 215 €/Tonne | L36: =VLOOKUP(J36,'Codes tarifs éco-part'!$C$3:$E$466,3,FALSE) -> 498
A37: REP ABJ | B37: 3 | C37: 21100810000 | E37: Articles de bricolage | F37: Outillage à main et leurs accessoires | G37: Assemblage dont la composition conjointe en bois, dérivés de bois et en métal dépasse 90% | H37: Eléments de toutes dimensions et poids | I37: € / Tonne | J37: 45 | K37: 45 €/Tonne | L37: =VLOOKUP(J37,'Codes tarifs éco-part'!$C$3:$E$466,3,FALSE) -> 169
A38: REP ABJ | B38: 3 | C38: 21100820000 | E38: Articles de bricolage | F38: Outillage à main et leurs accessoires | G38: Assemblage de 3 matériaux ou plus sans un matériau à plus de 50% | H38: Eléments de toutes dimensions et poids | I38: € / Tonne | J38: 215 | K38: 215 €/Tonne | L38: =VLOOKUP(J38,'Codes tarifs éco-part'!$C$3:$E$466,3,FALSE) -> 498
A39: REP ABJ | B39: 3 | C39: 21101000000 | E39: Articles de bricolage | F39: Gros objets et machines non électriques et non thermiques et leurs accessoires | G39: Non connu ou non spécifié par l'entreprise | H39: Eléments de toutes dimensions et poids | I39: € / Tonne | J39: 75 | K39: 75 €/Tonne | L39: =VLOOKUP(J39,'Codes tarifs éco-part'!$C$3:$E$466,3,FALSE) -> 192
A40: REP ABJ | B40: 3 | C40: 21101010000 | E40: Articles de bricolage | F40: Gros objets et machines non électriques et non thermiques et leurs accessoires | G40: Assemblage de bois, dérivés de bois à plus de 50% avec d'autres matériaux ou bois composite (hors verre) | H40: Eléments de toutes dimensions et poids | I40: € / Tonne | J40: 10 | K40: 10 €/Tonne | L40: =VLOOKUP(J40,'Codes tarifs éco-part'!$C$3:$E$466,3,FALSE) -> 138
A41: REP ABJ | B41: 3 | C41: 21101020000 | E41: Articles de bricolage | F41: Gros objets et machines non électriques et non thermiques et leurs accessoires | G41: Assemblage avec métal >50% et autres matériaux | H41: Eléments de toutes dimensions et poids | I41: € / Tonne | J41: 3 | K41: 3 €/Tonne | L41: =VLOOKUP(J41,'Codes tarifs éco-part'!$C$3:$E$466,3,FALSE) -> 474
A42: REP ABJ | B42: 3 | C42: 21101040000 | E42: Articles de bricolage | F42: Gros objets et machines non électriques et non thermiques et leurs accessoires | G42: Matériaux bio sourcés ou textiles non synthétiques >50% | H42: Eléments de toutes dimensions et poids | I42: € / Tonne | J42: 30 | K42: 30 €/Tonne | L42: =VLOOKUP(J42,'Codes tarifs éco-part'!$C$3:$E$466,3,FALSE) -> 153
A43: REP ABJ | B43: 3 | C43: 21101050000 | E43: Articles de bricolage | F43: Gros objets et machines non électriques et non thermiques et leurs accessoires | G43: Plastiques ou autres matériaux synthétiques >50% | H43: Eléments de toutes dimensions et poids | I43: € / Tonne | J43: 75 | K43: 75 €/Tonne | L43: =VLOOKUP(J43,'Codes tarifs éco-part'!$C$3:$E$466,3,FALSE) -> 192
A44: REP ABJ | B44: 3 | C44: 21101060000 | E44: Articles de bricolage | F44: Gros objets et machines non électriques et non thermiques et leurs accessoires | G44: Matériaux d'origine animale >50% | H44: Eléments de toutes dimensions et poids | I44: € / Tonne | J44: 30 | K44: 30 €/Tonne | L44: =VLOOKUP(J44,'Codes tarifs éco-part'!$C$3:$E$466,3,FALSE) -> 153
A45: REP ABJ | B45: 3 | C45: 21101080000 | E45: Articles de bricolage | F45: Gros objets et machines non électriques et non thermiques et leurs accessoires | G45: Assemblage de matériaux avec de l'inerte >50% | H45: Eléments de toutes dimensions et poids | I45: € / Tonne | J45: 75 | K45: 75 €/Tonne | L45: =VLOOKUP(J45,'Codes tarifs éco-part'!$C$3:$E$466,3,FALSE) -> 192
A46: REP ABJ | B46: 3 | C46: 21101150000 | E46: Articles de bricolage | F46: Gros objets et machines non électriques et non thermiques et leurs accessoires | G46: Composites et autres matériaux minéraux reconstitués >50% | H46: Eléments de toutes dimensions et poids | I46: € / Tonne | J46: 75 | K46: 75 €/Tonne | L46: =VLOOKUP(J46,'Codes tarifs éco-part'!$C$3:$E$466,3,FALSE) -> 192
A47: REP ABJ | B47: 3 | C47: 21101190000 | E47: Articles de bricolage | F47: Gros objets et machines non électriques et non thermiques et leurs accessoires | G47: Papier carton >50% avec d'autres matériaux (hors verre) | H47: Eléments de toutes dimensions et poids | I47: € / Tonne | J47: 30 | K47: 30 €/Tonne | L47: =VLOOKUP(J47,'Codes tarifs éco-part'!$C$3:$E$466,3,FALSE) -> 153
A48: REP ABJ | B48: 3 | C48: 21101200000 | E48: Articles de bricolage | F48: Gros objets et machines non électriques et non thermiques et leurs accessoires | G48: Massif et assimilés certifiés >75% | H48: Eléments de toutes dimensions et poids | I48: € / Tonne | J48: 10 | K48: 10 €/Tonne | L48: =VLOOKUP(J48,'Codes tarifs éco-part'!$C$3:$E$466,3,FALSE) -> 138
A49: REP ABJ | B49: 3 | C49: 21101210000 | E49: Articles de bricolage | F49: Gros objets et machines non électriques et non thermiques et leurs accessoires | G49: Massif et assimilés >75% | H49: Eléments de toutes dimensions et poids | I49: € / Tonne | J49: 10 | K49: 10 €/Tonne | L49: =VLOOKUP(J49,'Codes tarifs éco-part'!$C$3:$E$466,3,FALSE) -> 138
A50: REP ABJ | B50: 3 | C50: 21101250000 | E50: Articles de bricolage | F50: Gros objets et machines non électriques et non thermiques et leurs accessoires | G50: Panneaux de particules ou OSB >75% | H50: Eléments de toutes dimensions et poids | I50: € / Tonne | J50: 10 | K50: 10 €/Tonne | L50: =VLOOKUP(J50,'Codes tarifs éco-part'!$C$3:$E$466,3,FALSE) -> 138
A51: REP ABJ | B51: 3 | C51: 21101280000 | E51: Articles de bricolage | F51: Gros objets et machines non électriques et non thermiques et leurs accessoires | G51: Métal >90% | H51: Eléments de toutes dimensions et poids | I51: € / Tonne | J51: 3 | K51: 3 €/Tonne | L51: =VLOOKUP(J51,'Codes tarifs éco-part'!$C$3:$E$466,3,FALSE) -> 474
A52: REP ABJ | B52: 3 | C52: 21101400000 | E52: Articles de bricolage | F52: Gros objets et machines non électriques et non thermiques et leurs accessoires | G52: Assemblage caoutchouc synthétique ou latex >50% avec d'autres matériaux | H52: Eléments de toutes dimensions et poids | I52: € / Tonne | J52: 75 | K52: 75 €/Tonne | L52: =VLOOKUP(J52,'Codes tarifs éco-part'!$C$3:$E$466,3,FALSE) -> 192
A53: REP ABJ | B53: 3 | C53: 21101410000 | E53: Articles de bricolage | F53: Gros objets et machines non électriques et non thermiques et leurs accessoires | G53: Plastiques (mono résine) >90% | H53: Eléments de toutes dimensions et poids | I53: € / Tonne | J53: 50 | K53: 50 €/Tonne | L53: =VLOOKUP(J53,'Codes tarifs éco-part'!$C$3:$E$466,3,FALSE) -> 173
A54: REP ABJ | B54: 3 | C54: 21101420000 | E54: Articles de bricolage | F54: Gros objets et machines non électriques et non thermiques et leurs accessoires | G54: Polyterephtalate d'Ethylène (PET) >90% | H54: Eléments de toutes dimensions et poids | I54: € / Tonne | J54: 50 | K54: 50 €/Tonne | L54: =VLOOKUP(J54,'Codes tarifs éco-part'!$C$3:$E$466,3,FALSE) -> 173
A55: REP ABJ | B55: 3 | C55: 21101450000 | E55: Articles de bricolage | F55: Gros objets et machines non électriques et non thermiques et leurs accessoires | G55: PE ou PP ou mélange PP/PE >90% | H55: Eléments de toutes dimensions et poids | I55: € / Tonne | J55: 50 | K55: 50 €/Tonne | L55: =VLOOKUP(J55,'Codes tarifs éco-part'!$C$3:$E$466,3,FALSE) -> 173
A56: REP ABJ | B56: 3 | C56: 21101460000 | E56: Articles de bricolage | F56: Gros objets et machines non électriques et non thermiques et leurs accessoires | G56: ABS >90% | H56: Eléments de toutes dimensions et poids | I56: € / Tonne | J56: 50 | K56: 50 €/Tonne | L56: =VLOOKUP(J56,'Codes tarifs éco-part'!$C$3:$E$466,3,FALSE) -> 173
A57: REP ABJ | B57: 3 | C57: 21101470000 | E57: Articles de bricolage | F57: Gros objets et machines non électriques et non thermiques et leurs accessoires | G57: Polystyrène >90% | H57: Eléments de toutes dimensions et poids | I57: € / Tonne | J57: 50 | K57: 50 €/Tonne | L57: =VLOOKUP(J57,'Codes tarifs éco-part'!$C$3:$E$466,3,FALSE) -> 173
A58: REP ABJ | B58: 3 | C58: 21101480000 | E58: Articles de bricolage | F58: Gros objets et machines non électriques et non thermiques et leurs accessoires | G58: PVC >90% | H58: Eléments de toutes dimensions et poids | I58: € / Tonne | J58: 50 | K58: 50 €/Tonne | L58: =VLOOKUP(J58,'Codes tarifs éco-part'!$C$3:$E$466,3,FALSE) -> 173
A59: REP ABJ | B59: 3 | C59: 21101490000 | E59: Articles de bricolage | F59: Gros objets et machines non électriques et non thermiques et leurs accessoires | G59: Caoutchouc synthétique >90% | H59: Eléments de toutes dimensions et poids | I59: € / Tonne | J59: 50 | K59: 50 €/Tonne | L59: =VLOOKUP(J59,'Codes tarifs éco-part'!$C$3:$E$466,3,FALSE) -> 173
A60: REP ABJ | B60: 3 | C60: 21101520000 | E60: Articles de bricolage | F60: Gros objets et machines non électriques et non thermiques et leurs accessoires | G60: Massif et assimilés certifiés >90% | H60: Eléments de toutes dimensions et poids | I60: € / Tonne | J60: 10 | K60: 10 €/Tonne | L60: =VLOOKUP(J60,'Codes tarifs éco-part'!$C$3:$E$466,3,FALSE) -> 138
A61: REP ABJ | B61: 3 | C61: 21101530000 | E61: Articles de bricolage | F61: Gros objets et machines non électriques et non thermiques et leurs accessoires | G61: Massif et assimilés >90% | H61: Eléments de toutes dimensions et poids | I61: € / Tonne | J61: 10 | K61: 10 €/Tonne | L61: =VLOOKUP(J61,'Codes tarifs éco-part'!$C$3:$E$466,3,FALSE) -> 138
A62: REP ABJ | B62: 3 | C62: 21101550000 | E62: Articles de bricolage | F62: Gros objets et machines non électriques et non thermiques et leurs accessoires | G62: Matériaux bio sourcés ou textiles non synthétiques >90% | H62: Eléments de toutes dimensions et poids | I62: € / Tonne | J62: 30 | K62: 30 €/Tonne | L62: =VLOOKUP(J62,'Codes tarifs éco-part'!$C$3:$E$466,3,FALSE) -> 153
A63: REP ABJ | B63: 3 | C63: 21101590000 | E63: Articles de bricolage | F63: Gros objets et machines non électriques et non thermiques et leurs accessoires | G63: Panneaux de particules ou OSB certifiés >90% | H63: Eléments de toutes dimensions et poids | I63: € / Tonne | J63: 10 | K63: 10 €/Tonne | L63: =VLOOKUP(J63,'Codes tarifs éco-part'!$C$3:$E$466,3,FALSE) -> 138
A64: REP ABJ | B64: 3 | C64: 21101600000 | E64: Articles de bricolage | F64: Gros objets et machines non électriques et non thermiques et leurs accessoires | G64: Panneaux de particules ou OSB certifiés >75% | H64: Eléments de toutes dimensions et poids | I64: € / Tonne | J64: 10 | K64: 10 €/Tonne | L64: =VLOOKUP(J64,'Codes tarifs éco-part'!$C$3:$E$466,3,FALSE) -> 138
A65: REP ABJ | B65: 3 | C65: 21101610000 | E65: Articles de bricolage | F65: Gros objets et machines non électriques et non thermiques et leurs accessoires | G65: Panneaux de particules ou OSB >90% | H65: Eléments de toutes dimensions et poids | I65: € / Tonne | J65: 10 | K65: 10 €/Tonne | L65: =VLOOKUP(J65,'Codes tarifs éco-part'!$C$3:$E$466,3,FALSE) -> 138
A66: REP ABJ | B66: 3 | C66: 21101620000 | E66: Articles de bricolage | F66: Gros objets et machines non électriques et non thermiques et leurs accessoires | G66: Dérivés de bois >90% | H66: Eléments de toutes dimensions et poids | I66: € / Tonne | J66: 10 | K66: 10 €/Tonne | L66: =VLOOKUP(J66,'Codes tarifs éco-part'!$C$3:$E$466,3,FALSE) -> 138
A67: REP ABJ | B67: 3 | C67: 21101630000 | E67: Articles de bricolage | F67: Gros objets et machines non électriques et non thermiques et leurs accessoires | G67: Caoutchouc naturel >90% | H67: Eléments de toutes dimensions et poids | I67: € / Tonne | J67: 30 | K67: 30 €/Tonne | L67: =VLOOKUP(J67,'Codes tarifs éco-part'!$C$3:$E$466,3,FALSE) -> 153
A68: REP ABJ | B68: 3 | C68: 21101640000 | E68: Articles de bricolage | F68: Gros objets et machines non électriques et non thermiques et leurs accessoires | G68: Caoutchouc naturel >50% | H68: Eléments de toutes dimensions et poids | I68: € / Tonne | J68: 75 | K68: 75 €/Tonne | L68: =VLOOKUP(J68,'Codes tarifs éco-part'!$C$3:$E$466,3,FALSE) -> 192
A69: REP ABJ | B69: 3 | C69: 21101650000 | E69: Articles de bricolage | F69: Gros objets et machines non électriques et non thermiques et leurs accessoires | G69: Matériaux ou fibres synthétiques >90% | H69: Eléments de toutes dimensions et poids | I69: € / Tonne | J69: 50 | K69: 50 €/Tonne | L69: =VLOOKUP(J69,'Codes tarifs éco-part'!$C$3:$E$466,3,FALSE) -> 173
A70: REP ABJ | B70: 3 | C70: 21101670000 | E70: Articles de bricolage | F70: Gros objets et machines non électriques et non thermiques et leurs accessoires | G70: Assemblage matériaux ou fibres synthétiques >50% avec d'autres matériaux | H70: Eléments de toutes dimensions et poids | I70: € / Tonne | J70: 75 | K70: 75 €/Tonne | L70: =VLOOKUP(J70,'Codes tarifs éco-part'!$C$3:$E$466,3,FALSE) -> 192
A71: REP ABJ | B71: 3 | C71: 21101680000 | E71: Articles de bricolage | F71: Gros objets et machines non électriques et non thermiques et leurs accessoires | G71: Verre >90% | H71: Eléments de toutes dimensions et poids | I71: € / Tonne | J71: 5 | K71: 5 €/Tonne | L71: =VLOOKUP(J71,'Codes tarifs éco-part'!$C$3:$E$466,3,FALSE) -> 042
A72: REP ABJ | B72: 3 | C72: 21101700000 | E72: Articles de bricolage | F72: Gros objets et machines non électriques et non thermiques et leurs accessoires | G72: Assemblage verre à plus de 50% avec métal | H72: Eléments de toutes dimensions et poids | I72: € / Tonne | J72: 75 | K72: 75 €/Tonne | L72: =VLOOKUP(J72,'Codes tarifs éco-part'!$C$3:$E$466,3,FALSE) -> 192
A73: REP ABJ | B73: 3 | C73: 21101710000 | E73: Articles de bricolage | F73: Gros objets et machines non électriques et non thermiques et leurs accessoires | G73: Assemblage verre à plus de 50% avec Inerte | H73: Eléments de toutes dimensions et poids | I73: € / Tonne | J73: 75 | K73: 75 €/Tonne | L73: =VLOOKUP(J73,'Codes tarifs éco-part'!$C$3:$E$466,3,FALSE) -> 192
A74: REP ABJ | B74: 3 | C74: 21101720000 | E74: Articles de bricolage | F74: Gros objets et machines non électriques et non thermiques et leurs accessoires | G74: Assemblage verre à plus de 50% avec bois ou dérivés de bois | H74: Eléments de toutes dimensions et poids | I74: € / Tonne | J74: 75 | K74: 75 €/Tonne | L74: =VLOOKUP(J74,'Codes tarifs éco-part'!$C$3:$E$466,3,FALSE) -> 192
A75: REP ABJ | B75: 3 | C75: 21101730000 | E75: Articles de bricolage | F75: Gros objets et machines non électriques et non thermiques et leurs accessoires | G75: Assemblage verre à plus de 50% avec plastique | H75: Eléments de toutes dimensions et poids | I75: € / Tonne | J75: 75 | K75: 75 €/Tonne | L75: =VLOOKUP(J75,'Codes tarifs éco-part'!$C$3:$E$466,3,FALSE) -> 192
A76: REP ABJ | B76: 3 | C76: 21101740000 | E76: Articles de bricolage | F76: Gros objets et machines non électriques et non thermiques et leurs accessoires | G76: Béton >90% | H76: Eléments de toutes dimensions et poids | I76: € / Tonne | J76: 5 | K76: 5 €/Tonne | L76: =VLOOKUP(J76,'Codes tarifs éco-part'!$C$3:$E$466,3,FALSE) -> 042
A77: REP ABJ | B77: 3 | C77: 21101810000 | E77: Articles de bricolage | F77: Gros objets et machines non électriques et non thermiques et leurs accessoires | G77: Assemblage dont la composition conjointe en bois, dérivés de bois et en métal dépasse 90% | H77: Eléments de toutes dimensions et poids | I77: € / Tonne | J77: 10 | K77: 10 €/Tonne | L77: =VLOOKUP(J77,'Codes tarifs éco-part'!$C$3:$E$466,3,FALSE) -> 138
A78: REP ABJ | B78: 3 | C78: 21101820000 | E78: Articles de bricolage | F78: Gros objets et machines non électriques et non thermiques et leurs accessoires | G78: Assemblage de 3 matériaux ou plus sans un matériau à plus de 50% | H78: Eléments de toutes dimensions et poids | I78: € / Tonne | J78: 75 | K78: 75 €/Tonne | L78: =VLOOKUP(J78,'Codes tarifs éco-part'!$C$3:$E$466,3,FALSE) -> 192
A79: REP ABJ | B79: 3 | C79: 21101840000 | E79: Articles de bricolage | F79: Gros objets et machines non électriques et non thermiques et leurs accessoires | G79: Ardoise >90% | H79: Eléments de toutes dimensions et poids | I79: € / Tonne | J79: 5 | K79: 5 €/Tonne | L79: =VLOOKUP(J79,'Codes tarifs éco-part'!$C$3:$E$466,3,FALSE) -> 042
A80: REP ABJ | B80: 3 | C80: 21101860000 | E80: Articles de bricolage | F80: Gros objets et machines non électriques et non thermiques et leurs accessoires | G80: Pierre calcaire >90% | H80: Eléments de toutes dimensions et poids | I80: € / Tonne | J80: 5 | K80: 5 €/Tonne | L80: =VLOOKUP(J80,'Codes tarifs éco-part'!$C$3:$E$466,3,FALSE) -> 042
A81: REP ABJ | B81: 3 | C81: 21101870000 | E81: Articles de bricolage | F81: Gros objets et machines non électriques et non thermiques et leurs accessoires | G81: Lave >90% | H81: Eléments de toutes dimensions et poids | I81: € / Tonne | J81: 5 | K81: 5 €/Tonne | L81: =VLOOKUP(J81,'Codes tarifs éco-part'!$C$3:$E$466,3,FALSE) -> 042
A82: REP ABJ | B82: 3 | C82: 21101890000 | E82: Articles de bricolage | F82: Gros objets et machines non électriques et non thermiques et leurs accessoires | G82: Terre cuite ou crue >90% | H82: Eléments de toutes dimensions et poids | I82: € / Tonne | J82: 5 | K82: 5 €/Tonne | L82: =VLOOKUP(J82,'Codes tarifs éco-part'!$C$3:$E$466,3,FALSE) -> 042
A83: REP ABJ | B83: 3 | C83: 21101900000 | E83: Articles de bricolage | F83: Gros objets et machines non électriques et non thermiques et leurs accessoires | G83: Ciment >90% | H83: Eléments de toutes dimensions et poids | I83: € / Tonne | J83: 5 | K83: 5 €/Tonne | L83: =VLOOKUP(J83,'Codes tarifs éco-part'!$C$3:$E$466,3,FALSE) -> 042
A84: REP ABJ | B84: 3 | C84: 21101910000 | E84: Articles de bricolage | F84: Gros objets et machines non électriques et non thermiques et leurs accessoires | G84: Granit >90% | H84: Eléments de toutes dimensions et poids | I84: € / Tonne | J84: 5 | K84: 5 €/Tonne | L84: =VLOOKUP(J84,'Codes tarifs éco-part'!$C$3:$E$466,3,FALSE) -> 042
A85: REP ABJ | B85: 3 | C85: 21101940000 | E85: Articles de bricolage | F85: Gros objets et machines non électriques et non thermiques et leurs accessoires | G85: Grès >90% | H85: Eléments de toutes dimensions et poids | I85: € / Tonne | J85: 5 | K85: 5 €/Tonne | L85: =VLOOKUP(J85,'Codes tarifs éco-part'!$C$3:$E$466,3,FALSE) -> 042
A86: REP ABJ | B86: 3 | C86: 21101970000 | E86: Articles de bricolage | F86: Gros objets et machines non électriques et non thermiques et leurs accessoires | G86: Céramique >90% | H86: Eléments de toutes dimensions et poids | I86: € / Tonne | J86: 10 | K86: 10 €/Tonne | L86: =VLOOKUP(J86,'Codes tarifs éco-part'!$C$3:$E$466,3,FALSE) -> 138
A87: REP ABJ | B87: 3 | C87: 21101980000 | E87: Articles de bricolage | F87: Gros objets et machines non électriques et non thermiques et leurs accessoires | G87: Pierre artificielle >90% | H87: Eléments de toutes dimensions et poids | I87: € / Tonne | J87: 5 | K87: 5 €/Tonne | L87: =VLOOKUP(J87,'Codes tarifs éco-part'!$C$3:$E$466,3,FALSE) -> 042
A88: REP ABJ | B88: 3 | C88: 21102000000 | E88: Articles de bricolage | F88: Outils et supports de travail en hauteur | G88: Non connu ou non spécifié par l'entreprise | H88: Eléments de toutes dimensions et poids | I88: € / Tonne | J88: 75 | K88: 75 €/Tonne | L88: =VLOOKUP(J88,'Codes tarifs éco-part'!$C$3:$E$466,3,FALSE) -> 192
A89: REP ABJ | B89: 3 | C89: 21102010000 | E89: Articles de bricolage | F89: Outils et supports de travail en hauteur | G89: Assemblage de bois, dérivés de bois à plus de 50% avec d'autres matériaux ou bois composite (hors verre) | H89: Eléments de toutes dimensions et poids | I89: € / Tonne | J89: 10 | K89: 10 €/Tonne | L89: =VLOOKUP(J89,'Codes tarifs éco-part'!$C$3:$E$466,3,FALSE) -> 138
A90: REP ABJ | B90: 3 | C90: 21102020000 | E90: Articles de bricolage | F90: Outils et supports de travail en hauteur | G90: Assemblage avec métal >50% et autres matériaux | H90: Eléments de toutes dimensions et poids | I90: € / Tonne | J90: 3 | K90: 3 €/Tonne | L90: =VLOOKUP(J90,'Codes tarifs éco-part'!$C$3:$E$466,3,FALSE) -> 474
A91: REP ABJ | B91: 3 | C91: 21102040000 | E91: Articles de bricolage | F91: Outils et supports de travail en hauteur | G91: Matériaux bio sourcés ou textiles non synthétiques >50% | H91: Eléments de toutes dimensions et poids | I91: € / Tonne | J91: 30 | K91: 30 €/Tonne | L91: =VLOOKUP(J91,'Codes tarifs éco-part'!$C$3:$E$466,3,FALSE) -> 153
A92: REP ABJ | B92: 3 | C92: 21102050000 | E92: Articles de bricolage | F92: Outils et supports de travail en hauteur | G92: Plastiques ou autres matériaux synthétiques >50% | H92: Eléments de toutes dimensions et poids | I92: € / Tonne | J92: 75 | K92: 75 €/Tonne | L92: =VLOOKUP(J92,'Codes tarifs éco-part'!$C$3:$E$466,3,FALSE) -> 192
A93: REP ABJ | B93: 3 | C93: 21102060000 | E93: Articles de bricolage | F93: Outils et supports de travail en hauteur | G93: Matériaux d'origine animale >50% | H93: Eléments de toutes dimensions et poids | I93: € / Tonne | J93: 30 | K93: 30 €/Tonne | L93: =VLOOKUP(J93,'Codes tarifs éco-part'!$C$3:$E$466,3,FALSE) -> 153
A94: REP ABJ | B94: 3 | C94: 21102080000 | E94: Articles de bricolage | F94: Outils et supports de travail en hauteur | G94: Assemblage de matériaux avec de l'inerte >50% | H94: Eléments de toutes dimensions et poids | I94: € / Tonne | J94: 75 | K94: 75 €/Tonne | L94: =VLOOKUP(J94,'Codes tarifs éco-part'!$C$3:$E$466,3,FALSE) -> 192
A95: REP ABJ | B95: 3 | C95: 21102150000 | E95: Articles de bricolage | F95: Outils et supports de travail en hauteur | G95: Composites et autres matériaux minéraux reconstitués >50% | H95: Eléments de toutes dimensions et poids | I95: € / Tonne | J95: 75 | K95: 75 €/Tonne | L95: =VLOOKUP(J95,'Codes tarifs éco-part'!$C$3:$E$466,3,FALSE) -> 192
A96: REP ABJ | B96: 3 | C96: 21102190000 | E96: Articles de bricolage | F96: Outils et supports de travail en hauteur | G96: Papier carton >50% avec d'autres matériaux (hors verre) | H96: Eléments de toutes dimensions et poids | I96: € / Tonne | J96: 30 | K96: 30 €/Tonne | L96: =VLOOKUP(J96,'Codes tarifs éco-part'!$C$3:$E$466,3,FALSE) -> 153
A97: REP ABJ | B97: 3 | C97: 21102200000 | E97: Articles de bricolage | F97: Outils et supports de travail en hauteur | G97: Massif et assimilés certifiés >75% | H97: Eléments de toutes dimensions et poids | I97: € / Tonne | J97: 10 | K97: 10 €/Tonne | L97: =VLOOKUP(J97,'Codes tarifs éco-part'!$C$3:$E$466,3,FALSE) -> 138
A98: REP ABJ | B98: 3 | C98: 21102210000 | E98: Articles de bricolage | F98: Outils et supports de travail en hauteur | G98: Massif et assimilés >75% | H98: Eléments de toutes dimensions et poids | I98: € / Tonne | J98: 10 | K98: 10 €/Tonne | L98: =VLOOKUP(J98,'Codes tarifs éco-part'!$C$3:$E$466,3,FALSE) -> 138
A99: REP ABJ | B99: 3 | C99: 21102250000 | E99: Articles de bricolage | F99: Outils et supports de travail en hauteur | G99: Panneaux de particules ou OSB >75% | H99: Eléments de toutes dimensions et poids | I99: € / Tonne | J99: 10 | K99: 10 €/Tonne | L99: =VLOOKUP(J99,'Codes tarifs éco-part'!$C$3:$E$466,3,FALSE) -> 138
A100: REP ABJ | B100: 3 | C100: 21102280000 | E100: Articles de bricolage | F100: Outils et supports de travail en hauteur | G100: Métal >90% | H100: Eléments de toutes dimensions et poids | I100: € / Tonne | J100: 3 | K100: 3 €/Tonne | L100: =VLOOKUP(J100,'Codes tarifs éco-part'!$C$3:$E$466,3,FALSE) -> 474
A101: REP ABJ | B101: 3 | C101: 21102400000 | E101: Articles de bricolage | F101: Outils et supports de travail en hauteur | G101: Assemblage caoutchouc synthétique ou latex >50% avec d'autres matériaux | H101: Eléments de toutes dimensions et poids | I101: € / Tonne | J101: 75 | K101: 75 €/Tonne | L101: =VLOOKUP(J101,'Codes tarifs éco-part'!$C$3:$E$466,3,FALSE) -> 192
A102: REP ABJ | B102: 3 | C102: 21102410000 | E102: Articles de bricolage | F102: Outils et supports de travail en hauteur | G102: Plastiques (mono résine) >90% | H102: Eléments de toutes dimensions et poids | I102: € / Tonne | J102: 50 | K102: 50 €/Tonne | L102: =VLOOKUP(J102,'Codes tarifs éco-part'!$C$3:$E$466,3,FALSE) -> 173
A103: REP ABJ | B103: 3 | C103: 21102420000 | E103: Articles de bricolage | F103: Outils et supports de travail en hauteur | G103: Polyterephtalate d'Ethylène (PET) >90% | H103: Eléments de toutes dimensions et poids | I103: € / Tonne | J103: 50 | K103: 50 €/Tonne | L103: =VLOOKUP(J103,'Codes tarifs éco-part'!$C$3:$E$466,3,FALSE) -> 173
A104: REP ABJ | B104: 3 | C104: 21102450000 | E104: Articles de bricolage | F104: Outils et supports de travail en hauteur | G104: PE ou PP ou mélange PP/PE >90% | H104: Eléments de toutes dimensions et poids | I104: € / Tonne | J104: 50 | K104: 50 €/Tonne | L104: =VLOOKUP(J104,'Codes tarifs éco-part'!$C$3:$E$466,3,FALSE) -> 173
A105: REP ABJ | B105: 3 | C105: 21102460000 | E105: Articles de bricolage | F105: Outils et supports de travail en hauteur | G105: ABS >90% | H105: Eléments de toutes dimensions et poids | I105: € / Tonne | J105: 50 | K105: 50 €/Tonne | L105: =VLOOKUP(J105,'Codes tarifs éco-part'!$C$3:$E$466,3,FALSE) -> 173
A106: REP ABJ | B106: 3 | C106: 21102470000 | E106: Articles de bricolage | F106: Outils et supports de travail en hauteur | G106: Polystyrène >90% | H106: Eléments de toutes dimensions et poids | I106: € / Tonne | J106: 50 | K106: 50 €/Tonne | L106: =VLOOKUP(J106,'Codes tarifs éco-part'!$C$3:$E$466,3,FALSE) -> 173
A107: REP ABJ | B107: 3 | C107: 21102480000 | E107: Articles de bricolage | F107: Outils et supports de travail en hauteur | G107: PVC >90% | H107: Eléments de toutes dimensions et poids | I107: € / Tonne | J107: 50 | K107: 50 €/Tonne | L107: =VLOOKUP(J107,'Codes tarifs éco-part'!$C$3:$E$466,3,FALSE) -> 173
A108: REP ABJ | B108: 3 | C108: 21102490000 | E108: Articles de bricolage | F108: Outils et supports de travail en hauteur | G108: Caoutchouc synthétique >90% | H108: Eléments de toutes dimensions et poids | I108: € / Tonne | J108: 50 | K108: 50 €/Tonne | L108: =VLOOKUP(J108,'Codes tarifs éco-part'!$C$3:$E$466,3,FALSE) -> 173
A109: REP ABJ | B109: 3 | C109: 21102520000 | E109: Articles de bricolage | F109: Outils et supports de travail en hauteur | G109: Massif et assimilés certifiés >90% | H109: Eléments de toutes dimensions et poids | I109: € / Tonne | J109: 10 | K109: 10 €/Tonne | L109: =VLOOKUP(J109,'Codes tarifs éco-part'!$C$3:$E$466,3,FALSE) -> 138
A110: REP ABJ | B110: 3 | C110: 21102530000 | E110: Articles de bricolage | F110: Outils et supports de travail en hauteur | G110: Massif et assimilés >90% | H110: Eléments de toutes dimensions et poids | I110: € / Tonne | J110: 10 | K110: 10 €/Tonne | L110: =VLOOKUP(J110,'Codes tarifs éco-part'!$C$3:$E$466,3,FALSE) -> 138
A111: REP ABJ | B111: 3 | C111: 21102550000 | E111: Articles de bricolage | F111: Outils et supports de travail en hauteur | G111: Matériaux bio sourcés ou textiles non synthétiques >90% | H111: Eléments de toutes dimensions et poids | I111: € / Tonne | J111: 30 | K111: 30 €/Tonne | L111: =VLOOKUP(J111,'Codes tarifs éco-part'!$C$3:$E$466,3,FALSE) -> 153
A112: REP ABJ | B112: 3 | C112: 21102590000 | E112: Articles de bricolage | F112: Outils et supports de travail en hauteur | G112: Panneaux de particules ou OSB certifiés >90% | H112: Eléments de toutes dimensions et poids | I112: € / Tonne | J112: 10 | K112: 10 €/Tonne | L112: =VLOOKUP(J112,'Codes tarifs éco-part'!$C$3:$E$466,3,FALSE) -> 138
A113: REP ABJ | B113: 3 | C113: 21102600000 | E113: Articles de bricolage | F113: Outils et supports de travail en hauteur | G113: Panneaux de particules ou OSB certifiés >75% | H113: Eléments de toutes dimensions et poids | I113: € / Tonne | J113: 10 | K113: 10 €/Tonne | L113: =VLOOKUP(J113,'Codes tarifs éco-part'!$C$3:$E$466,3,FALSE) -> 138
A114: REP ABJ | B114: 3 | C114: 21102610000 | E114: Articles de bricolage | F114: Outils et supports de travail en hauteur | G114: Panneaux de particules ou OSB >90% | H114: Eléments de toutes dimensions et poids | I114: € / Tonne | J114: 10 | K114: 10 €/Tonne | L114: =VLOOKUP(J114,'Codes tarifs éco-part'!$C$3:$E$466,3,FALSE) -> 138
A115: REP ABJ | B115: 3 | C115: 21102620000 | E115: Articles de bricolage | F115: Outils et supports de travail en hauteur | G115: Dérivés de bois >90% | H115: Eléments de toutes dimensions et poids | I115: € / Tonne | J115: 10 | K115: 10 €/Tonne | L115: =VLOOKUP(J115,'Codes tarifs éco-part'!$C$3:$E$466,3,FALSE) -> 138
A116: REP ABJ | B116: 3 | C116: 21102630000 | E116: Articles de bricolage | F116: Outils et supports de travail en hauteur | G116: Caoutchouc naturel >90% | H116: Eléments de toutes dimensions et poids | I116: € / Tonne | J116: 30 | K116: 30 €/Tonne | L116: =VLOOKUP(J116,'Codes tarifs éco-part'!$C$3:$E$466,3,FALSE) -> 153
A117: REP ABJ | B117: 3 | C117: 21102640000 | E117: Articles de bricolage | F117: Outils et supports de travail en hauteur | G117: Caoutchouc naturel >50% | H117: Eléments de toutes dimensions et poids | I117: € / Tonne | J117: 75 | K117: 75 €/Tonne | L117: =VLOOKUP(J117,'Codes tarifs éco-part'!$C$3:$E$466,3,FALSE) -> 192
A118: REP ABJ | B118: 3 | C118: 21102650000 | E118: Articles de bricolage | F118: Outils et supports de travail en hauteur | G118: Matériaux ou fibres synthétiques >90% | H118: Eléments de toutes dimensions et poids | I118: € / Tonne | J118: 50 | K118: 50 €/Tonne | L118: =VLOOKUP(J118,'Codes tarifs éco-part'!$C$3:$E$466,3,FALSE) -> 173
A119: REP ABJ | B119: 3 | C119: 21102670000 | E119: Articles de bricolage | F119: Outils et supports de travail en hauteur | G119: Assemblage matériaux ou fibres synthétiques >50% avec d'autres matériaux | H119: Eléments de toutes dimensions et poids | I119: € / Tonne | J119: 75 | K119: 75 €/Tonne | L119: =VLOOKUP(J119,'Codes tarifs éco-part'!$C$3:$E$466,3,FALSE) -> 192
A120: REP ABJ | B120: 3 | C120: 21102680000 | E120: Articles de bricolage | F120: Outils et supports de travail en hauteur | G120: Verre >90% | H120: Eléments de toutes dimensions et poids | I120: € / Tonne | J120: 5 | K120: 5 €/Tonne | L120: =VLOOKUP(J120,'Codes tarifs éco-part'!$C$3:$E$466,3,FALSE) -> 042
A121: REP ABJ | B121: 3 | C121: 21102700000 | E121: Articles de bricolage | F121: Outils et supports de travail en hauteur | G121: Assemblage verre à plus de 50% avec métal | H121: Eléments de toutes dimensions et poids | I121: € / Tonne | J121: 75 | K121: 75 €/Tonne | L121: =VLOOKUP(J121,'Codes tarifs éco-part'!$C$3:$E$466,3,FALSE) -> 192
A122: REP ABJ | B122: 3 | C122: 21102710000 | E122: Articles de bricolage | F122: Outils et supports de travail en hauteur | G122: Assemblage verre à plus de 50% avec Inerte | H122: Eléments de toutes dimensions et poids | I122: € / Tonne | J122: 75 | K122: 75 €/Tonne | L122: =VLOOKUP(J122,'Codes tarifs éco-part'!$C$3:$E$466,3,FALSE) -> 192
A123: REP ABJ | B123: 3 | C123: 21102720000 | E123: Articles de bricolage | F123: Outils et supports de travail en hauteur | G123: Assemblage verre à plus de 50% avec bois ou dérivés de bois | H123: Eléments de toutes dimensions et poids | I123: € / Tonne | J123: 75 | K123: 75 €/Tonne | L123: =VLOOKUP(J123,'Codes tarifs éco-part'!$C$3:$E$466,3,FALSE) -> 192
A124: REP ABJ | B124: 3 | C124: 21102730000 | E124: Articles de bricolage | F124: Outils et supports de travail en hauteur | G124: Assemblage verre à plus de 50% avec plastique | H124: Eléments de toutes dimensions et poids | I124: € / Tonne | J124: 75 | K124: 75 €/Tonne | L124: =VLOOKUP(J124,'Codes tarifs éco-part'!$C$3:$E$466,3,FALSE) -> 192
A125: REP ABJ | B125: 3 | C125: 21102740000 | E125: Articles de bricolage | F125: Outils et supports de travail en hauteur | G125: Béton >90% | H125: Eléments de toutes dimensions et poids | I125: € / Tonne | J125: 5 | K125: 5 €/Tonne | L125: =VLOOKUP(J125,'Codes tarifs éco-part'!$C$3:$E$466,3,FALSE) -> 042
A126: REP ABJ | B126: 3 | C126: 21102810000 | E126: Articles de bricolage | F126: Outils et supports de travail en hauteur | G126: Assemblage dont la composition conjointe en bois, dérivés de bois et en métal dépasse 90% | H126: Eléments de toutes dimensions et poids | I126: € / Tonne | J126: 10 | K126: 10 €/Tonne | L126: =VLOOKUP(J126,'Codes tarifs éco-part'!$C$3:$E$466,3,FALSE) -> 138
A127: REP ABJ | B127: 3 | C127: 21102820000 | E127: Articles de bricolage | F127: Outils et supports de travail en hauteur | G127: Assemblage de 3 matériaux ou plus sans un matériau à plus de 50% | H127: Eléments de toutes dimensions et poids | I127: € / Tonne | J127: 75 | K127: 75 €/Tonne | L127: =VLOOKUP(J127,'Codes tarifs éco-part'!$C$3:$E$466,3,FALSE) -> 192
A128: REP ABJ | B128: 3 | C128: 21102840000 | E128: Articles de bricolage | F128: Outils et supports de travail en hauteur | G128: Ardoise >90% | H128: Eléments de toutes dimensions et poids | I128: € / Tonne | J128: 5 | K128: 5 €/Tonne | L128: =VLOOKUP(J128,'Codes tarifs éco-part'!$C$3:$E$466,3,FALSE) -> 042
A129: REP ABJ | B129: 3 | C129: 21102860000 | E129: Articles de bricolage | F129: Outils et supports de travail en hauteur | G129: Pierre calcaire >90% | H129: Eléments de toutes dimensions et poids | I129: € / Tonne | J129: 5 | K129: 5 €/Tonne | L129: =VLOOKUP(J129,'Codes tarifs éco-part'!$C$3:$E$466,3,FALSE) -> 042
A130: REP ABJ | B130: 3 | C130: 21102870000 | E130: Articles de bricolage | F130: Outils et supports de travail en hauteur | G130: Lave >90% | H130: Eléments de toutes dimensions et poids | I130: € / Tonne | J130: 5 | K130: 5 €/Tonne | L130: =VLOOKUP(J130,'Codes tarifs éco-part'!$C$3:$E$466,3,FALSE) -> 042
A131: REP ABJ | B131: 3 | C131: 21102890000 | E131: Articles de bricolage | F131: Outils et supports de travail en hauteur | G131: Terre cuite ou crue >90% | H131: Eléments de toutes dimensions et poids | I131: € / Tonne | J131: 5 | K131: 5 €/Tonne | L131: =VLOOKUP(J131,'Codes tarifs éco-part'!$C$3:$E$466,3,FALSE) -> 042
A132: REP ABJ | B132: 3 | C132: 21102900000 | E132: Articles de bricolage | F132: Outils et supports de travail en hauteur | G132: Ciment >90% | H132: Eléments de toutes dimensions et poids | I132: € / Tonne | J132: 5 | K132: 5 €/Tonne | L132: =VLOOKUP(J132,'Codes tarifs éco-part'!$C$3:$E$466,3,FALSE) -> 042
A133: REP ABJ | B133: 3 | C133: 21102910000 | E133: Articles de bricolage | F133: Outils et supports de travail en hauteur | G133: Granit >90% | H133: Eléments de toutes dimensions et poids | I133: € / Tonne | J133: 5 | K133: 5 €/Tonne | L133: =VLOOKUP(J133,'Codes tarifs éco-part'!$C$3:$E$466,3,FALSE) -> 042
A134: REP ABJ | B134: 3 | C134: 21102940000 | E134: Articles de bricolage | F134: Outils et supports de travail en hauteur | G134: Grès >90% | H134: Eléments de toutes dimensions et poids | I134: € / Tonne | J134: 5 | K134: 5 €/Tonne | L134: =VLOOKUP(J134,'Codes tarifs éco-part'!$C$3:$E$466,3,FALSE) -> 042
A135: REP ABJ | B135: 3 | C135: 21102970000 | E135: Articles de bricolage | F135: Outils et supports de travail en hauteur | G135: Céramique >90% | H135: Eléments de toutes dimensions et poids | I135: € / Tonne | J135: 10 | K135: 10 €/Tonne | L135: =VLOOKUP(J135,'Codes tarifs éco-part'!$C$3:$E$466,3,FALSE) -> 138
A136: REP ABJ | B136: 3 | C136: 21102980000 | E136: Articles de bricolage | F136: Outils et supports de travail en hauteur | G136: Pierre artificielle >90% | H136: Eléments de toutes dimensions et poids | I136: € / Tonne | J136: 5 | K136: 5 €/Tonne | L136: =VLOOKUP(J136,'Codes tarifs éco-part'!$C$3:$E$466,3,FALSE) -> 042
A137: REP ABJ | B137: 3 | C137: 21103000000 | E137: Articles de bricolage | F137: Equipement personnel et accessoires de protection de bricolage | G137: Non connu ou non spécifié par l'entreprise | H137: Eléments de toutes dimensions et poids | I137: € / Tonne | J137: 215 | K137: 215 €/Tonne | L137: =VLOOKUP(J137,'Codes tarifs éco-part'!$C$3:$E$466,3,FALSE) -> 498
A138: REP ABJ | B138: 3 | C138: 21103010000 | E138: Articles de bricolage | F138: Equipement personnel et accessoires de protection de bricolage | G138: Assemblage de bois, dérivés de bois à plus de 50% avec d'autres matériaux ou bois composite (hors verre) | H138: Eléments de toutes dimensions et poids | I138: € / Tonne | J138: 45 | K138: 45 €/Tonne | L138: =VLOOKUP(J138,'Codes tarifs éco-part'!$C$3:$E$466,3,FALSE) -> 169
A139: REP ABJ | B139: 3 | C139: 21103020000 | E139: Articles de bricolage | F139: Equipement personnel et accessoires de protection de bricolage | G139: Assemblage avec métal >50% et autres matériaux | H139: Eléments de toutes dimensions et poids | I139: € / Tonne | J139: 10 | K139: 10 €/Tonne | L139: =VLOOKUP(J139,'Codes tarifs éco-part'!$C$3:$E$466,3,FALSE) -> 138
A140: REP ABJ | B140: 3 | C140: 21103040000 | E140: Articles de bricolage | F140: Equipement personnel et accessoires de protection de bricolage | G140: Matériaux bio sourcés ou textiles non synthétiques >50% | H140: Eléments de toutes dimensions et poids | I140: € / Tonne | J140: 215 | K140: 215 €/Tonne | L140: =VLOOKUP(J140,'Codes tarifs éco-part'!$C$3:$E$466,3,FALSE) -> 498
A141: REP ABJ | B141: 3 | C141: 21103050000 | E141: Articles de bricolage | F141: Equipement personnel et accessoires de protection de bricolage | G141: Plastiques ou autres matériaux synthétiques >50% | H141: Eléments de toutes dimensions et poids | I141: € / Tonne | J141: 215 | K141: 215 €/Tonne | L141: =VLOOKUP(J141,'Codes tarifs éco-part'!$C$3:$E$466,3,FALSE) -> 498
A142: REP ABJ | B142: 3 | C142: 21103060000 | E142: Articles de bricolage | F142: Equipement personnel et accessoires de protection de bricolage | G142: Matériaux d'origine animale >50% | H142: Eléments de toutes dimensions et poids | I142: € / Tonne | J142: 215 | K142: 215 €/Tonne | L142: =VLOOKUP(J142,'Codes tarifs éco-part'!$C$3:$E$466,3,FALSE) -> 498
A143: REP ABJ | B143: 3 | C143: 21103190000 | E143: Articles de bricolage | F143: Equipement personnel et accessoires de protection de bricolage | G143: Papier carton >50% avec d'autres matériaux (hors verre) | H143: Eléments de toutes dimensions et poids | I143: € / Tonne | J143: 215 | K143: 215 €/Tonne | L143: =VLOOKUP(J143,'Codes tarifs éco-part'!$C$3:$E$466,3,FALSE) -> 498
A144: REP ABJ | B144: 3 | C144: 21103200000 | E144: Articles de bricolage | F144: Equipement personnel et accessoires de protection de bricolage | G144: Massif et assimilés certifiés >75% | H144: Eléments de toutes dimensions et poids | I144: € / Tonne | J144: 45 | K144: 45 €/Tonne | L144: =VLOOKUP(J144,'Codes tarifs éco-part'!$C$3:$E$466,3,FALSE) -> 169
A145: REP ABJ | B145: 3 | C145: 21103210000 | E145: Articles de bricolage | F145: Equipement personnel et accessoires de protection de bricolage | G145: Massif et assimilés >75% | H145: Eléments de toutes dimensions et poids | I145: € / Tonne | J145: 45 | K145: 45 €/Tonne | L145: =VLOOKUP(J145,'Codes tarifs éco-part'!$C$3:$E$466,3,FALSE) -> 169
A146: REP ABJ | B146: 3 | C146: 21103250000 | E146: Articles de bricolage | F146: Equipement personnel et accessoires de protection de bricolage | G146: Panneaux de particules ou OSB >75% | H146: Eléments de toutes dimensions et poids | I146: € / Tonne | J146: 45 | K146: 45 €/Tonne | L146: =VLOOKUP(J146,'Codes tarifs éco-part'!$C$3:$E$466,3,FALSE) -> 169
A147: REP ABJ | B147: 3 | C147: 21103280000 | E147: Articles de bricolage | F147: Equipement personnel et accessoires de protection de bricolage | G147: Métal >90% | H147: Eléments de toutes dimensions et poids | I147: € / Tonne | J147: 10 | K147: 10 €/Tonne | L147: =VLOOKUP(J147,'Codes tarifs éco-part'!$C$3:$E$466,3,FALSE) -> 138
A148: REP ABJ | B148: 3 | C148: 21103400000 | E148: Articles de bricolage | F148: Equipement personnel et accessoires de protection de bricolage | G148: Assemblage caoutchouc synthétique ou latex >50% avec d'autres matériaux | H148: Eléments de toutes dimensions et poids | I148: € / Tonne | J148: 215 | K148: 215 €/Tonne | L148: =VLOOKUP(J148,'Codes tarifs éco-part'!$C$3:$E$466,3,FALSE) -> 498
A149: REP ABJ | B149: 3 | C149: 21103410000 | E149: Articles de bricolage | F149: Equipement personnel et accessoires de protection de bricolage | G149: Plastiques (mono résine) >90% | H149: Eléments de toutes dimensions et poids | I149: € / Tonne | J149: 165 | K149: 165 €/Tonne | L149: =VLOOKUP(J149,'Codes tarifs éco-part'!$C$3:$E$466,3,FALSE) -> 496
A150: REP ABJ | B150: 3 | C150: 21103420000 | E150: Articles de bricolage | F150: Equipement personnel et accessoires de protection de bricolage | G150: Polyterephtalate d'Ethylène (PET) >90% | H150: Eléments de toutes dimensions et poids | I150: € / Tonne | J150: 165 | K150: 165 €/Tonne | L150: =VLOOKUP(J150,'Codes tarifs éco-part'!$C$3:$E$466,3,FALSE) -> 496
A151: REP ABJ | B151: 3 | C151: 21103450000 | E151: Articles de bricolage | F151: Equipement personnel et accessoires de protection de bricolage | G151: PE ou PP ou mélange PP/PE >90% | H151: Eléments de toutes dimensions et poids | I151: € / Tonne | J151: 165 | K151: 165 €/Tonne | L151: =VLOOKUP(J151,'Codes tarifs éco-part'!$C$3:$E$466,3,FALSE) -> 496
A152: REP ABJ | B152: 3 | C152: 21103460000 | E152: Articles de bricolage | F152: Equipement personnel et accessoires de protection de bricolage | G152: ABS >90% | H152: Eléments de toutes dimensions et poids | I152: € / Tonne | J152: 165 | K152: 165 €/Tonne | L152: =VLOOKUP(J152,'Codes tarifs éco-part'!$C$3:$E$466,3,FALSE) -> 496
A153: REP ABJ | B153: 3 | C153: 21103470000 | E153: Articles de bricolage | F153: Equipement personnel et accessoires de protection de bricolage | G153: Polystyrène >90% | H153: Eléments de toutes dimensions et poids | I153: € / Tonne | J153: 165 | K153: 165 €/Tonne | L153: =VLOOKUP(J153,'Codes tarifs éco-part'!$C$3:$E$466,3,FALSE) -> 496
A154: REP ABJ | B154: 3 | C154: 21103480000 | E154: Articles de bricolage | F154: Equipement personnel et accessoires de protection de bricolage | G154: PVC >90% | H154: Eléments de toutes dimensions et poids | I154: € / Tonne | J154: 165 | K154: 165 €/Tonne | L154: =VLOOKUP(J154,'Codes tarifs éco-part'!$C$3:$E$466,3,FALSE) -> 496
A155: REP ABJ | B155: 3 | C155: 21103490000 | E155: Articles de bricolage | F155: Equipement personnel et accessoires de protection de bricolage | G155: Caoutchouc synthétique >90% | H155: Eléments de toutes dimensions et poids | I155: € / Tonne | J155: 165 | K155: 165 €/Tonne | L155: =VLOOKUP(J155,'Codes tarifs éco-part'!$C$3:$E$466,3,FALSE) -> 496
A156: REP ABJ | B156: 3 | C156: 21103520000 | E156: Articles de bricolage | F156: Equipement personnel et accessoires de protection de bricolage | G156: Massif et assimilés certifiés >90% | H156: Eléments de toutes dimensions et poids | I156: € / Tonne | J156: 45 | K156: 45 €/Tonne | L156: =VLOOKUP(J156,'Codes tarifs éco-part'!$C$3:$E$466,3,FALSE) -> 169
A157: REP ABJ | B157: 3 | C157: 21103530000 | E157: Articles de bricolage | F157: Equipement personnel et accessoires de protection de bricolage | G157: Massif et assimilés >90% | H157: Eléments de toutes dimensions et poids | I157: € / Tonne | J157: 45 | K157: 45 €/Tonne | L157: =VLOOKUP(J157,'Codes tarifs éco-part'!$C$3:$E$466,3,FALSE) -> 169
A158: REP ABJ | B158: 3 | C158: 21103550000 | E158: Articles de bricolage | F158: Equipement personnel et accessoires de protection de bricolage | G158: Matériaux bio sourcés ou textiles non synthétiques >90% | H158: Eléments de toutes dimensions et poids | I158: € / Tonne | J158: 50 | K158: 50 €/Tonne | L158: =VLOOKUP(J158,'Codes tarifs éco-part'!$C$3:$E$466,3,FALSE) -> 173
A159: REP ABJ | B159: 3 | C159: 21103590000 | E159: Articles de bricolage | F159: Equipement personnel et accessoires de protection de bricolage | G159: Panneaux de particules ou OSB certifiés >90% | H159: Eléments de toutes dimensions et poids | I159: € / Tonne | J159: 45 | K159: 45 €/Tonne | L159: =VLOOKUP(J159,'Codes tarifs éco-part'!$C$3:$E$466,3,FALSE) -> 169
A160: REP ABJ | B160: 3 | C160: 21103600000 | E160: Articles de bricolage | F160: Equipement personnel et accessoires de protection de bricolage | G160: Panneaux de particules ou OSB certifiés >75% | H160: Eléments de toutes dimensions et poids | I160: € / Tonne | J160: 45 | K160: 45 €/Tonne | L160: =VLOOKUP(J160,'Codes tarifs éco-part'!$C$3:$E$466,3,FALSE) -> 169
A161: REP ABJ | B161: 3 | C161: 21103610000 | E161: Articles de bricolage | F161: Equipement personnel et accessoires de protection de bricolage | G161: Panneaux de particules ou OSB >90% | H161: Eléments de toutes dimensions et poids | I161: € / Tonne | J161: 45 | K161: 45 €/Tonne | L161: =VLOOKUP(J161,'Codes tarifs éco-part'!$C$3:$E$466,3,FALSE) -> 169
A162: REP ABJ | B162: 3 | C162: 21103620000 | E162: Articles de bricolage | F162: Equipement personnel et accessoires de protection de bricolage | G162: Dérivés de bois >90% | H162: Eléments de toutes dimensions et poids | I162: € / Tonne | J162: 45 | K162: 45 €/Tonne | L162: =VLOOKUP(J162,'Codes tarifs éco-part'!$C$3:$E$466,3,FALSE) -> 169
A163: REP ABJ | B163: 3 | C163: 21103630000 | E163: Articles de bricolage | F163: Equipement personnel et accessoires de protection de bricolage | G163: Caoutchouc naturel >90% | H163: Eléments de toutes dimensions et poids | I163: € / Tonne | J163: 50 | K163: 50 €/Tonne | L163: =VLOOKUP(J163,'Codes tarifs éco-part'!$C$3:$E$466,3,FALSE) -> 173
A164: REP ABJ | B164: 3 | C164: 21103640000 | E164: Articles de bricolage | F164: Equipement personnel et accessoires de protection de bricolage | G164: Caoutchouc naturel >50% | H164: Eléments de toutes dimensions et poids | I164: € / Tonne | J164: 215 | K164: 215 €/Tonne | L164: =VLOOKUP(J164,'Codes tarifs éco-part'!$C$3:$E$466,3,FALSE) -> 498
A165: REP ABJ | B165: 3 | C165: 21103650000 | E165: Articles de bricolage | F165: Equipement personnel et accessoires de protection de bricolage | G165: Matériaux ou fibres synthétiques >90% | H165: Eléments de toutes dimensions et poids | I165: € / Tonne | J165: 165 | K165: 165 €/Tonne | L165: =VLOOKUP(J165,'Codes tarifs éco-part'!$C$3:$E$466,3,FALSE) -> 496
A166: REP ABJ | B166: 3 | C166: 21103670000 | E166: Articles de bricolage | F166: Equipement personnel et accessoires de protection de bricolage | G166: Assemblage matériaux ou fibres synthétiques >50% avec d'autres matériaux | H166: Eléments de toutes dimensions et poids | I166: € / Tonne | J166: 215 | K166: 215 €/Tonne | L166: =VLOOKUP(J166,'Codes tarifs éco-part'!$C$3:$E$466,3,FALSE) -> 498
A167: REP ABJ | B167: 3 | C167: 21103680000 | E167: Articles de bricolage | F167: Equipement personnel et accessoires de protection de bricolage | G167: Verre >90% | H167: Eléments de toutes dimensions et poids | I167: € / Tonne | J167: 5 | K167: 5 €/Tonne | L167: =VLOOKUP(J167,'Codes tarifs éco-part'!$C$3:$E$466,3,FALSE) -> 042
A168: REP ABJ | B168: 3 | C168: 21103700000 | E168: Articles de bricolage | F168: Equipement personnel et accessoires de protection de bricolage | G168: Assemblage verre à plus de 50% avec métal | H168: Eléments de toutes dimensions et poids | I168: € / Tonne | J168: 215 | K168: 215 €/Tonne | L168: =VLOOKUP(J168,'Codes tarifs éco-part'!$C$3:$E$466,3,FALSE) -> 498
A169: REP ABJ | B169: 3 | C169: 21103710000 | E169: Articles de bricolage | F169: Equipement personnel et accessoires de protection de bricolage | G169: Assemblage verre à plus de 50% avec Inerte | H169: Eléments de toutes dimensions et poids | I169: € / Tonne | J169: 215 | K169: 215 €/Tonne | L169: =VLOOKUP(J169,'Codes tarifs éco-part'!$C$3:$E$466,3,FALSE) -> 498
A170: REP ABJ | B170: 3 | C170: 21103720000 | E170: Articles de bricolage | F170: Equipement personnel et accessoires de protection de bricolage | G170: Assemblage verre à plus de 50% avec bois ou dérivés de bois | H170: Eléments de toutes dimensions et poids | I170: € / Tonne | J170: 215 | K170: 215 €/Tonne | L170: =VLOOKUP(J170,'Codes tarifs éco-part'!$C$3:$E$466,3,FALSE) -> 498
A171: REP ABJ | B171: 3 | C171: 21103730000 | E171: Articles de bricolage | F171: Equipement personnel et accessoires de protection de bricolage | G171: Assemblage verre à plus de 50% avec plastique | H171: Eléments de toutes dimensions et poids | I171: € / Tonne | J171: 215 | K171: 215 €/Tonne | L171: =VLOOKUP(J171,'Codes tarifs éco-part'!$C$3:$E$466,3,FALSE) -> 498
A172: REP ABJ | B172: 3 | C172: 21103810000 | E172: Articles de bricolage | F172: Equipement personnel et accessoires de protection de bricolage | G172: Assemblage dont la composition conjointe en bois, dérivés de bois et en métal dépasse 90% | H172: Eléments de toutes dimensions et poids | I172: € / Tonne | J172: 45 | K172: 45 €/Tonne | L172: =VLOOKUP(J172,'Codes tarifs éco-part'!$C$3:$E$466,3,FALSE) -> 169
A173: REP ABJ | B173: 3 | C173: 21103820000 | E173: Articles de bricolage | F173: Equipement personnel et accessoires de protection de bricolage | G173: Assemblage de 3 matériaux ou plus sans un matériau à plus de 50% | H173: Eléments de toutes dimensions et poids | I173: € / Tonne | J173: 215 | K173: 215 €/Tonne | L173: =VLOOKUP(J173,'Codes tarifs éco-part'!$C$3:$E$466,3,FALSE) -> 498
A174: REP ABJ | B174: 3 | C174: 21104000000 | E174: Articles de bricolage | F174: Bâches, housses, filets et films de bricolage | G174: Non connu ou non spécifié par l'entreprise | H174: Eléments de toutes dimensions et poids | I174: € / Tonne | J174: 215 | K174: 215 €/Tonne | L174: =VLOOKUP(J174,'Codes tarifs éco-part'!$C$3:$E$466,3,FALSE) -> 498
A175: REP ABJ | B175: 3 | C175: 21104040000 | E175: Articles de bricolage | F175: Bâches, housses, filets et films de bricolage | G175: Matériaux bio sourcés ou textiles non synthétiques >50% | H175: Eléments de toutes dimensions et poids | I175: € / Tonne | J175: 215 | K175: 215 €/Tonne | L175: =VLOOKUP(J175,'Codes tarifs éco-part'!$C$3:$E$466,3,FALSE) -> 498
A176: REP ABJ | B176: 3 | C176: 21104050000 | E176: Articles de bricolage | F176: Bâches, housses, filets et films de bricolage | G176: Plastiques ou autres matériaux synthétiques >50% | H176: Eléments de toutes dimensions et poids | I176: € / Tonne | J176: 215 | K176: 215 €/Tonne | L176: =VLOOKUP(J176,'Codes tarifs éco-part'!$C$3:$E$466,3,FALSE) -> 498
A177: REP ABJ | B177: 3 | C177: 21104060000 | E177: Articles de bricolage | F177: Bâches, housses, filets et films de bricolage | G177: Matériaux d'origine animale >50% | H177: Eléments de toutes dimensions et poids | I177: € / Tonne | J177: 215 | K177: 215 €/Tonne | L177: =VLOOKUP(J177,'Codes tarifs éco-part'!$C$3:$E$466,3,FALSE) -> 498
A178: REP ABJ | B178: 3 | C178: 21104190000 | E178: Articles de bricolage | F178: Bâches, housses, filets et films de bricolage | G178: Papier carton >50% avec d'autres matériaux (hors verre) | H178: Eléments de toutes dimensions et poids | I178: € / Tonne | J178: 215 | K178: 215 €/Tonne | L178: =VLOOKUP(J178,'Codes tarifs éco-part'!$C$3:$E$466,3,FALSE) -> 498
A179: REP ABJ | B179: 3 | C179: 21104400000 | E179: Articles de bricolage | F179: Bâches, housses, filets et films de bricolage | G179: Assemblage caoutchouc synthétique ou latex >50% avec d'autres matériaux | H179: Eléments de toutes dimensions et poids | I179: € / Tonne | J179: 215 | K179: 215 €/Tonne | L179: =VLOOKUP(J179,'Codes tarifs éco-part'!$C$3:$E$466,3,FALSE) -> 498
A180: REP ABJ | B180: 3 | C180: 21104410000 | E180: Articles de bricolage | F180: Bâches, housses, filets et films de bricolage | G180: Plastiques (mono résine) >90% | H180: Eléments de toutes dimensions et poids | I180: € / Tonne | J180: 165 | K180: 165 €/Tonne | L180: =VLOOKUP(J180,'Codes tarifs éco-part'!$C$3:$E$466,3,FALSE) -> 496
A181: REP ABJ | B181: 3 | C181: 21104420000 | E181: Articles de bricolage | F181: Bâches, housses, filets et films de bricolage | G181: Polyterephtalate d'Ethylène (PET) >90% | H181: Eléments de toutes dimensions et poids | I181: € / Tonne | J181: 165 | K181: 165 €/Tonne | L181: =VLOOKUP(J181,'Codes tarifs éco-part'!$C$3:$E$466,3,FALSE) -> 496
A182: REP ABJ | B182: 3 | C182: 21104450000 | E182: Articles de bricolage | F182: Bâches, housses, filets et films de bricolage | G182: PE ou PP ou mélange PP/PE >90% | H182: Eléments de toutes dimensions et poids | I182: € / Tonne | J182: 165 | K182: 165 €/Tonne | L182: =VLOOKUP(J182,'Codes tarifs éco-part'!$C$3:$E$466,3,FALSE) -> 496
A183: REP ABJ | B183: 3 | C183: 21104460000 | E183: Articles de bricolage | F183: Bâches, housses, filets et films de bricolage | G183: ABS >90% | H183: Eléments de toutes dimensions et poids | I183: € / Tonne | J183: 165 | K183: 165 €/Tonne | L183: =VLOOKUP(J183,'Codes tarifs éco-part'!$C$3:$E$466,3,FALSE) -> 496
A184: REP ABJ | B184: 3 | C184: 21104470000 | E184: Articles de bricolage | F184: Bâches, housses, filets et films de bricolage | G184: Polystyrène >90% | H184: Eléments de toutes dimensions et poids | I184: € / Tonne | J184: 165 | K184: 165 €/Tonne | L184: =VLOOKUP(J184,'Codes tarifs éco-part'!$C$3:$E$466,3,FALSE) -> 496
A185: REP ABJ | B185: 3 | C185: 21104480000 | E185: Articles de bricolage | F185: Bâches, housses, filets et films de bricolage | G185: PVC >90% | H185: Eléments de toutes dimensions et poids | I185: € / Tonne | J185: 165 | K185: 165 €/Tonne | L185: =VLOOKUP(J185,'Codes tarifs éco-part'!$C$3:$E$466,3,FALSE) -> 496
A186: REP ABJ | B186: 3 | C186: 21104490000 | E186: Articles de bricolage | F186: Bâches, housses, filets et films de bricolage | G186: Caoutchouc synthétique >90% | H186: Eléments de toutes dimensions et poids | I186: € / Tonne | J186: 165 | K186: 165 €/Tonne | L186: =VLOOKUP(J186,'Codes tarifs éco-part'!$C$3:$E$466,3,FALSE) -> 496
A187: REP ABJ | B187: 3 | C187: 21104550000 | E187: Articles de bricolage | F187: Bâches, housses, filets et films de bricolage | G187: Matériaux bio sourcés ou textiles non synthétiques >90% | H187: Eléments de toutes dimensions et poids | I187: € / Tonne | J187: 50 | K187: 50 €/Tonne | L187: =VLOOKUP(J187,'Codes tarifs éco-part'!$C$3:$E$466,3,FALSE) -> 173
A188: REP ABJ | B188: 3 | C188: 21104630000 | E188: Articles de bricolage | F188: Bâches, housses, filets et films de bricolage | G188: Caoutchouc naturel >90% | H188: Eléments de toutes dimensions et poids | I188: € / Tonne | J188: 50 | K188: 50 €/Tonne | L188: =VLOOKUP(J188,'Codes tarifs éco-part'!$C$3:$E$466,3,FALSE) -> 173
A189: REP ABJ | B189: 3 | C189: 21104640000 | E189: Articles de bricolage | F189: Bâches, housses, filets et films de bricolage | G189: Caoutchouc naturel >50% | H189: Eléments de toutes dimensions et poids | I189: € / Tonne | J189: 215 | K189: 215 €/Tonne | L189: =VLOOKUP(J189,'Codes tarifs éco-part'!$C$3:$E$466,3,FALSE) -> 498
A190: REP ABJ | B190: 3 | C190: 21104650000 | E190: Articles de bricolage | F190: Bâches, housses, filets et films de bricolage | G190: Matériaux ou fibres synthétiques >90% | H190: Eléments de toutes dimensions et poids | I190: € / Tonne | J190: 165 | K190: 165 €/Tonne | L190: =VLOOKUP(J190,'Codes tarifs éco-part'!$C$3:$E$466,3,FALSE) -> 496
A191: REP ABJ | B191: 3 | C191: 21104670000 | E191: Articles de bricolage | F191: Bâches, housses, filets et films de bricolage | G191: Assemblage matériaux ou fibres synthétiques >50% avec d'autres matériaux | H191: Eléments de toutes dimensions et poids | I191: € / Tonne | J191: 215 | K191: 215 €/Tonne | L191: =VLOOKUP(J191,'Codes tarifs éco-part'!$C$3:$E$466,3,FALSE) -> 498
A192: REP ABJ | B192: 3 | C192: 21104820000 | E192: Articles de bricolage | F192: Bâches, housses, filets et films de bricolage | G192: Assemblage de 3 matériaux ou plus sans un matériau à plus de 50% | H192: Eléments de toutes dimensions et poids | I192: € / Tonne | J192: 215 | K192: 215 €/Tonne | L192: =VLOOKUP(J192,'Codes tarifs éco-part'!$C$3:$E$466,3,FALSE) -> 498
A193: REP ABJ | B193: 4 | C193: 22150000000 | E193: Entretien et aménagement du jardin | F193: Outils à main d’entretien du jardin et petits accessoires | G193: Non connu ou non spécifié par l'entreprise | H193: Eléments de toutes dimensions et poids | I193: € / Tonne | J193: 215 | K193: 215 €/Tonne | L193: =VLOOKUP(J193,'Codes tarifs éco-part'!$C$3:$E$466,3,FALSE) -> 498
A194: REP ABJ | B194: 4 | C194: 22150010000 | E194: Entretien et aménagement du jardin | F194: Outils à main d’entretien du jardin et petits accessoires | G194: Assemblage de bois, dérivés de bois à plus de 50% avec d'autres matériaux ou bois composite (hors verre) | H194: Eléments de toutes dimensions et poids | I194: € / Tonne | J194: 45 | K194: 45 €/Tonne | L194: =VLOOKUP(J194,'Codes tarifs éco-part'!$C$3:$E$466,3,FALSE) -> 169
A195: REP ABJ | B195: 4 | C195: 22150020000 | E195: Entretien et aménagement du jardin | F195: Outils à main d’entretien du jardin et petits accessoires | G195: Assemblage avec métal >50% et autres matériaux | H195: Eléments de toutes dimensions et poids | I195: € / Tonne | J195: 10 | K195: 10 €/Tonne | L195: =VLOOKUP(J195,'Codes tarifs éco-part'!$C$3:$E$466,3,FALSE) -> 138
A196: REP ABJ | B196: 4 | C196: 22150040000 | E196: Entretien et aménagement du jardin | F196: Outils à main d’entretien du jardin et petits accessoires | G196: Matériaux bio sourcés ou textiles non synthétiques >50% | H196: Eléments de toutes dimensions et poids | I196: € / Tonne | J196: 215 | K196: 215 €/Tonne | L196: =VLOOKUP(J196,'Codes tarifs éco-part'!$C$3:$E$466,3,FALSE) -> 498
A197: REP ABJ | B197: 4 | C197: 22150050000 | E197: Entretien et aménagement du jardin | F197: Outils à main d’entretien du jardin et petits accessoires | G197: Plastiques ou autres matériaux synthétiques >50% | H197: Eléments de toutes dimensions et poids | I197: € / Tonne | J197: 215 | K197: 215 €/Tonne | L197: =VLOOKUP(J197,'Codes tarifs éco-part'!$C$3:$E$466,3,FALSE) -> 498
A198: REP ABJ | B198: 4 | C198: 22150060000 | E198: Entretien et aménagement du jardin | F198: Outils à main d’entretien du jardin et petits accessoires | G198: Matériaux d'origine animale >50% | H198: Eléments de toutes dimensions et poids | I198: € / Tonne | J198: 215 | K198: 215 €/Tonne | L198: =VLOOKUP(J198,'Codes tarifs éco-part'!$C$3:$E$466,3,FALSE) -> 498
A199: REP ABJ | B199: 4 | C199: 22150190000 | E199: Entretien et aménagement du jardin | F199: Outils à main d’entretien du jardin et petits accessoires | G199: Papier carton >50% avec d'autres matériaux (hors verre) | H199: Eléments de toutes dimensions et poids | I199: € / Tonne | J199: 215 | K199: 215 €/Tonne | L199: =VLOOKUP(J199,'Codes tarifs éco-part'!$C$3:$E$466,3,FALSE) -> 498
A200: REP ABJ | B200: 4 | C200: 22150200000 | E200: Entretien et aménagement du jardin | F200: Outils à main d’entretien du jardin et petits accessoires | G200: Massif et assimilés certifiés >75% | H200: Eléments de toutes dimensions et poids | I200: € / Tonne | J200: 45 | K200: 45 €/Tonne | L200: =VLOOKUP(J200,'Codes tarifs éco-part'!$C$3:$E$466,3,FALSE) -> 169
... 1726 more rows

Sheet PMCB - Grille d'éco-part (hidden)
A1: Grille d'éco-participation ecomaison par matériau
B3: Contribution applicable au matériau en € par kg. | C3: # | E3: Toutes catégories de produits (pour le détail des produits concernés voir le fichier Grille Détaillée) | F3: En euros/ kG | G3: En euros/ To
B4: Applicable à compter du 1er janvier 2023.
B5: 1 - Métal (Cat. a du décret) | C5: =VLOOKUP(E5,'Comprendre la codification'!$D$223:$F$301,3,FALSE) -> 28 | D5: ="40310"&C5&"0000" -> 40310280000 | E5: Métal >90% | F5: 0.0005 | G5: =F5*1000 -> 0.5
C6: =VLOOKUP(E6,'Comprendre la codification'!$D$223:$F$301,3,FALSE) -> 02 | D6: ="40310"&C6&"0000" -> 40310020000 | E6: Assemblage avec métal >50% et autres matériaux | F6: 0.003 | G6: =F6*1000 -> 3
B7: 2 - Bois et dérivés de bois. (Cat. b du décret) | C7: =VLOOKUP(E7,'Comprendre la codification'!$D$223:$F$301,3,FALSE) -> 53 | D7: 40310530000 | E7: Massif et assimilés >90% | F7: 0.008 | G7: 8
C8: =VLOOKUP(E8,'Comprendre la codification'!$D$223:$F$301,3,FALSE) -> 61 | D8: 40310610000 | E8: Panneaux de particules ou OSB >90% | F8: 0.008 | G8: 8
C9: =VLOOKUP(E9,'Comprendre la codification'!$D$223:$F$301,3,FALSE) -> 62 | D9: 40310620000 | E9: Dérivés de bois >90% | F9: 0.008 | G9: 8
C10: =VLOOKUP(E10,'Comprendre la codification'!$D$223:$F$301,3,FALSE) -> 01 | D10: 40310010000 | E10: Assemblage de bois, dérivés de bois à plus de 50% avec d'autres matériaux ou bois composite (hors verre) | F10: 0.009 | G10: 9
B11: 3 - Papier carton (Cat. j du décret) | C11: =VLOOKUP(E11,'Comprendre la codification'!$D$223:$F$301,3,FALSE) -> 19 | D11: 40310190000 | E11: Papier carton >50% avec d'autres matériaux (hors verre) | F11: 0.017 | G11: 17
B12: 4 - Matériaux et fibres d'origine végétal ou animal autres que bois et papier, carton (Cat. j du décret) | C12: =VLOOKUP(E12,'Comprendre la codification'!$D$223:$F$301,3,FALSE) -> 55 | D12: 40310550000 | E12: Matériaux bio sourcés ou textiles non synthétiques >90% | F12: 0.004 | G12: 4
C13: =VLOOKUP(E13,'Comprendre la codification'!$D$223:$F$301,3,FALSE) -> 04 | D13: 40310040000 | E13: Matériaux bio sourcés ou textiles non synthétiques >50% | F13: 0.004 | G13: 4
C14: =VLOOKUP(E14,'Comprendre la codification'!$D$223:$F$301,3,FALSE) -> 63 | D14: 40310630000 | E14: Caoutchouc naturel >90% | F14: 0.009 | G14: 9
C15: =VLOOKUP(E15,'Comprendre la codification'!$D$223:$F$301,3,FALSE) -> 64 | D15: 40310640000 | E15: Caoutchouc naturel >50% | F15: 0.009 | G15: 9
B16: 5 - Plastique, matériaux et fibres synthétiques (Cat. f du décret) | C16: =VLOOKUP(E16,'Comprendre la codification'!$D$223:$F$301,3,FALSE) -> 41 | D16: 40310410000 | E16: Plastiques (mono résine) >90% | F16: 0.009 | G16: 9
C17: =VLOOKUP(E17,'Comprendre la codification'!$D$223:$F$301,3,FALSE) -> 05 | D17: 40310050000 | E17: Plastiques ou autres matériaux synthétiques >50% | F17: 0.03 | G17: 30
C18: =VLOOKUP(E18,'Comprendre la codification'!$D$223:$F$301,3,FALSE) -> 49 | D18: 40310490000 | E18: Caoutchouc synthétique >90% | F18: 0.009 | G18: 9
C19: =VLOOKUP(E19,'Comprendre la codification'!$D$223:$F$301,3,FALSE) -> 40 | D19: 40310400000 | E19: Assemblage caoutchouc synthétique ou latex >50% avec d'autres matériaux | F19: 0.03 | G19: 30
C20: =VLOOKUP(E20,'Comprendre la codification'!$D$223:$F$301,3,FALSE) -> 65 | D20: 40310650000 | E20: Matériaux ou fibres synthétiques >90% | F20: 0.03 | G20: 30
C21: =VLOOKUP(E21,'Comprendre la codification'!$D$223:$F$301,3,FALSE) -> 67 | D21: 40310670000 | E21: Assemblage matériaux ou fibres synthétiques >50% avec d'autres matériaux | F21: 0.03 | G21: 30
B22: 6 - Verre et parois vitrées (Cat. d du décret) | C22: =VLOOKUP(E22,'Comprendre la codification'!$D$223:$F$301,3,FALSE) -> 68 | D22: 40310680000 | E22: Verre >90% | F22: 0.009 | G22: 9
C23: =VLOOKUP(E23,'Comprendre la codification'!$D$223:$F$301,3,FALSE) -> 70 | D23: 40310700000 | E23: Assemblage verre à plus de 50% avec métal | F23: 0.009 | G23: 9
C24: =VLOOKUP(E24,'Comprendre la codification'!$D$223:$F$301,3,FALSE) -> 71 | D24: 40310710000 | E24: Assemblage verre à plus de 50% avec Inerte | F24: 0.009 | G24: 9
C25: =VLOOKUP(E25,'Comprendre la codification'!$D$223:$F$301,3,FALSE) -> 72 | D25: 40310720000 | E25: Assemblage verre à plus de 50% avec bois ou dérivés de bois | F25: 0.009 | G25: 9
C26: =VLOOKUP(E26,'Comprendre la codification'!$D$223:$F$301,3,FALSE) -> 73 | D26: 40310730000 | E26: Assemblage verre à plus de 50% avec plastique | F26: 0.009 | G26: 9
C27: =VLOOKUP(E27,'Comprendre la codification'!$D$223:$F$301,3,FALSE) -> 69 | D27: 40310690000 | E27: Miroir >90% | F27: 0.03 | G27: 30
B28: 7 - Plâtre (Cat. e du décret) | C28: =VLOOKUP(E28,'Comprendre la codification'!$D$223:$F$301,3,FALSE) -> 75 | D28: 40310750000 | E28: Plâtre >90% | F28: 0.003 | G28: 3
C29: =VLOOKUP(E29,'Comprendre la codification'!$D$223:$F$301,3,FALSE) -> 76 | D29: 40310760000 | E29: Plâtre >50% | F29: 0.004 | G29: 4
B30: 8- Laines de verre et laines de roches (Cat. h et i du décret) | C30: =VLOOKUP(E30,'Comprendre la codification'!$D$223:$F$301,3,FALSE) -> 77 | D30: 40310770000 | E30: Laines de roche à plus de 90 % | F30: 0.005 | G30: 5
C31: =VLOOKUP(E31,'Comprendre la codification'!$D$223:$F$301,3,FALSE) -> 78 | D31: 40310780000 | E31: Laine de verre à plus de 90 % | F31: 0.005 | G31: 5
C32: =VLOOKUP(E32,'Comprendre la codification'!$D$223:$F$301,3,FALSE) -> 79 | D32: 40310790000 | E32: Assemblage de laines de verre ou laines de roches à plus de 50% et d'autres matériaux | F32: 0.03 | G32: 30
B33: 9 - Membranes bitumineuses (Cat. g du décret) | C33: =VLOOKUP(E33,'Comprendre la codification'!$D$223:$F$301,3,FALSE) -> 80 | D33: 40310800000 | E33: Membranes bitumineuses à plus de 90 % | F33: 0.03 | G33: 30
B34: 10 - Autres mix matériaux ou matériaux non classés ou non spécifiés (produits appartenant aux catégories a,b, d, e, f, g, h, i et j et non spécifiés par l'entreprise) | C34: =VLOOKUP(E34,'Comprendre la codification'!$D$223:$F$301,3,FALSE) -> 82 | D34: 40310820000 | E34: Assemblage de 3 matériaux ou plus sans un matériau à plus de 50% | F34: 0.03 | G34: 30
C35: =VLOOKUP(E35,'Comprendre la codification'!$D$223:$F$301,3,FALSE) -> 00 | D35: 40310000000 | E35: Non connu ou non spécifié par l'entreprise | F35: 0.03 | G35: 30
B36: 11 - Mortiers, enduits, peintures, vernis, résines, produits de préparation (Cat. c du décret) | C36: =VLOOKUP(E36,'Comprendre la codification'!$E$172:$F$194,2,FALSE) -> 465 | D36: ="50"&C36&"000000" -> 50465000000 | E36: Sous-couches, préparation des sols et étanchéité | F36: 0.055 | G36: 55
C37: =VLOOKUP(E37,'Comprendre la codification'!$E$172:$F$194,2,FALSE) -> 467 | D37: ="50"&C37&"000000" -> 50467000000 | E37: Traitements des murs et toitures | F37: 0.012 | G37: 12
C38: =VLOOKUP(E38,'Comprendre la codification'!$E$172:$F$194,2,FALSE) -> 468 | D38: 50468000000 | E38: Peintures intérieures | F38: 0.071 | G38: 71
C39: =VLOOKUP(E39,'Comprendre la codification'!$E$174:$F$194,2,FALSE) -> 469 | D39: 50469000000 | E39: Colles et adhésifs | F39: 0.029 | G39: 29
C40: =VLOOKUP(E40,'Comprendre la codification'!$E$174:$F$194,2,FALSE) -> 483 | D40: 50483000000 | E40: Résines PU et expansive (aérosol) | F40: 0.04 | G40: 40
C41: =VLOOKUP(E41,'Comprendre la codification'!$E$174:$F$194,2,FALSE) -> 470 | D41: 50470000000 | E41: Mastic, joints et mousses polyuréthanes | F41: 0.013 | G41: 13
C42: =VLOOKUP(E42,'Comprendre la codification'!$E$174:$F$194,2,FALSE) -> 471 | D42: 50471000000 | E42: Adjuvants | F42: 0.029 | G42: 29
C43: =VLOOKUP(E43,'Comprendre la codification'!$E$174:$F$194,2,FALSE) -> 472 | D43: 50472000000 | E43: Traitements bois | F43: 0.076 | G43: 76
C44: =VLOOKUP(E44,'Comprendre la codification'!$E$174:$F$194,2,FALSE) -> 485 | D44: 50485000000 | E44: Traitement des matériaux (aérosol) | F44: 0.041 | G44: 41
C45: =VLOOKUP(E45,'Comprendre la codification'!$E$174:$F$194,2,FALSE) -> 486 | D45: 50486000000 | E45: Traitement des matériaux hors bois | F45: 0.009 | G45: 9
C46: =VLOOKUP(E46,'Comprendre la codification'!$E$174:$F$194,2,FALSE) -> 473 | D46: 50473000000 | E46: Vernis et vitrificateurs | F46: 0.07 | G46: 70
C47: =VLOOKUP(E47,'Comprendre la codification'!$E$174:$F$194,2,FALSE) -> 487 | D47: 50487000000 | E47: Vernis et vitrificateurs et dérivés (aérosols) | F47: 0.041 | G47: 41
C48: =VLOOKUP(E48,'Comprendre la codification'!$E$174:$F$194,2,FALSE) -> 481 | D48: 50481000000 | E48: Enduits poudre | F48: 0.002 | G48: 2
C49: =VLOOKUP(E49,'Comprendre la codification'!$E$174:$F$194,2,FALSE) -> 480 | D49: 50480000000 | E49: Enduits pate | F49: 0.005 | G49: 5
B52: 1 - Aluminium, Acier, fonte, fer, laiton, bronze, tole, cuivre, nickel, titane, zinc, et autres alliages….
B53: 2 - Massif = massif, contrecollé, lamellé, plaqué/ Dérivés de bois = bois composite, MDF, HDF, alvéolaire, stratifé, HPL….
B54: 5 : Plastiques et autres matériaux synthétiques : acrylique, PP, PE, PS, XPS, EPS, PER, Nylon, Polyamide, PU, PVC, vinyle, époxy, fibres synthétiques, PL, matériaux composites, carbone….
B55: 4 : Matériaux d'origine animale ou végétale autres que le Bois et le Papier Carton : Liège, chanvre, lin, coton, cuir, laine, soie, paille, rafia….

Sheet PMCB - Grille forfaitaire (hidden)
A2: Tarifs en € HT par m2
A4: Menuiseries Extérieures | B4: Tarif € HT par unité de vente
B5: Fenêtre <= 1,5 m2 | C5: 1,5m² < Fenêtre < 3,5 m² | D5: Fenêtre >= 3,5m²
A6: Fenêtre et porte fenêtre (cadre en métal) | B6: 0.2 | C6: 0.35 | D6: 0.6
A7: Fenêtre et porte fenêtre (cadre en Bois et Dérivés de bois) | B7: 0.2 | C7: 0.35 | D7: 0.6
A8: Fenêtre et porte fenêtre en Plastiques (monorésine) | B8: 0.2 | C8: 0.35 | D8: 0.6
A9: Fenêtre et porte fenêtre (Assemblage de 3 matériaux ou plus sans un matériau à plus de 50% ) | B9: 0.2 | C9: 0.5 | D9: 0.6
A10: Volet battant (métal à plus de 90 %) | B10: 0.005 | C10: 0.0175 | D10: 0.03
A11: Volet battant (bois et dérivés de bois à plus de 90 %) | B11: 0.1 | C11: 0.15 | D11: 0.2
A12: Volet battant en Plastiques (monorésine à plus de 90%) | B12: 0.08571428571 | C12: 0.1428571429 | D12: 0.18
A13: Volet battant en Plastiques (assemblage de plus de 3 matériaux et matériaux non spécifiés) | B13: 0.27 | C13: 0.35 | D13: 0.6
A14: Volet roulant | B14: 0.03 | C14: 0.05 | D14: 0.06
A17: Plâtre, élément en platre, cloisonnement, plafonds | B17: Tarif en € HT par m²
B18: Ep. <= 13 mm | C18: Ep. > 13 mm
A19: Plâtre > 90 % | B19: 0.03 | C19: 0.06
A20: Plâtre > 50% (ex : plaque de platre doublé polystène) | B20: 0.06 | C20: 0.12
A22: Revêtement mural | B22: Tarif en € HT par m²
A23: Revêtement mural avec fibre de verre | B23: 0.01
A24: Revêtement en matériaux bio sourcés ou textiles non synthétiques | B24: 0.05
A25: Lambris (en bois massif et assimilé et Dérivés de bois > 90 %) | B25: 0.04
A26: Lambris Plastiques monorésine à plus de 90% (PVC) | B26: 0.02
A27: Lambris (assemblage de plus de 3 matériaux et matériaux non spécifiés) | B27: 0.06
A29: Parquets, terrasses bois et autres lames | B29: Tarif en € HT par m²
A30: Bois massif et assimilés > 90 % | B30: 0.1
A31: Dérivés de bois > 90% (stratifié) | B31: 0.08 | C31: =12000000*B31 -> 960000
A32: Assemblage de Bois, dérivés de bois à plus de 50% avec d'autres matériaux ou bois composite (hors verre) | B32: 0.08
A33: Matériaux bio sourcés ou textiles non synthétiques > 90% | B33: 0.01
A35: Autres revetements de sols | B35: Tarif en € HT par m²
A36: Caoutchouc naturel > 90 % | B36: 0.15
A37: Caoutchouc synthétique > 90 % | B37: 0.15
A38: Assemblage Matériaux ou fibres synthétiques > 50% avec d'autres matériaux | B38: 0.15
A39: Plastiques (mono résine*) > 90 % | B39: 0.03
A40: Matériaux bio sourcés ou textiles non synthétiques > 90% | B40: 0.01
A42: Tarifs en € HT par unité
A44: Menuiseries intérieures (Portes) | B44: Tarif en €/HT par unité de vente
A45: Huisserie métallique | B45: 0.04
A46: Huisserie bois | B46: 0.08
A47: Huisserie Plastiques (monorésine) | B47: 0.08
A48: Huisserie (assemblage de plus de 3 matériaux et matériaux non spécifiés) | B48: 0.24
A49: Ventail porte alvéolaire (Assemblage de bois, dérivés de bois à plus de 50% ou bois composite) | B49: 0.13
A50: Ventail porte en Bois et dérivés de bois | B50: 0.36
A51: Ventail porte en métal | B51: 0.13
A52: Ventail porte vitrées | B52: 0.38
A53: Ventail porte en verre (>90%) | B53: 0.32
A54: Ventail porte en Plastiques (monorésine) | B54: 0.38
A55: Trappes en métal | B55: 0.01
A56: Trappes en Bois et dérivés de bois | B56: 0.05
A57: Trappes en Plastiques (monorésine) | B57: 0.01
A59: Escalier | B59: Tarif en €/HT par unité de vente
A60: Massif et assimilés > 90 % | B60: 0.8
A61: Métal (1) > 90% | B61: 0.8
A63: Quincallerie et accessoires divers toute catégorie | B63: Tarif en €/HT par unité de vente
A64: Quincaillerie et accessoires en métal à plus de 90%, par lot ou par unité jusqu'à 5 kg | B64: 0.01
A65: Quincaillerie et accessoires en bois ou dérivés de bois, par lot ou par unité jusqu'à 1 kg | B65: 0.01
A66: Quincaillerie et accessoires en plastique (mono résine à plus de 90%), par lot ou par unité < 300 g | B66: 0.01
A70: Equipements sanitaires pour salle de bain, cuisine et WC | B70: Tarif en €/HT par unité de vente
B71: Largeur <= 1m | C71: Largeur > 1m
A72: Evier, lavabo et vasque en céramique | B72: ECOMINERO | C72: ECOMINERO
A73: Evier, lavabo et vasque en métal à plus de 90 % | B73: 0.01 | C73: 0.02
A74: Evier, lavabo et vasque en bois à plus de 90 % | B74: 0.02 | C74: 0.04
A75: Evier, lavabo et vasque en mono résine plastique | B75: =0.35/30*9 -> 0.105 | C75: =0.6/30*9 -> 0.18
A76: Evier, lavabo et vasque en verre à plus de 90 % | B76: 0.17 | C76: 0.3
A77: Evier, lavabo et vasque en plastiques et autres matériaux synthétiques | B77: 0.17 | C77: 0.3
A79: Equipements sanitaires pour salle de bain, cuisine et WC | B79: Tarif en €/HT par unité de vente
A80: Receveur de douche en céramique | B80: ECOMINERO
A81: Receveur de douche en métal à plus de 90 % | B81: 0.01
A82: Receveur de douche en mono résine plastique | B82: 0.3
A83: Bloc WC en céramique | B83: ECOMINERO
A84: Bloc WC en métal à plus de 90 % | B84: 0.1
A85: Bloc WC en plastiques et autres matériaux synthétiques | B85: 0.3
A86: Baignoire en céramique | B86: ECOMINERO
A87: Baignoire * en métal à plus de 90 % | B87: 0.3
A88: Baignoire * en bois à plus de 90 % | B88: 0.45
A89: Baignoire * en plastiques et autres matériaux synthétiques | B89: 0.45
A90: Baignoire * en mono résine plastique | B90: 0.3
A91: * hors baignoire balnéo
A93: Chauffage | B93: Tarif en €/HT par unité de vente
A94: Radiateur en métal à plus de 90 % < 1 mètre (plus grande largeur ou hauteur) | B94: 0.01
A95: Radiateur en métal à plus de 90 % > 1 mètre (plus grande largeur ou hauteur) | B95: 0.03
A97: Tarifs en € HT par kg pour les produits spécifiques
A99: 11 - Mortiers, enduits, peintures, vernis, résines, produits de préparation (Cat. c du décret) : tarif en € HT / kg | B99: En euros HT/ kG
A100: Applicable en 2023.
A101: Sous couches, préparation des sols et étanchéité | B101: 0.055
A102: Peintures extérieures | B102: 0.071
A103: Traitement des sols et toitures | B103: 0.012
A104: Peintures intérieures | B104: 0.071
A105: Colles et adhésifs | B105: 0.029
A106: Résines PU et expansive (aérosol) | B106: 0.04
A107: Mastics, joints et mousses PU | B107: 0.013
A108: Adjuvants | B108: 0.029
A109: Traitement des bois | B109: 0.076
A110: Traitement des matériaux (aérosol) | B110: 0.041
A111: Traitement des matériaux hors bois | B111: 0.009
A112: Vernis et vitrificateurs et dérivés | B112: 0.07
A113: Vernis et vitrificateurs et dérivés (aérosols) | B113: 0.041
A114: Enduits poudre | B114: 0.002
A115: Enduits pate | B115: 0.005
A117: Liste complète des produits disponibles dans le fichier générateur des Tarifs et Codes
A119: Tarifs en € HT par m3 ou ml
A121: Tarifs en € HT par m3 ou ml
A123: Bois de charpente et panneaux Bois et dérivés de bois | B123: Tarif en €/HT par m3
A124: Massif et assimilés > 90 % | B124: 4
A125: Panneaux de particules ou OSB > 90% | B125: 5
A126: Dérivés de bois > 90% | B126: 5.84
A128: Plinthes | B128: Tarif en €/HT par ml
A129: Plastiques (mono résine*) > 90 % | B129: 0.01
A130: Massif et assimilés > 90 % | B130: 0.01
A132: Portail | B132: Tarif en €/HT par ml
A133: Massif et assimilés > 90 % | B133: 0.09
A134: Panneaux de particules ou OSB > 90% | B134: 0.09
A135: Métal (1) > 90% | B135: 0.01
A136: Plastiques (mono résine*) > 90 % (PVC) | B136: 0.11
A137: Assemblage de 3 matériaux ou plus sans un matériau à plus de 50% | B137: 0.33

Sheet ABJ - Grille d'éco-part (hidden)
A1: Eco-participations à l’€ / Tonne | B1: Monomatériau (90%) | C1: Monomatériau (90%) | D1: Majorité (>50%) | E1: Majorité (>50%) | F1: Monomatériau (90%) | G1: Monomatériau (90%) | H1: Majorité (>50%) | I1: Mix matériaux ou Assemblage de plus de 3 matériaux sans matériau majoritaire (hors ceux colonne E) ou composites ou non spécifié
B2: Matériaux inertes hors céramique | C2: Céramique | D2: Métal | E2: Bois ou Bois + Métal | F2: Textile non synthétique ou matériaux biosourcés (Carton, papier, lin, chanvre…) | G2: Textile synthétique, polymères ou Plastique monorésine | H2: Textile synthétique ou Plastique
A5: Cat.3 – Bricolage
A6: 1. Outillage à main et leurs accessoires | B6: - | C6: - | D6: 10 | E6: 45 | F6: 50 | G6: 165 | H6: 215 | I6: 215
A7: 2. Gros objets et machines non électriques/thermiques et leurs accessoires | B7: - | C7: - | D7: 3 | E7: 10 | F7: 30 | G7: 50 | H7: 75 | I7: 75
A8: 3. Outils et supports de travail en hauteur | B8: - | C8: - | D8: 3 | E8: 10 | F8: 30 | G8: 50 | H8: 75 | I8: 75
A9: 4. Equipement personnel et accessoires de protection de bricolage | B9: - | C9: - | D9: 10 | E9: 45 | F9: 50 | G9: 165 | H9: 215 | I9: 215
A10: 5. Bâches de bricolage | B10: - | C10: - | D10: - | E10: - | F10: 50 | G10: 165 | H10: 215 | I10: 215
A12: Cat.4 - Entretien et aménagement du jardin
A13: 6. Outils à main d'entretien du jardin | B13: 5 | C13: 10 | D13: 10 | E13: 45 | F13: 50 | G13: 165 | H13: 215 | I13: 215
A14: 7. Equipement personnel de jardinage | B14: - | C14: - | D14: 10 | E14: 45 | F14: 50 | G14: 165 | H14: 215 | I14: 215
A15: 8. Pots de fleur et contenants | B15: 5 | C15: 10 | D15: 10 | E15: 20 | F15: 50 | G15: 130 | H15: 170 | I15: 170
A16: 9. Bâches, housses, films et filets | B16: - | C16: - | D16: - | E16: - | F16: 50 | G16: 165 | H16: 215 | I16: 215
A17: 10. Equipement de plein air | B17: 5 | C17: 10 | D17: 3 | E17: 10 | F17: 30 | G17: 50 | H17: 75 | I17: 75
A18: 11. Structures extérieures non maçonnées | B18: 5 | C18: 10 | D18: 3 | E18: 10 | F18: 30 | G18: 50 | H18: 75 | I18: 75

Sheet Codes tarifs éco-part (hidden)
B1: Codes éco-participation pour matrice de passage
B2: =Consignes!A7 -> Version 1.10 - 10 février 2023
B3: Code éco-participation | C3: Montant € HT / article | D3: Montant € TTC / article (TVA à 20%)
B4: 499 | C4: 0.005 | D4: 0.01 | E4: =B4 -> 499
B5: 260 | C5: 0.01 | D5: 0.01 | E5: =B5 -> 260
B6: 441 | C6: 0.018 | D6: =C6*1.2 -> 0.0216 | E6: =B6 -> 441
B7: 047 | C7: 0.02 | D7: 0.02 | E7: 047
B8: 092 | C8: 0.03 | D8: 0.04 | E8: 092
B9: 002 | C9: 0.04 | D9: 0.05 | E9: 002
B10: 048 | C10: 0.05 | D10: 0.06 | E10: 048
B11: 096 | C11: 0.06 | D11: 0.07 | E11: 096
B12: 247 | C12: 0.07 | D12: 0.08 | E12: 247
B13: 003 | C13: 0.08 | D13: 0.1 | E13: 003
B14: 442 | C14: 0.086 | D14: =C14*1.2 -> 0.1032 | E14: 442
B15: 049 | C15: 0.09 | D15: 0.11 | E15: 049
B16: 094 | C16: 0.1 | D16: 0.12 | E16: 094
B17: 443 | C17: 0.105 | D17: =C17*1.2 -> 0.126 | E17: 443
B18: 262 | C18: 0.11 | D18: 0.13 | E18: 262
B19: 097 | C19: 0.12 | D19: 0.14 | E19: 097
B20: 004 | C20: 0.13 | D20: 0.16 | E20: 004
B21: 098 | C21: 0.14 | D21: 0.17 | E21: 098
B22: 444 | C22: 0.143 | D22: =C22*1.2 -> 0.1716 | E22: 444
B23: 050 | C23: 0.15 | D23: 0.18 | E23: 050
B24: 099 | C24: 0.16 | D24: 0.19 | E24: 099
B25: 005 | C25: 0.17 | D25: 0.2 | E25: 005
B26: 100 | C26: 0.18 | D26: 0.22 | E26: 100
B27: 291 | C27: 0.19 | D27: 0.23 | E27: 291
B28: 101 | C28: 0.2 | D28: 0.24 | E28: 101
B29: 051 | C29: 0.21 | D29: 0.25 | E29: 051
B30: 263 | C30: 0.22 | D30: 0.26 | E30: 263
B31: 323 | C31: 0.23 | D31: =C31*1.2 -> 0.276 | E31: 323
B32: 248 | C32: 0.24 | D32: 0.29 | E32: 248
B33: 095 | C33: 0.25 | D33: 0.3 | E33: 095
B34: 445 | C34: 0.26 | D34: =C34*1.2 -> 0.312 | E34: 445
B35: 103 | C35: 0.27 | D35: 0.32 | E35: 103
B36: 324 | C36: 0.29 | D36: =C36*1.2 -> 0.348 | E36: 324
B37: 446 | C37: 0.3 | D37: =C37*1.2 -> 0.36 | E37: 446
B38: 104 | C38: 0.31 | D38: 0.37 | E38: 104
B39: 447 | C39: 0.32 | D39: =C39*1.2 -> 0.384 | E39: 447
B40: 006 | C40: 0.33 | D40: 0.4 | E40: 006
B41: 043 | C41: 0.34 | D41: 0.41 | E41: 043
B42: 448 | C42: 0.35 | D42: =C42*1.2 -> 0.42 | E42: 448
B43: 449 | C43: 0.36 | D43: =C43*1.2 -> 0.432 | E43: 449
B44: 268 | C44: 0.37 | D44: 0.44 | E44: 268
B45: 292 | C45: 0.38 | D45: 0.46 | E45: 292
B46: 253 | C46: 0.39 | D46: 0.47 | E46: 253
B47: 105 | C47: 0.4 | D47: 0.48 | E47: =B47 -> 105
B48: 450 | C48: 0.42 | D48: =C48*1.2 -> 0.504 | E48: 450
B49: 281 | C49: 0.44 | D49: 0.53 | E49: 281
B50: 325 | C50: 0.45 | D50: =C50*1.2 -> 0.54 | E50: 325
B51: 106 | C51: 0.46 | D51: 0.55 | E51: 106
B52: 107 | C52: 0.47 | D52: 0.56 | E52: 107
B53: 108 | C53: 0.49 | D53: 0.59 | E53: 108
B54: 053 | C54: 0.5 | D54: 0.6 | E54: 053
B55: 109 | C55: 0.51 | D55: 0.61 | E55: 109
B56: 451 | C56: 0.53 | D56: =C56*1.2 -> 0.636 | E56: 451
B57: 326 | C57: 0.57 | D57: =C57*1.2 -> 0.684 | E57: 326
B58: 254 | C58: 0.59 | D58: 0.71 | E58: 254
B59: 327 | C59: 0.6 | D59: =C59*1.2 -> 0.72 | E59: 327
B60: 297 | C60: 0.63 | D60: 0.76 | E60: 297
B61: 452 | C61: 0.64 | D61: =C61*1.2 -> 0.768 | E61: 452
B62: 453 | C62: 0.66 | D62: =C62*1.2 -> 0.792 | E62: 453
B63: 110 | C63: 0.67 | D63: 0.8 | E63: 110
B64: 044 | C64: 0.68 | D64: 0.82 | E64: 044
B65: 111 | C65: 0.69 | D65: 0.83 | E65: 111
B66: 282 | C66: 0.7 | D66: 0.84 | E66: 282
B67: 454 | C67: 0.72 | D67: =C67*1.2 -> 0.864 | E67: 454
B68: 255 | C68: 0.73 | D68: 0.88 | E68: 255
B69: 328 | C69: 0.75 | D69: =C69*1.2 -> 0.9 | E69: 328
B70: 455 | C70: 0.76 | D70: =C70*1.2 -> 0.912 | E70: =B70 -> 455
B71: 312 | C71: 0.78 | D71: 0.94 | E71: 312
B72: 456 | C72: 0.8 | D72: =C72*1.2 -> 0.96 | E72: 456
B73: 112 | C73: 0.81 | D73: 0.97 | E73: 112
B74: 008 | C74: 0.83 | D74: 1 | E74: 008
B75: 457 | C75: 0.84 | D75: =C75*1.2 -> 1.008 | E75: 457
B76: 329 | C76: 0.85 | D76: =C76*1.2 -> 1.02 | E76: 329
B77: 269 | C77: 0.88 | D77: 1.06 | E77: 269
B78: 330 | C78: 0.9 | D78: =C78*1.2 -> 1.08 | E78: 330
B79: 054 | C79: 0.92 | D79: 1.1 | E79: 054
B80: 458 | C80: 0.94 | D80: =C80*1.2 -> 1.128 | E80: 458
B81: 055 | C81: 0.96 | D81: 1.15 | E81: 055
B82: 459 | C82: 0.98 | D82: =C82*1.2 -> 1.176 | E82: 459
B83: 056 | C83: 1 | D83: 1.2 | E83: 056
B84: 298 | C84: 1.01 | D84: 1.21 | E84: 298
B85: 283 | C85: 1.05 | D85: 1.26 | E85: 283
B86: 113 | C86: 1.08 | D86: 1.3 | E86: 113
B87: 270 | C87: 1.09 | D87: 1.31 | E87: 270
B88: 331 | C88: 1.13 | D88: =C88*1.2 -> 1.356 | E88: 331
B89: 460 | C89: 1.15 | D89: =C89*1.2 -> 1.38 | E89: 460
B90: 461 | C90: 1.18 | D90: =C90*1.2 -> 1.416 | E90: 461
B91: 114 | C91: 1.21 | D91: 1.45 | E91: 114
B92: 313 | C92: 1.24 | D92: 1.49 | E92: 313
B93: 009 | C93: 1.25 | D93: 1.5 | E93: 009
B94: 284 | C94: 1.31 | D94: 1.57 | E94: 284
B95: 115 | C95: 1.33 | D95: 1.6 | E95: 115
B96: 332 | C96: 1.35 | D96: =C96*1.2 -> 1.62 | E96: 332
B97: 462 | C97: 1.38 | D97: =C97*1.2 -> 1.656 | E97: 462
B98: 463 | C98: 1.4 | D98: =C98*1.2 -> 1.68 | E98: 463
B99: 333 | C99: 1.41 | D99: =C99*1.2 -> 1.692 | E99: 333
B100: 057 | C100: 1.42 | D100: 1.7 | E100: 057
B101: 058 | C101: 1.46 | D101: 1.75 | E101: 058
B102: 059 | C102: 1.5 | D102: 1.8 | E102: 059
B103: 299 | C103: 1.52 | D103: 1.82 | E103: 299
B104: 464 | C104: 1.57 | D104: =C104*1.2 -> 1.884 | E104: 464
B105: 010 | C105: 1.67 | D105: 2 | E105: 010
B106: 465 | C106: 1.68 | D106: =C106*1.2 -> 2.016 | E106: 465
B107: 334 | C107: 1.69 | D107: =C107*1.2 -> 2.028 | E107: 334
B108: 256 | C108: 1.7 | D108: 2.04 | E108: 256
B109: 116 | C109: 1.71 | D109: 2.05 | E109: 116
B110: 394 | C110: 1.74 | D110: =C110*1.2 -> 2.088 | E110: 394
B111: 466 | C111: 1.77 | D111: =C111*1.2 -> 2.124 | E111: 466
B112: 467 | C112: 1.81 | D112: =C112*1.2 -> 2.172 | E112: 467
B113: 271 | C113: 1.82 | D113: 2.18 | E113: 271
B114: 117 | C114: 1.83 | D114: 2.2 | E114: 117
B115: 314 | C115: 1.86 | D115: 2.23 | E115: 314
B116: 335 | C116: 1.88 | D116: =C116*1.2 -> 2.256 | E116: 335
B117: 300 | C117: 1.89 | D117: 2.27 | E117: 300
B118: 060 | C118: 1.92 | D118: 2.3 | E118: 060
B119: 336 | C119: 1.97 | D119: =C119*1.2 -> 2.364 | E119: 336
B120: 061 | C120: 2 | D120: 2.4 | E120: 061
B121: 011 | C121: 2.08 | D121: 2.5 | E121: 011
B122: 468 | C122: 2.09 | D122: =C122*1.2 -> 2.508 | E122: 468
B123: 257 | C123: 2.18 | D123: 2.62 | E123: 257
B124: 390 | C124: 2.2 | D124: =C124*1.2 -> 2.64 | E124: 390
B125: 469 | C125: 2.21 | D125: =C125*1.2 -> 2.652 | E125: 469
B126: 118 | C126: 2.25 | D126: 2.7 | E126: 118
B127: 062 | C127: 2.33 | D127: 2.8 | E127: 062
B128: 337 | C128: 2.35 | D128: =C128*1.2 -> 2.82 | E128: 337
B129: 470 | C129: 2.42 | D129: =C129*1.2 -> 2.904 | E129: 470
B130: 471 | C130: 2.43 | D130: =C130*1.2 -> 2.916 | E130: 471
B131: 012 | C131: 2.5 | D131: 3 | E131: 012
B132: 338 | C132: 2.54 | D132: =C132*1.2 -> 3.048 | E132: 338
B133: 272 | C133: 2.55 | D133: 3.06 | E133: 272
B134: 399 | C134: 2.62 | D134: =C134*1.2 -> 3.144 | E134: =B134 -> 399
B135: 339 | C135: 2.63 | D135: =C135*1.2 -> 3.156 | E135: 339
B136: 119 | C136: 2.67 | D136: 3.2 | E136: 119
B137: 472 | C137: 2.74 | D137: =C137*1.2 -> 3.288 | E137: 472
B138: 120 | C138: 2.75 | D138: 3.3 | E138: 120
B139: 473 | C139: 2.78 | D139: =C139*1.2 -> 3.336 | E139: 473
B140: 340 | C140: 2.82 | D140: =C140*1.2 -> 3.384 | E140: 340
B141: 437 | C141: 2.84 | D141: =C141*1.2 -> 3.408 | E141: 437
B142: 400 | C142: 2.88 | D142: =C142*1.2 -> 3.456 | E142: 400
B143: 013 | C143: 2.92 | D143: 3.5 | E143: 013
B144: 474 | C144: 3 | D144: =C144*1.2 -> 3.6 | E144: 474
B145: 285 | C145: 3.05 | D145: 3.66 | E145: 285
B146: 475 | C146: 3.07 | D146: =C146*1.2 -> 3.684 | E146: 475
B147: 121 | C147: 3.08 | D147: 3.7 | E147: 121
B148: 341 | C148: 3.1 | D148: =C148*1.2 -> 3.72 | E148: 341
B149: 431 | C149: 3.11 | D149: =C149*1.2 -> 3.732 | E149: 431
B150: 301 | C150: 3.15 | D150: 3.78 | E150: 301
B151: 438 | C151: 3.17 | D151: =C151*1.2 -> 3.804 | E151: 438
B152: 476 | C152: 3.2 | D152: =C152*1.2 -> 3.84 | E152: 476
B153: 122 | C153: 3.25 | D153: 3.9 | E153: 122
B154: 273 | C154: 3.27 | D154: 3.92 | E154: 273
B155: 342 | C155: 3.29 | D155: =C155*1.2 -> 3.948 | E155: 342
B156: 397 | C156: 3.3 | D156: =C156*1.2 -> 3.96 | E156: 397
B157: 014 | C157: 3.33 | D157: 4 | E157: 014
B158: 343 | C158: 3.38 | D158: =C158*1.2 -> 4.056 | E158: 343
B159: 249 | C159: 3.39 | D159: 4.07 | E159: 249
B160: 123 | C160: 3.58 | D160: 4.3 | E160: 123
B161: 432 | C161: 3.61 | D161: =C161*1.2 -> 4.332 | E161: 432
B162: 124 | C162: 3.67 | D162: 4.4 | E162: 124
B163: 434 | C163: 3.68 | D163: =C163*1.2 -> 4.416 | E163: 434
B164: 407 | C164: 3.73 | D164: =C164*1.2 -> 4.476 | E164: 407
B165: 015 | C165: 3.75 | D165: 4.5 | E165: 015
B166: 396 | C166: 3.81 | D166: =C166*1.2 -> 4.572 | E166: 396
B167: 477 | C167: 3.82 | D167: =C167*1.2 -> 4.584 | E167: 477
B168: 315 | C168: 3.88 | D168: 4.66 | E168: 315
B169: 125 | C169: 3.92 | D169: 4.7 | E169: 125
B170: 286 | C170: 3.93 | D170: 4.72 | E170: 286
B171: 344 | C171: 3.94 | D171: =C171*1.2 -> 4.728 | E171: 344
B172: 274 | C172: 4 | D172: 4.8 | E172: 274
B173: 345 | C173: 4.13 | D173: =C173*1.2 -> 4.956 | E173: 345
B174: 016 | C174: 4.17 | D174: 5 | E174: 016
B175: 346 | C175: 4.22 | D175: =C175*1.2 -> 5.064 | E175: 346
B176: 408 | C176: 4.33 | D176: =C176*1.2 -> 5.196 | E176: 408
B177: 258 | C177: 4.36 | D177: 5.23 | E177: 258
B178: 302 | C178: 4.41 | D178: 5.29 | E178: 302
B179: 126 | C179: 4.42 | D179: 5.3 | E179: 126
B180: 127 | C180: 4.5 | D180: 5.4 | E180: 127
B181: 478 | C181: 4.57 | D181: =C181*1.2 -> 5.484 | E181: 478
B182: 065 | C182: 4.58 | D182: 5.5 | E182: 065
B183: 128 | C183: 4.67 | D183: 5.6 | E183: 128
B184: 129 | C184: 4.75 | D184: 5.7 | E184: 129
B185: 287 | C185: 4.8 | D185: 5.76 | E185: 287
B186: 130 | C186: 4.83 | D186: 5.8 | E186: 130
B187: 391 | C187: 4.84 | D187: =C187*1.2 -> 5.808 | E187: 391
B188: 042 | C188: 5 | D188: 6 | E188: 042
B189: 347 | C189: 5.07 | D189: =C189*1.2 -> 6.084 | E189: 347
B190: 264 | C190: 5.09 | D190: 6.11 | E190: 264
B191: 479 | C191: 5.14 | D191: =C191*1.2 -> 6.168 | E191: 479
B192: 348 | C192: 5.16 | D192: =C192*1.2 -> 6.192 | E192: 348
B193: 131 | C193: 5.17 | D193: 6.2 | E193: 131
B194: 403 | C194: 5.23 | D194: =C194*1.2 -> 6.276 | E194: 403
B195: 349 | C195: 5.25 | D195: =C195*1.2 -> 6.3 | E195: 349
B196: 132 | C196: 5.33 | D196: 6.4 | E196: 132
B197: 416 | C197: 5.39 | D197: =C197*1.2 -> 6.468 | E197: 416
B198: 017 | C198: 5.42 | D198: 6.5 | E198: =B198 -> 017
B199: 316 | C199: 5.43 | D199: 6.52 | E199: 316
B200: 133 | C200: 5.58 | D200: 6.7 | E200: 133
... 266 more rows

Sheet Régime simplifié PMCB (hidden)
B2: Régime « petits producteurs »
B3: Modalités de déclarations simplifiées
